{"text_format":"1","workbook":"xlsx","n_sheets":2,"sheets":["Basis Fahrplan 2019","Übersetzungstabelle"],"not_rendered":{"charts":0,"images":3,"macros":1,"external_links":0,"defined_names":1,"comments":1,"pivot_tables":0},"unopened":[],"bounds":{"document_bytes":16777216,"sheet_cells":100000,"rows_first":2000,"rows_last":500,"rows_between":2000,"halvings":0,"cell_chars":16384,"cell_head_chars":4096},"cells_cut":0,"cells_raw":0,"read":"whole","date_system":"1900"}

{"sheet":"Basis Fahrplan 2019","index":0,"n_rows":1431,"n_cols":7,"rows_kept":1431,"cut":false,"hidden":false,"merged":[]}
[]
["TUB-Nr.",{"$f":"Übersetzungstabelle!A3","v":"Initialen"},{"$f":"Übersetzungstabelle!A4","v":"Feld"},{"$f":"Übersetzungstabelle!A5","v":"Linie"},{"$f":"Übersetzungstabelle!A6","v":"Kategorie 1"},{"$f":"Übersetzungstabelle!A7","v":"Kategorie 2"},{"$f":"Übersetzungstabelle!A8","v":"Kategorie Wirtschaftlichkeit"}]
[1,"SBB",72.510999999999996,"511 (Ziegelbrücke -) Näfels-Mollis - Mühlehorn",{"$f":"Übersetzungstabelle!$A$20","v":"Bus Überland/Berg (ohne Tourismus)"},"","B"]
[1,"SBB",100,"RE Lausanne - St-Maurice",{"$f":"Übersetzungstabelle!$A$12","v":"Normalspur Schnellzüge"},"","B"]
[1,"SBB",100,"S2 (Vallorbe -) Lausanne - Villeneuve",{"$f":"Übersetzungstabelle!$A$11","v":"Normalspur Überland/Regionalverkehr"},"","B"]
[1,"SBB",111,"S7 Vevey - Puidoux-Chexbres",{"$f":"Übersetzungstabelle!$A$11","v":"Normalspur Überland/Regionalverkehr"},"","B"]
[1,"SBB",150,"Lancy-Pont Rouge - Genève - Coppet",{"$f":"Übersetzungstabelle!$A$10","v":"Normalspur Agglomeration (S-Bahnen) "},"","B"]
[1,"SBB",150,"S3 Allaman - Lausanne (- Villeneuve)",{"$f":"Übersetzungstabelle!$A$11","v":"Normalspur Überland/Regionalverkehr"},"","B"]
[1,"SBB",150,"S4 Allaman - Lausanne (- Palézieux)",{"$f":"Übersetzungstabelle!$A$11","v":"Normalspur Überland/Regionalverkehr"},"","B"]
[1,"SBB",151,"Genève - La Plaine (- Bellegarde (Ain))",{"$f":"Übersetzungstabelle!$A$11","v":"Normalspur Überland/Regionalverkehr"},"","B"]
[1,"SBB",200,"S2 Vallorbe - Lausanne (- Villeneuve)",{"$f":"Übersetzungstabelle!$A$11","v":"Normalspur Überland/Regionalverkehr"},"","B"]
[1,"SBB",210,"Gorgier-St-Aubin - Neuchâtel",{"$f":"Übersetzungstabelle!$A$11","v":"Normalspur Überland/Regionalverkehr"},"","B"]
[1,"SBB",210,"Neuchâtel - Biel/Bienne",{"$f":"Übersetzungstabelle!$A$11","v":"Normalspur Überland/Regionalverkehr"},"","B"]
[1,"SBB",210,"S1 Lausanne - Grandson",{"$f":"Übersetzungstabelle!$A$11","v":"Normalspur Überland/Regionalverkehr"},"","B"]
[1,"SBB",210,"S5 (Palézieux -) Lausanne - Grandson",{"$f":"Übersetzungstabelle!$A$11","v":"Normalspur Überland/Regionalverkehr"},"","B"]
[1,"SBB",210,"Yverdon-les-Bains - Neuchâtel",{"$f":"Übersetzungstabelle!$A$12","v":"Normalspur Schnellzüge"},"","B"]
[1,"SBB",221,"Neuchâtel - Travers (- Buttes)",{"$f":"Übersetzungstabelle!$A$11","v":"Normalspur Überland/Regionalverkehr"},"","B"]
[1,"SBB",223,"(Morteau -) Le Locle-Col-des-Roches - La Chaux-de-Fonds (Prolongement SNCF)",{"$f":"Übersetzungstabelle!$A$11","v":"Normalspur Überland/Regionalverkehr"},"","B"]
[1,"SBB",223,"RE Neuchâtel - La Chaux-de-Fonds - Le Locle",{"$f":"Übersetzungstabelle!$A$11","v":"Normalspur Überland/Regionalverkehr"},"","B"]
[1,"SBB",225,"RE Biel/Bienne - Sonceboz-Sombeval - La Chaux-de-Fonds",{"$f":"Übersetzungstabelle!$A$12","v":"Normalspur Schnellzüge"},"","B"]
[1,"SBB",230,"RE Biel/Bienne - Delémont (- Delle - Belfort-Montbéliard TGV)",{"$f":"Übersetzungstabelle!$A$12","v":"Normalspur Schnellzüge"},"","B"]
[1,"SBB",230,"S3 (Olten -) Basel SBB - Laufen - Delémont (- Porrentruy)",{"$f":"Übersetzungstabelle!$A$11","v":"Normalspur Überland/Regionalverkehr"},"","B"]
[1,"SBB",230,"S3 Basel SBB - Laufen - Delémont (Nachtangebot)",{"$f":"Übersetzungstabelle!$A$12","v":"Normalspur Schnellzüge"},"","B"]
[1,"SBB",240,"RE (Biel/Bienne -) Delémont - Porrentruy - Delle (- Belfort-Montbéliard TGV)",{"$f":"Übersetzungstabelle!$A$12","v":"Normalspur Schnellzüge"},"","B"]
[1,"SBB",240,"S3 (Olten - Laufen -) Delémont - Porrentruy",{"$f":"Übersetzungstabelle!$A$11","v":"Normalspur Überland/Regionalverkehr"},"","B"]
[1,"SBB",250,"S40 Romont - Fribourg",{"$f":"Übersetzungstabelle!$A$11","v":"Normalspur Überland/Regionalverkehr"},"","B"]
[1,"SBB",250,"S5 (Grandson -) Lausanne - Palézieux",{"$f":"Übersetzungstabelle!$A$11","v":"Normalspur Überland/Regionalverkehr"},"","B"]
[1,"SBB",250,"S4 (Allaman -) Lausanne - Palézieux",{"$f":"Übersetzungstabelle!$A$11","v":"Normalspur Überland/Regionalverkehr"},"","B"]
[1,"SBB",251,"S9 Lausanne - Palézieux - Payerne - Murten/Morat - Kerzers",{"$f":"Übersetzungstabelle!$A$11","v":"Normalspur Überland/Regionalverkehr"},"","B"]
[1,"SBB",251,"S8 Palézieux - Payerne",{"$f":"Übersetzungstabelle!$A$11","v":"Normalspur Überland/Regionalverkehr"},null,"B"]
[1,"SBB",252,"S30 Yverdon-les-Bains - Payerne - Fribourg",{"$f":"Übersetzungstabelle!$A$11","v":"Normalspur Überland/Regionalverkehr"},"","B"]
[1,"SBB",410,"Biel/Bienne -/ Oberdorf SO - Solothurn - Olten",{"$f":"Übersetzungstabelle!$A$11","v":"Normalspur Überland/Regionalverkehr"},"","B"]
[1,"SBB",411,"Solothurn - Moutier (- Biel/Bienne)",{"$f":"Übersetzungstabelle!$A$11","v":"Normalspur Überland/Regionalverkehr"},"","B"]
[1,"SBB",412,"Oensingen - Balsthal",{"$f":"Übersetzungstabelle!$A$11","v":"Normalspur Überland/Regionalverkehr"},"","B"]
[1,"SBB",500,"S3 Olten - Basel SBB (- Delémont - Porrentruy)",{"$f":"Übersetzungstabelle!$A$11","v":"Normalspur Überland/Regionalverkehr"},"","B"]
[1,"SBB",500,"S3 Olten - Basel SBB (Nachtangebot)",{"$f":"Übersetzungstabelle!$A$12","v":"Normalspur Schnellzüge"},"","B"]
[1,"SBB",503,"S9 Sissach - Läufelfingen - Olten",{"$f":"Übersetzungstabelle!$A$11","v":"Normalspur Überland/Regionalverkehr"},"","B"]
[1,"SBB",510,"RE Olten - Luzern",{"$f":"Übersetzungstabelle!$A$12","v":"Normalspur Schnellzüge"},"","B"]
[1,"SBB",510,"S1 Sursee - Luzern (- Baar)",{"$f":"Übersetzungstabelle!$A$11","v":"Normalspur Überland/Regionalverkehr"},"","B"]
[1,"SBB",510,"S8 Olten - Sursee",{"$f":"Übersetzungstabelle!$A$11","v":"Normalspur Überland/Regionalverkehr"},"","B"]
[1,"SBB",514,"S28 Lenzburg - Suhr - Zofingen",{"$f":"Übersetzungstabelle!$A$11","v":"Normalspur Überland/Regionalverkehr"},"","B"]
[1,"SBB",600,"S10 Airolo - Bellinzona - Lugano - Chiasso (- Albate)",{"$f":"Übersetzungstabelle!$A$11","v":"Normalspur Überland/Regionalverkehr"},"","B"]
[1,"SBB",600,"S2 Baar Lindenpark - Zug - Arth-Goldau - Erstfeld",{"$f":"Übersetzungstabelle!$A$11","v":"Normalspur Überland/Regionalverkehr"},"","B"]
[1,"SBB",600,"S3 Luzern - Arth-Goldau - Brunnen [- Erstfeld",{"$f":"Übersetzungstabelle!$A$11","v":"Normalspur Überland/Regionalverkehr"},"","B"]
[1,"SBB",630,"S20 Airolo -] Biasca - Bellinzona - Locarno",{"$f":"Übersetzungstabelle!$A$11","v":"Normalspur Überland/Regionalverkehr"},"","B"]
[1,"SBB",631,"S30 Bellinzona - Pino-Tr (- Gallarate)",{"$f":"Übersetzungstabelle!$A$11","v":"Normalspur Überland/Regionalverkehr"},"","B"]
[1,"SBB",650,"RE Olten - Aarau - Brugg AG - Baden - Wettingen [- Zürich HB",{"$f":"Übersetzungstabelle!$A$12","v":"Normalspur Schnellzüge"},"","B"]
[1,"SBB",650,"S29 Aarau - Wildegg - Turgi",{"$f":"Übersetzungstabelle!$A$11","v":"Normalspur Überland/Regionalverkehr"},"","B"]
[1,"SBB",650.1,"S11 (Seuzach -/ Wila -) Zürich HB - Dietikon - Aarau",{"$f":"Übersetzungstabelle!$A$10","v":"Normalspur Agglomeration (S-Bahnen) "},"","B"]
[1,"SBB",650.1,"S19 (Pfäffikon ZH -) Zürich HB - Dietikon [- Koblenz",{"$f":"Übersetzungstabelle!$A$10","v":"Normalspur Agglomeration (S-Bahnen) "},null,"B"]
[1,"SBB",651,"S9 Luzern - Hochdorf - Lenzburg",{"$f":"Übersetzungstabelle!$A$11","v":"Normalspur Überland/Regionalverkehr"},"","B"]
[1,"SBB",653,"S26 Olten - Aarau - Lenzburg - Wohlen - Muri AG - Rotkreuz",{"$f":"Übersetzungstabelle!$A$11","v":"Normalspur Überland/Regionalverkehr"},"","B"]
[1,"SBB",660,"S1 Baar - Zug - Luzern (- Sursee)",{"$f":"Übersetzungstabelle!$A$11","v":"Normalspur Überland/Regionalverkehr"},"","B"]
[1,"SBB",660,"Zug - Rotkreuz (Zusatzzug)",{"$f":"Übersetzungstabelle!$A$12","v":"Normalspur Schnellzüge"},null,"B"]
[1,"SBB",700,"S1 Basel SBB - Laufenburg /- Frick - Brugg AG (Nachtangebot)",{"$f":"Übersetzungstabelle!$A$12","v":"Normalspur Schnellzüge"},"","B"]
[1,"SBB",700,"S1 Basel SBB - Laufenburg /- Frick [- Brugg AG",{"$f":"Übersetzungstabelle!$A$10","v":"Normalspur Agglomeration (S-Bahnen) "},"","B"]
[1,"SBB",701,"S27 Wettingen -] Baden - Koblenz - Waldshut /- Bad Zurzach",{"$f":"Übersetzungstabelle!$A$11","v":"Normalspur Überland/Regionalverkehr"},"","B"]
[1,"SBB",703,"S6 (Uetikon -) Zürich HB - Regensdorf-Watt - Baden",{"$f":"Übersetzungstabelle!$A$10","v":"Normalspur Agglomeration (S-Bahnen) "},"","B"]
[1,"SBB",703,"S21 Zürich HB - Zürich Oerlikon - Regensdorf-Watt",{"$f":"Übersetzungstabelle!$A$10","v":"Normalspur Agglomeration (S-Bahnen) "},null,"B"]
[1,"SBB",710,"S Zürich HB - Wettingen (Zusatzzüge)",{"$f":"Übersetzungstabelle!$A$12","v":"Normalspur Schnellzüge"},"","B"]
[1,"SBB",710,"S12 (Winterthur -) Zürich HB - Brugg AG",{"$f":"Übersetzungstabelle!$A$10","v":"Normalspur Agglomeration (S-Bahnen) "},"","B"]
[1,"SBB",710,"SN1 (Winterthur -) Zürich HB - Brugg AG - Lenzburg - Aarau (Nachtangebot)",{"$f":"Übersetzungstabelle!$A$12","v":"Normalspur Schnellzüge"},"","B"]
[1,"SBB",711,"S14 (Hinwil -) Zürich HB - Affoltern a.A.",{"$f":"Übersetzungstabelle!$A$10","v":"Normalspur Agglomeration (S-Bahnen) "},"","B"]
[1,"SBB",711,"S5 (Rapperswil - Uster -) Zürich HB - Affoltern a.A. - Zug",{"$f":"Übersetzungstabelle!$A$10","v":"Normalspur Agglomeration (S-Bahnen) "},"","B"]
[1,"SBB",711,"SN5 (Pfäffikon SZ -) Zürich HB - Affoltern a.A. - Knonau (Nachtangebot)",{"$f":"Übersetzungstabelle!$A$12","v":"Normalspur Schnellzüge"},"","B"]
[1,"SBB",720,"S2 (Zürich Flughafen -) Zürich HB - Pfäffikon SZ - Ziegelbrücke [- Unterterzen",{"$f":"Übersetzungstabelle!$A$10","v":"Normalspur Agglomeration (S-Bahnen) "},"","B"]
[1,"SBB",720,"S8 (Winterthur -) Zürich HB - Pfäffikon SZ [- Rapperswil",{"$f":"Übersetzungstabelle!$A$10","v":"Normalspur Agglomeration (S-Bahnen) "},"","B"]
[1,"SBB",720,"SN8 Zürich HB - Pfäffikon SZ - Lachen (Nachtangebot)",{"$f":"Übersetzungstabelle!$A$12","v":"Normalspur Schnellzüge"},"","B"]
[1,"SBB",720,"S24 (Weinfelden /- Thayngen - Winterthur -) Zürich HB - Horgen Oberdorf - Zug",{"$f":"Übersetzungstabelle!$A$10","v":"Normalspur Agglomeration (S-Bahnen) "},null,"B"]
[1,"SBB",730,"S16 (Zürich Flughafen -) Zürich HB - Herrliberg-Feldmeilen [- Rapperswil",{"$f":"Übersetzungstabelle!$A$10","v":"Normalspur Agglomeration (S-Bahnen) "},"","B"]
[1,"SBB",730,"S6 (Baden - Regensdorf-Watt -) Zürich HB - Uetikon",{"$f":"Übersetzungstabelle!$A$10","v":"Normalspur Agglomeration (S-Bahnen) "},"","B"]
[1,"SBB",730,"S7 (Winterthur -) Zürich HB - Meilen - Rapperswil",{"$f":"Übersetzungstabelle!$A$10","v":"Normalspur Agglomeration (S-Bahnen) "},"","B"]
[1,"SBB",730,"S20 Stäfa - Zürich HB - Zürich Hardbrücke",{"$f":"Übersetzungstabelle!$A$10","v":"Normalspur Agglomeration (S-Bahnen) "},null,"B"]
[1,"SBB",736,"Ziegelbrücke - Glarus / Schwanden - Linthal (Bus)",{"$f":"Übersetzungstabelle!$A$20","v":"Bus Überland/Berg (ohne Tourismus)"},"","A"]
[1,"SBB",740,"S14 (Affoltern a.A. -) Zürich HB - Wetzikon - Hinwil",{"$f":"Übersetzungstabelle!$A$10","v":"Normalspur Agglomeration (S-Bahnen) "},"","B"]
[1,"SBB",740,"S15 (Niederweningen -) Zürich HB - Uster - Rapperswil",{"$f":"Übersetzungstabelle!$A$10","v":"Normalspur Agglomeration (S-Bahnen) "},"","B"]
[1,"SBB",740,"S5 (Zug - Affoltern a.A. -) Zürich HB - Uster - Rapperswil [- Pfäffikon SZ",{"$f":"Übersetzungstabelle!$A$10","v":"Normalspur Agglomeration (S-Bahnen) "},"","B"]
[1,"SBB",740,"S9 (Rafz -) Zürich HB - Uster",{"$f":"Übersetzungstabelle!$A$10","v":"Normalspur Agglomeration (S-Bahnen) "},"","B"]
[1,"SBB",740,"SN5 (Knonau -) Zürich HB - Uster - Rapperswil - Pfäffikon SZ (Nachtangebot)",{"$f":"Übersetzungstabelle!$A$12","v":"Normalspur Schnellzüge"},"","B"]
[1,"SBB",750,"S Zürich - Winterthur (- Schaffhausen /- Wil SG /- Romanshorn) (Zusatzzüge)",{"$f":"Übersetzungstabelle!$A$12","v":"Normalspur Schnellzüge"},"","B"]
[1,"SBB",750,"S12 (Brugg AG -) Zürich HB - Winterthur (- Schaffhausen /- Wil SG)",{"$f":"Übersetzungstabelle!$A$10","v":"Normalspur Agglomeration (S-Bahnen) "},"","B"]
[1,"SBB",750,"S16 (Herrliberg-Feldmeilen -) Zürich HB - Zürich Flughafen",{"$f":"Übersetzungstabelle!$A$10","v":"Normalspur Agglomeration (S-Bahnen) "},"","B"]
[1,"SBB",750,"S2 (Ziegelbrücke -) Zürich HB - Zürich Oerlikon - Zürich Flughafen",{"$f":"Übersetzungstabelle!$A$10","v":"Normalspur Agglomeration (S-Bahnen) "},"","B"]
[1,"SBB",750,"S7 (Rapperswil - Meilen -) Zürich HB - Kloten - Winterthur",{"$f":"Übersetzungstabelle!$A$10","v":"Normalspur Agglomeration (S-Bahnen) "},"","B"]
[1,"SBB",750,"S8 (Pfäffikon SZ -) Zürich HB - Wallisellen - Winterthur",{"$f":"Übersetzungstabelle!$A$10","v":"Normalspur Agglomeration (S-Bahnen) "},"","B"]
[1,"SBB",750,"SN1 (Aarau -) Zürich HB - Winterthur (Nachtangebot)",{"$f":"Übersetzungstabelle!$A$12","v":"Normalspur Schnellzüge"},"","B"]
[1,"SBB",750,"S24 (Zug -) Zürich HB - Zürich Flughafen - Winterthur (- Schaffhausen - Thayngen /- Weinfelden)",{"$f":"Übersetzungstabelle!$A$10","v":"Normalspur Agglomeration (S-Bahnen) "},null,"B"]
[1,"SBB",750,"S19 (Koblenz -) Zürich HB - Zürich Oerlikon - Effretikon [- Pfäffikon ZH",{"$f":"Übersetzungstabelle!$A$10","v":"Normalspur Agglomeration (S-Bahnen) "},null,"B"]
[1,"SBB",750,"S11 (Aarau -) Zürich HB - Zürich Stadelhofen - Winterthur - Seuzach /- Wila",{"$f":"Übersetzungstabelle!$A$10","v":"Normalspur Agglomeration (S-Bahnen) "},null,"B"]
[1,"SBB",753,"S3 (Bülach -) Zürich HB - Effretikon - Wetzikon",{"$f":"Übersetzungstabelle!$A$10","v":"Normalspur Agglomeration (S-Bahnen) "},"","B"]
[1,"SBB",760,"S15 (Rapperswil -) Zürich HB - Niederweningen",{"$f":"Übersetzungstabelle!$A$10","v":"Normalspur Agglomeration (S-Bahnen) "},"","B"]
[1,"SBB",760,"S9 (Uster -) Zürich HB - Rafz [- Schaffhausen",{"$f":"Übersetzungstabelle!$A$10","v":"Normalspur Agglomeration (S-Bahnen) "},null,"B"]
[1,"SBB",760,"S3 (Wetzikon -) Zürich HB - Zürich Hardbrücke [- Bülach",{"$f":"Übersetzungstabelle!$A$10","v":"Normalspur Agglomeration (S-Bahnen) "},null,"B"]
[1,"SBB",762,"S24 (Zug - Zürich HB -) Winterthur - Schaffhausen - Thayngen",{"$f":"Übersetzungstabelle!$A$10","v":"Normalspur Agglomeration (S-Bahnen) "},null,"B"]
[1,"SBB",762,"S12 (Brugg AG - Zürich HB -) Winterthur - Schaffhausen",{"$f":"Übersetzungstabelle!$A$10","v":"Normalspur Agglomeration (S-Bahnen) "},null,"B"]
[1,"SBB",800,"S-Bahn Zürich Dispo-Züge",{"$f":"Übersetzungstabelle!$A$12","v":"Normalspur Schnellzüge"},"","B"]
[1,"SBB",800,"S-Bahn Zürich Nachtangebot Grossanlässe",{"$f":"Übersetzungstabelle!$A$12","v":"Normalspur Schnellzüge"},"","B"]
[1,"SBB",840,"S23 (Zürich -) Winterthur - Frauenfeld - Weinfelden - Romanshorn (Zusatzzüge)",{"$f":"Übersetzungstabelle!$A$12","v":"Normalspur Schnellzüge"},"","B"]
[1,"SBB",840,"S24 (Zug - Zürich HB -) Winterthur - Weinfelden",{"$f":"Übersetzungstabelle!$A$10","v":"Normalspur Agglomeration (S-Bahnen) "},"","B"]
[1,"SBB",850,"S12 (Brugg AG - Zürich HB -) Winterthur - Wil SG",{"$f":"Übersetzungstabelle!$A$10","v":"Normalspur Agglomeration (S-Bahnen) "},null,"B"]
[1,"SBB","225/226","Biel/Bienne - Sonceboz-Sombeval - La-Chaux-de-Fonds /- Moutier (- Solothurn)",{"$f":"Übersetzungstabelle!$A$11","v":"Normalspur Überland/Regionalverkehr"},null,"B"]
[1,"SBB","450/650/652","S23 Langenthal - Olten - Aarau - Lenzburg - Brugg AG - Baden",{"$f":"Übersetzungstabelle!$A$11","v":"Normalspur Überland/Regionalverkehr"},"","B"]
[1,"SBB","600/630","S50 (Bellinzona -) Mendrisio - Gaggiolo Confine (- Malpensa Aeroporto)",{"$f":"Übersetzungstabelle!$A$11","v":"Normalspur Überland/Regionalverkehr"},null,"B"]
[1,"SBB","631/635","S40 (Albate-Camerlata -) Chiasso - Gaggiolo Confine (- Varese)",{"$f":"Übersetzungstabelle!$A$11","v":"Normalspur Überland/Regionalverkehr"},null,"B"]
[1,"SBB","650.1/653","S42 Zürich HB - Killwangen-Spreitenbach - Wohlen [- Muri AG",{"$f":"Übersetzungstabelle!$A$10","v":"Normalspur Agglomeration (S-Bahnen) "},"","B"]
[1,"SBB","652/653","S25 Brugg AG - Othmarsingen - Muri AG",{"$f":"Übersetzungstabelle!$A$11","v":"Normalspur Überland/Regionalverkehr"},null,"B"]
[1,"SBB","710/730","SN7 Bassersdorf - Zürich HB - Stäfa (Nachtangebot)",{"$f":"Übersetzungstabelle!$A$12","v":"Normalspur Schnellzüge"},"","B"]
[1,"SBB","720/736","S25 Zürich HB - Pfäffikon SZ - Linthal",{"$f":"Übersetzungstabelle!$A$10","v":"Normalspur Agglomeration (S-Bahnen) "},null,"B"]
[1,"SBB","730/703","SN6 Zürich Tiefenbrunnen - Zürich HB - Regensdorf-Watt (Nachtangebot)",{"$f":"Übersetzungstabelle!$A$12","v":"Normalspur Schnellzüge"},null,"B"]
[1,"SBB","740/760","SN9 Uster - Zürich HB - Bülach (Nachtangebot)",{"$f":"Übersetzungstabelle!$A$12","v":"Normalspur Schnellzüge"},null,"B"]
[1,"SBB","870/735/736","S6 Rapperswil - Ziegelbrücke - Schwanden [- Linthal",{"$f":"Übersetzungstabelle!$A$11","v":"Normalspur Überland/Regionalverkehr"},null,"B"]
[1,"SBB",100,"S3 (Allaman -) Lausanne - Villeneuve",{"$f":"Übersetzungstabelle!$A$11","v":"Normalspur Überland/Regionalverkehr"},null,"B"]
[3,"SBB-D",501,"S6 Basel SBB - Basel Bad. Bahnhof (- Zell)",{"$f":"Übersetzungstabelle!$A$10","v":"Normalspur Agglomeration (S-Bahnen) "},"","B"]
[3,"SBB-D",763,"(Erzingen -) Trasadingen - Schaffhausen",{"$f":"Übersetzungstabelle!$A$11","v":"Normalspur Überland/Regionalverkehr"},"","B"]
[7,"PAG",80.724000000000004,"724 Wil SG - Zuzwil - Niederbüren",{"$f":"Übersetzungstabelle!$A$20","v":"Bus Überland/Berg (ohne Tourismus)"},null,"B"]
[7,"PAG",10.055999999999999,"56 Bussigny - Vufflens-la-Ville - Mex VD",{"$f":"Übersetzungstabelle!$A$20","v":"Bus Überland/Berg (ohne Tourismus)"},null,"A"]
[7,"PAG",10.074999999999999,"75 Mézières - Servion - Les Cullayes - Savigny - Lausanne Sallaz",{"$f":"Übersetzungstabelle!$A$20","v":"Bus Überland/Berg (ohne Tourismus)"},null,"B"]
[7,"PAG",10.220000000000001,"220 Chernex - Chamby - Villard-sur-Chamby",{"$f":"Übersetzungstabelle!$A$20","v":"Bus Überland/Berg (ohne Tourismus)"},"","A"]
[7,"PAG",10.381,"381 Palézieux - Forel (Lavaux) - Cully",{"$f":"Übersetzungstabelle!$A$20","v":"Bus Überland/Berg (ohne Tourismus)"},null,"A"]
[7,"PAG",10.382,"382 Cully - Chexbres - Puidoux - Palézieux",{"$f":"Übersetzungstabelle!$A$20","v":"Bus Überland/Berg (ohne Tourismus)"},"","A"]
[7,"PAG",10.382999999999999,"383 Montpreveyres - Mézières - Carrouge - Vucherens - Syens",{"$f":"Übersetzungstabelle!$A$21","v":"Bus alternative Erschliessung"},"","A"]
[7,"PAG",10.385,"385 Servion - Oron-la-Ville - Palézieux - La Rogivue",{"$f":"Übersetzungstabelle!$A$20","v":"Bus Überland/Berg (ohne Tourismus)"},null,"A"]
[7,"PAG",10.41,"410 Cheseaux - Cossonay-Gare",{"$f":"Übersetzungstabelle!$A$20","v":"Bus Überland/Berg (ohne Tourismus)"},"","A"]
[7,"PAG",10.414,"414 Echallens - Bettens - Cossonay-Gare",{"$f":"Übersetzungstabelle!$A$20","v":"Bus Überland/Berg (ohne Tourismus)"},null,"A"]
[7,"PAG",10.42,"420 Echallens - Penthéréaz - Chavornay",{"$f":"Übersetzungstabelle!$A$20","v":"Bus Überland/Berg (ohne Tourismus)"},"","A"]
[7,"PAG",10.425000000000001,"425 Echallens - Bettens - Cheseaux",{"$f":"Übersetzungstabelle!$A$20","v":"Bus Überland/Berg (ohne Tourismus)"},null,"A"]
[7,"PAG",10.428000000000001,"428 Echallens - Thierrens",{"$f":"Übersetzungstabelle!$A$20","v":"Bus Überland/Berg (ohne Tourismus)"},"","A"]
[7,"PAG",10.43,"430 Bercher - Thierrens",{"$f":"Übersetzungstabelle!$A$20","v":"Bus Überland/Berg (ohne Tourismus)"},"","A"]
[7,"PAG",10.433999999999999,"434 Echallens - Polliez-Pittet",{"$f":"Übersetzungstabelle!$A$20","v":"Bus Überland/Berg (ohne Tourismus)"},null,"A"]
[7,"PAG",10.435,"435 Thierrens - Epalinges",{"$f":"Übersetzungstabelle!$A$20","v":"Bus Überland/Berg (ohne Tourismus)"},"","A"]
[7,"PAG",10.44,"440 Echallens - Moudon",{"$f":"Übersetzungstabelle!$A$20","v":"Bus Überland/Berg (ohne Tourismus)"},null,"A"]
[7,"PAG",10.445,"445 Moudon - Villars-le-Comte - Lucens",{"$f":"Übersetzungstabelle!$A$20","v":"Bus Überland/Berg (ohne Tourismus)"},null,"A"]
[7,"PAG",10.475,"475 Lucens - Chesalles - Moudon",{"$f":"Übersetzungstabelle!$A$20","v":"Bus Überland/Berg (ohne Tourismus)"},null,"A"]
[7,"PAG",10.62,"620 Yverdon-les-Bains - Orges - Grandson - Grandevent - Vuiteboeuf",{"$f":"Übersetzungstabelle!$A$20","v":"Bus Überland/Berg (ohne Tourismus)"},"","A"]
[7,"PAG",10.625,"625 Yverdon-les-Bains - Mauborget (- Couvet)",{"$f":"Übersetzungstabelle!$A$20","v":"Bus Überland/Berg (ohne Tourismus)"},"","A"]
[7,"PAG",10.63,"630 Yverdon-les-Bains - Grandson - Concise - Gorgier-St-Aubin NE",{"$f":"Übersetzungstabelle!$A$20","v":"Bus Überland/Berg (ohne Tourismus)"},"","A"]
[7,"PAG",10.635,"635 Yverdon-les-Bains - Grandson - Concise - Provence",{"$f":"Übersetzungstabelle!$A$20","v":"Bus Überland/Berg (ohne Tourismus)"},"","A"]
[7,"PAG",10.64,"640 Gorgier-St-Aubin - Provence",{"$f":"Übersetzungstabelle!$A$20","v":"Bus Überland/Berg (ohne Tourismus)"},"","A"]
[7,"PAG",10.65,"650 Yverdon-les-Bains - Yvonand - Démoret - Granges-près-Marnand",{"$f":"Übersetzungstabelle!$A$20","v":"Bus Überland/Berg (ohne Tourismus)"},"","A"]
[7,"PAG",10.66,"660 Yverdon-les-Bains - Thierrens - Moudon",{"$f":"Übersetzungstabelle!$A$20","v":"Bus Überland/Berg (ohne Tourismus)"},"","A"]
[7,"PAG",10.661,"661 Yverdon-les-Bains - Donneloye - Démoret - Thierrens",{"$f":"Übersetzungstabelle!$A$20","v":"Bus Überland/Berg (ohne Tourismus)"},null,"A"]
[7,"PAG",10.662000000000001,"662 Bercher - Cronay Moulin du Pont",{"$f":"Übersetzungstabelle!$A$20","v":"Bus Überland/Berg (ohne Tourismus)"},null,"A"]
[7,"PAG",10.664999999999999,"665 Yverdon-les-Bains - Ursins - Bercher",{"$f":"Übersetzungstabelle!$A$20","v":"Bus Überland/Berg (ohne Tourismus)"},"","A"]
[7,"PAG",10.67,"670 Yverdon-les-Bains - Echallens",{"$f":"Übersetzungstabelle!$A$20","v":"Bus Überland/Berg (ohne Tourismus)"},"","B"]
[7,"PAG",10.675000000000001,"675 Yverdon-les-Bains - Suchy - Chavornay",{"$f":"Übersetzungstabelle!$A$20","v":"Bus Überland/Berg (ohne Tourismus)"},"","A"]
[7,"PAG",10.68,"680 Yverdon-les-Bains - Orbe - Arnex /- Croy-Romainmôtier",{"$f":"Übersetzungstabelle!$A$20","v":"Bus Überland/Berg (ohne Tourismus)"},"","B"]
[7,"PAG",10.683,"683 Bofflens -] Croy-Romainmôtier - Vaulion",{"$f":"Übersetzungstabelle!$A$20","v":"Bus Überland/Berg (ohne Tourismus)"},"","A"]
[7,"PAG",10.685,"685 Orbe - Ballaigues - Vallorbe",{"$f":"Übersetzungstabelle!$A$20","v":"Bus Überland/Berg (ohne Tourismus)"},"","A"]
[7,"PAG",10.686,"686 Baulmes - Orbe",{"$f":"Übersetzungstabelle!$A$20","v":"Bus Überland/Berg (ohne Tourismus)"},"","A"]
[7,"PAG",10.72,"720 Allaman - Aubonne - Gimel - St-George",{"$f":"Übersetzungstabelle!$A$20","v":"Bus Überland/Berg (ohne Tourismus)"},"","B"]
[7,"PAG",10.721,"721 Rolle - Aubonne - Allaman /- Signal-de-Bougy",{"$f":"Übersetzungstabelle!$A$20","v":"Bus Überland/Berg (ohne Tourismus)"},"","A"]
[7,"PAG",10.722,"722 Aubonne - Lavigny - Etoy-gare",{"$f":"Übersetzungstabelle!$A$20","v":"Bus Überland/Berg (ohne Tourismus)"},"","B"]
[7,"PAG",10.725,"725 Allaman - Aubonne - Gimel - Bière",{"$f":"Übersetzungstabelle!$A$20","v":"Bus Überland/Berg (ohne Tourismus)"},null,"A"]
[7,"PAG",10.765000000000001,"765 Eclépens - La Sarraz - St-Loup",{"$f":"Übersetzungstabelle!$A$20","v":"Bus Überland/Berg (ohne Tourismus)"},null,"A"]
[7,"PAG",10.82,"820 Nyon - Begnins - St-George",{"$f":"Übersetzungstabelle!$A$20","v":"Bus Überland/Berg (ohne Tourismus)"},"","B"]
[7,"PAG",10.83,"830 Gland - Begnins - Burtigny - Le Vaud [- Bassins",{"$f":"Übersetzungstabelle!$A$20","v":"Bus Überland/Berg (ohne Tourismus)"},"","A"]
[7,"PAG",10.835000000000001,"835 Rolle - Gilly - Gland",{"$f":"Übersetzungstabelle!$A$20","v":"Bus Überland/Berg (ohne Tourismus)"},"","A"]
[7,"PAG",10.836,"836 Gland - Gilly-Bursinel - Rolle",{"$f":"Übersetzungstabelle!$A$20","v":"Bus Überland/Berg (ohne Tourismus)"},"","A"]
[7,"PAG",10.84,"840 Rolle - Gimel",{"$f":"Übersetzungstabelle!$A$20","v":"Bus Überland/Berg (ohne Tourismus)"},"","A"]
[7,"PAG",10.846,"846 Rolle - Perroy - Féchy - Allaman",{"$f":"Übersetzungstabelle!$A$20","v":"Bus Überland/Berg (ohne Tourismus)"},"","B"]
[7,"PAG",12.064,"64 Les Neyres - Monthey - Collombey",{"$f":"Übersetzungstabelle!$A$20","v":"Bus Überland/Berg (ohne Tourismus)"},"","A"]
[7,"PAG",12.131,"131 Vouvry - Miex",{"$f":"Übersetzungstabelle!$A$20","v":"Bus Überland/Berg (ohne Tourismus)"},"","A"]
[7,"PAG",12.143000000000001,"143 Aigle - Corbeyrier Vers la Doey [- Luan",{"$f":"Übersetzungstabelle!$A$20","v":"Bus Überland/Berg (ohne Tourismus)"},"","A"]
[7,"PAG",12.145,"145 Ollon - Panex - Plambuit",{"$f":"Übersetzungstabelle!$A$20","v":"Bus Überland/Berg (ohne Tourismus)"},"","A"]
[7,"PAG",12.151999999999999,"152 Bex - Les Plans-sur-Bex",{"$f":"Übersetzungstabelle!$A$20","v":"Bus Überland/Berg (ohne Tourismus)"},"","A"]
[7,"PAG",12.153,"153 Bex - Fenalet-sur-Bex",{"$f":"Übersetzungstabelle!$A$20","v":"Bus Überland/Berg (ohne Tourismus)"},"","A"]
[7,"PAG",12.170999999999999,"171 Le Sépey - Leysin",{"$f":"Übersetzungstabelle!$A$20","v":"Bus Überland/Berg (ohne Tourismus)"},"","A"]
[7,"PAG",12.172000000000001,"172 Le Sépey - La Forclaz VD",{"$f":"Übersetzungstabelle!$A$20","v":"Bus Überland/Berg (ohne Tourismus)"},"","A"]
[7,"PAG",12.173,"173 Le Sépey - Col-des-Mosses",{"$f":"Übersetzungstabelle!$A$20","v":"Bus Überland/Berg (ohne Tourismus)"},"","A"]
[7,"PAG",12.173999999999999,"174 Château-d'Oex - Col-des-Mosses",{"$f":"Übersetzungstabelle!$A$20","v":"Bus Überland/Berg (ohne Tourismus)"},"","A"]
[7,"PAG",12.18,"180 (Schönried -) Gstaad - Col du Pillon - Les Diablerets",{"$f":"Übersetzungstabelle!$A$20","v":"Bus Überland/Berg (ohne Tourismus)"},{"$f":"Übersetzungstabelle!$A$22","v":"Bus Touristische Angebote"},"B"]
[7,"PAG",12.180999999999999,"181 Gstaad - Lauenen (- Lauenensee)",{"$f":"Übersetzungstabelle!$A$20","v":"Bus Überland/Berg (ohne Tourismus)"},{"$f":"Übersetzungstabelle!$A$22","v":"Bus Touristische Angebote"},"A"]
[7,"PAG",12.182,"182 Gstaad - Turbach [- Rotengraben",{"$f":"Übersetzungstabelle!$A$20","v":"Bus Überland/Berg (ohne Tourismus)"},"","A"]
[7,"PAG",12.191000000000001,"191 St-Maurice - Vérossaz La Doey",{"$f":"Übersetzungstabelle!$A$20","v":"Bus Überland/Berg (ohne Tourismus)"},"","A"]
[7,"PAG",12.192,"192 St-Maurice - Lavey-les-Bains",{"$f":"Übersetzungstabelle!$A$20","v":"Bus Überland/Berg (ohne Tourismus)"},"","A"]
[7,"PAG",12.193,"193 St-Maurice - Mex",{"$f":"Übersetzungstabelle!$A$20","v":"Bus Überland/Berg (ohne Tourismus)"},"","A"]
[7,"PAG",12.212999999999999,"213 Martigny - Trient - Le Châtelard VS Frontière",{"$f":"Übersetzungstabelle!$A$20","v":"Bus Überland/Berg (ohne Tourismus)"},{"$f":"Übersetzungstabelle!$A$22","v":"Bus Touristische Angebote"},"A"]
[7,"PAG",12.214,"214 Martigny - Ravoire",{"$f":"Übersetzungstabelle!$A$20","v":"Bus Überland/Berg (ohne Tourismus)"},"","A"]
[7,"PAG",12.215,"215 Martigny - Chemin (- Col-des-Planches)",{"$f":"Übersetzungstabelle!$A$20","v":"Bus Überland/Berg (ohne Tourismus)"},"","A"]
[7,"PAG",12.22,"220 Evionnaz - Collonges - Dorénaz - Martigny",{"$f":"Übersetzungstabelle!$A$20","v":"Bus Überland/Berg (ohne Tourismus)"},"","A"]
[7,"PAG",12.242000000000001,"242 Sembrancher - Levron",{"$f":"Übersetzungstabelle!$A$20","v":"Bus Überland/Berg (ohne Tourismus)"},"","A"]
[7,"PAG",12.250999999999999,"251 Le Châble - Verbier",{"$f":"Übersetzungstabelle!$A$20","v":"Bus Überland/Berg (ohne Tourismus)"},{"$f":"Übersetzungstabelle!$A$22","v":"Bus Touristische Angebote"},"A"]
[7,"PAG",12.252000000000001,"252 Le Châble - Bruson (- La Moay)",{"$f":"Übersetzungstabelle!$A$20","v":"Bus Überland/Berg (ohne Tourismus)"},{"$f":"Übersetzungstabelle!$A$22","v":"Bus Touristische Angebote"},"A"]
[7,"PAG",12.253,"253/254 Le Châble - Lourtier /- Sarreyer - Fionnay - Mauvoisin",{"$f":"Übersetzungstabelle!$A$20","v":"Bus Überland/Berg (ohne Tourismus)"},{"$f":"Übersetzungstabelle!$A$22","v":"Bus Touristische Angebote"},"A"]
[7,"PAG",12.311,"311 Sion - Leytron - Saillon - Martigny",{"$f":"Übersetzungstabelle!$A$19","v":"Bus Agglomerationsverkehr"},"","B"]
[7,"PAG",12.311999999999999,"312 Leytron - Ovronnaz",{"$f":"Übersetzungstabelle!$A$20","v":"Bus Überland/Berg (ohne Tourismus)"},"","A"]
[7,"PAG",12.314,"314 Chamoson - Les Vérines - Mayens-de-Chamoson - Ovronnaz",{"$f":"Übersetzungstabelle!$A$20","v":"Bus Überland/Berg (ohne Tourismus)"},"","A"]
[7,"PAG",12.331,"331 Sion - Erde - Aven - Daillon",{"$f":"Übersetzungstabelle!$A$20","v":"Bus Überland/Berg (ohne Tourismus)"},"","A"]
[7,"PAG",12.340999999999999,"341 Sion - St-Germain - Chandolin - Monteiller - Drône",{"$f":"Übersetzungstabelle!$A$20","v":"Bus Überland/Berg (ohne Tourismus)"},"","B"]
[7,"PAG",12.342000000000001,"342 Sion - Savièse - Grimisuat - Arbaz - Anzère",{"$f":"Übersetzungstabelle!$A$20","v":"Bus Überland/Berg (ohne Tourismus)"},{"$f":"Übersetzungstabelle!$A$22","v":"Bus Touristische Angebote"},"A"]
[7,"PAG",12.343,"343 St-Germain - Chandolin-près-Savièse - Mayens-de-la-Zour",{"$f":"Übersetzungstabelle!$A$20","v":"Bus Überland/Berg (ohne Tourismus)"},"","A"]
[7,"PAG",12.351000000000001,"351 Sion - Ayent - Anzère",{"$f":"Übersetzungstabelle!$A$20","v":"Bus Überland/Berg (ohne Tourismus)"},"","A"]
[7,"PAG",12.353,"353 Sion - Ayent - Crans-sur-Sierre",{"$f":"Übersetzungstabelle!$A$20","v":"Bus Überland/Berg (ohne Tourismus)"},{"$f":"Übersetzungstabelle!$A$22","v":"Bus Touristische Angebote"},"A"]
[7,"PAG",12.353999999999999,"354 Sion - Signèse - Ayent St-Romain",{"$f":"Übersetzungstabelle!$A$20","v":"Bus Überland/Berg (ohne Tourismus)"},"","A"]
[7,"PAG",12.361000000000001,"361 Sion - Aproz - Condémines /- Basse-Nendaz",{"$f":"Übersetzungstabelle!$A$20","v":"Bus Überland/Berg (ohne Tourismus)"},"","A"]
[7,"PAG",12.362,"362 Sion - Haute-Nendaz (- Siviez)",{"$f":"Übersetzungstabelle!$A$20","v":"Bus Überland/Berg (ohne Tourismus)"},{"$f":"Übersetzungstabelle!$A$22","v":"Bus Touristische Angebote"},"B"]
[7,"PAG",12.363,"363 Sion - Veysonnaz",{"$f":"Übersetzungstabelle!$A$20","v":"Bus Überland/Berg (ohne Tourismus)"},{"$f":"Übersetzungstabelle!$A$22","v":"Bus Touristische Angebote"},"A"]
[7,"PAG",12.364000000000001,"364 Sion - les Mayens-de-Sion - Mayens-de-l'Ours",{"$f":"Übersetzungstabelle!$A$20","v":"Bus Überland/Berg (ohne Tourismus)"},{"$f":"Übersetzungstabelle!$A$22","v":"Bus Touristische Angebote"},"A"]
[7,"PAG",12.382999999999999,"383 Les Haudères - La Forclaz (- Ferpècle)",{"$f":"Übersetzungstabelle!$A$20","v":"Bus Überland/Berg (ohne Tourismus)"},{"$f":"Übersetzungstabelle!$A$22","v":"Bus Touristische Angebote"},"A"]
[7,"PAG",12.388,"388 Sion - Vernamiège - Nax (- Mayens de Nax)",{"$f":"Übersetzungstabelle!$A$20","v":"Bus Überland/Berg (ohne Tourismus)"},{"$f":"Übersetzungstabelle!$A$22","v":"Bus Touristische Angebote"},"A"]
[7,"PAG",12.391,"391 Riddes - Leytron",{"$f":"Übersetzungstabelle!$A$20","v":"Bus Überland/Berg (ohne Tourismus)"},"","A"]
[7,"PAG",12.391999999999999,"392 Isérables - La Tzoumaz",{"$f":"Übersetzungstabelle!$A$20","v":"Bus Überland/Berg (ohne Tourismus)"},null,"A"]
[7,"PAG",12.428000000000001,"428 Granges - Lens",{"$f":"Übersetzungstabelle!$A$20","v":"Bus Überland/Berg (ohne Tourismus)"},"","A"]
[7,"PAG",12.441000000000001,"441 Sierre - Chippis - Chalais (- Vercorin)",{"$f":"Übersetzungstabelle!$A$20","v":"Bus Überland/Berg (ohne Tourismus)"},{"$f":"Übersetzungstabelle!$A$22","v":"Bus Touristische Angebote"},"A"]
[7,"PAG",12.452,"452 Vissoie - Grimentz (- Moiry)",{"$f":"Übersetzungstabelle!$A$20","v":"Bus Überland/Berg (ohne Tourismus)"},{"$f":"Übersetzungstabelle!$A$22","v":"Bus Touristische Angebote"},"A"]
[7,"PAG",12.454000000000001,"454 Vissoie - St-Luc - Chandolin",{"$f":"Übersetzungstabelle!$A$20","v":"Bus Überland/Berg (ohne Tourismus)"},{"$f":"Übersetzungstabelle!$A$22","v":"Bus Touristische Angebote"},"A"]
[7,"PAG",12.510999999999999,"511 Brig - Visp - Stalden-Saas - Saas Fee",{"$f":"Übersetzungstabelle!$A$20","v":"Bus Überland/Berg (ohne Tourismus)"},{"$f":"Übersetzungstabelle!$A$22","v":"Bus Touristische Angebote"},"B"]
[7,"PAG",12.513,"513 Saas Grund - Saas Almagell (- Mattmark)",{"$f":"Übersetzungstabelle!$A$20","v":"Bus Überland/Berg (ohne Tourismus)"},{"$f":"Übersetzungstabelle!$A$22","v":"Bus Touristische Angebote"},"B"]
[7,"PAG",12.518000000000001,"518 Stalden-Saas - Furen (- Z'Nivu - Moosalp)",{"$f":"Übersetzungstabelle!$A$20","v":"Bus Überland/Berg (ohne Tourismus)"},{"$f":"Übersetzungstabelle!$A$22","v":"Bus Touristische Angebote"},"A"]
[7,"PAG",12.522,"522 Visp - Ausserberg",{"$f":"Übersetzungstabelle!$A$20","v":"Bus Überland/Berg (ohne Tourismus)"},"","A"]
[7,"PAG",12.523,"523 Visp - Eggerberg - Eggerberg Eggen (- Finnen)",{"$f":"Übersetzungstabelle!$A$20","v":"Bus Überland/Berg (ohne Tourismus)"},{"$f":"Übersetzungstabelle!$A$22","v":"Bus Touristische Angebote"},"A"]
[7,"PAG",12.523999999999999,"524 Visp - Visperterminen",{"$f":"Übersetzungstabelle!$A$20","v":"Bus Überland/Berg (ohne Tourismus)"},"","A"]
[7,"PAG",12.526999999999999,"527 Visp - Zeneggen (- Egga)",{"$f":"Übersetzungstabelle!$A$20","v":"Bus Überland/Berg (ohne Tourismus)"},{"$f":"Übersetzungstabelle!$A$22","v":"Bus Touristische Angebote"},"A"]
[7,"PAG",12.528,"528 Visp - Bürchen (- Moosalp)",{"$f":"Übersetzungstabelle!$A$20","v":"Bus Überland/Berg (ohne Tourismus)"},{"$f":"Übersetzungstabelle!$A$22","v":"Bus Touristische Angebote"},"A"]
[7,"PAG",12.590999999999999,"591 Gampel-Steg - Goppenstein - Blatten (- Fafleralp)",{"$f":"Übersetzungstabelle!$A$20","v":"Bus Überland/Berg (ohne Tourismus)"},{"$f":"Übersetzungstabelle!$A$22","v":"Bus Touristische Angebote"},"A"]
[7,"PAG",12.590999999999999,"591 Gampel-Steg - Hohtenn",{"$f":"Übersetzungstabelle!$A$20","v":"Bus Überland/Berg (ohne Tourismus)"},{"$f":"Übersetzungstabelle!$A$22","v":"Bus Touristische Angebote"},"A"]
[7,"PAG",12.611000000000001,"611 Oberbitsch - Bitsch",{"$f":"Übersetzungstabelle!$A$20","v":"Bus Überland/Berg (ohne Tourismus)"},"","A"]
[7,"PAG",12.622999999999999,"623 Brig - Naters - Birgisch - Mund",{"$f":"Übersetzungstabelle!$A$20","v":"Bus Überland/Berg (ohne Tourismus)"},"","A"]
[7,"PAG",12.624000000000001,"624 Brig - Naters - Blatten bei Naters",{"$f":"Übersetzungstabelle!$A$20","v":"Bus Überland/Berg (ohne Tourismus)"},{"$f":"Übersetzungstabelle!$A$22","v":"Bus Touristische Angebote"},"A"]
[7,"PAG",12.631,"631 Brig - Simplon - Gondo - Iselle (- Domodossola)",{"$f":"Übersetzungstabelle!$A$20","v":"Bus Überland/Berg (ohne Tourismus)"},{"$f":"Übersetzungstabelle!$A$22","v":"Bus Touristische Angebote"},"A"]
[7,"PAG",12.632,"632 Brig - Termen - Rosswald Talstation",{"$f":"Übersetzungstabelle!$A$20","v":"Bus Überland/Berg (ohne Tourismus)"},"","B"]
[7,"PAG",20.120999999999999,"121 Düdingen - Bösingen - Laupen",{"$f":"Übersetzungstabelle!$A$20","v":"Bus Überland/Berg (ohne Tourismus)"},"","B"]
[7,"PAG",20.122,"122 Kerzers - Gurmels - Düdingen",{"$f":"Übersetzungstabelle!$A$20","v":"Bus Überland/Berg (ohne Tourismus)"},"","A"]
[7,"PAG",20.29,"290 La Valsainte - Cerniat - Charmey",{"$f":"Übersetzungstabelle!$A$21","v":"Bus alternative Erschliessung"},"","A"]
[7,"PAG",20.334,"334 Cousset - Montagny - Mannens",{"$f":"Übersetzungstabelle!$A$20","v":"Bus Überland/Berg (ohne Tourismus)"},"","A"]
[7,"PAG",20.335000000000001,"335 Cottens - Estavayer-le-Gibloux - Rueyres-St-Laurent",{"$f":"Übersetzungstabelle!$A$20","v":"Bus Überland/Berg (ohne Tourismus)"},"","A"]
[7,"PAG",20.45,"450 Oron-la-Ville - La Verrerie",{"$f":"Übersetzungstabelle!$A$20","v":"Bus Überland/Berg (ohne Tourismus)"},"","A"]
[7,"PAG",20.462,"462 Romont FR - Sédeilles - Rosé - Avry Centre",{"$f":"Übersetzungstabelle!$A$20","v":"Bus Überland/Berg (ohne Tourismus)"},"","A"]
[7,"PAG",20.535,"535 Avenches - Salavaux - Cudrefin - Ins",{"$f":"Übersetzungstabelle!$A$20","v":"Bus Überland/Berg (ohne Tourismus)"},"","A"]
[7,"PAG",20.54,"540 Avenches - Villars-le-Grand - Cudrefin",{"$f":"Übersetzungstabelle!$A$20","v":"Bus Überland/Berg (ohne Tourismus)"},null,"A"]
[7,"PAG",20.547000000000001,"547 Düdingen - Gurmels - Murten",{"$f":"Übersetzungstabelle!$A$20","v":"Bus Überland/Berg (ohne Tourismus)"},"","A"]
[7,"PAG",20.56,"560 Payerne - Grandcour - Chevroux",{"$f":"Übersetzungstabelle!$A$20","v":"Bus Überland/Berg (ohne Tourismus)"},"","A"]
[7,"PAG",20.561,"561 Romont FR - Sédeilles - Payerne",{"$f":"Übersetzungstabelle!$A$20","v":"Bus Überland/Berg (ohne Tourismus)"},"","A"]
[7,"PAG",20.562000000000001,"562 Payerne - Combremont-le-Petit - Thierrens",{"$f":"Übersetzungstabelle!$A$20","v":"Bus Überland/Berg (ohne Tourismus)"},"","A"]
[7,"PAG",21.132000000000001,"132 La Neuveville - Le Landeron - Plateau de Diesse (- Chasseral)",{"$f":"Übersetzungstabelle!$A$20","v":"Bus Überland/Berg (ohne Tourismus)"},"","B"]
[7,"PAG",21.370999999999999,"371 La Chaux-de-Fonds - Les Planchettes (- Biaufond)",{"$f":"Übersetzungstabelle!$A$20","v":"Bus Überland/Berg (ohne Tourismus)"},"","A"]
[7,"PAG",21.38,"380 Le Locle - La Tourne - Neuchâtel",{"$f":"Übersetzungstabelle!$A$20","v":"Bus Überland/Berg (ohne Tourismus)"},"","A"]
[7,"PAG",21.381,"381 Le Locle - La Brévine",{"$f":"Übersetzungstabelle!$A$20","v":"Bus Überland/Berg (ohne Tourismus)"},"","A"]
[7,"PAG",21.382999999999999,"383 Fleurier - La Brévine",{"$f":"Übersetzungstabelle!$A$20","v":"Bus Überland/Berg (ohne Tourismus)"},"","A"]
[7,"PAG",21.391999999999999,"392 Buttes - La Côte-aux-Fées - Ste-Croix",{"$f":"Übersetzungstabelle!$A$20","v":"Bus Überland/Berg (ohne Tourismus)"},"","A"]
[7,"PAG",21.423999999999999,"424 Rochefort - Montmollin - Boudevilier - Cernier",{"$f":"Übersetzungstabelle!$A$20","v":"Bus Überland/Berg (ohne Tourismus)"},null,"A"]
[7,"PAG",22.074000000000002,"74 Biel/Bienne - Studen - Worben - Lyss",{"$f":"Übersetzungstabelle!$A$20","v":"Bus Überland/Berg (ohne Tourismus)"},{"$f":"Übersetzungstabelle!$A$19","v":"Bus Agglomerationsverkehr"},"A"]
[7,"PAG",22.085999999999999,"86 Biel/Bienne - Bellmund - Aarberg",{"$f":"Übersetzungstabelle!$A$20","v":"Bus Überland/Berg (ohne Tourismus)"},{"$f":"Übersetzungstabelle!$A$19","v":"Bus Agglomerationsverkehr"},"B"]
[7,"PAG",22.087,"87 Biel/Bienne - Bellmund - Merzligen - Jens - Biel/Bienne",{"$f":"Übersetzungstabelle!$A$19","v":"Bus Agglomerationsverkehr"},{"$f":"Übersetzungstabelle!$A$20","v":"Bus Überland/Berg (ohne Tourismus)"},"A"]
[7,"PAG",22.132000000000001,"132 Tramelan - Saignelégier - Goumois",{"$f":"Übersetzungstabelle!$A$20","v":"Bus Überland/Berg (ohne Tourismus)"},"","A"]
[7,"PAG",22.140999999999998,"141 Tavannes - Reconvilier - Bellelay - Lajoux JU [- Sornetan] - Les Genevez",{"$f":"Übersetzungstabelle!$A$20","v":"Bus Überland/Berg (ohne Tourismus)"},"","A"]
[7,"PAG",22.15,"50 Bassecourt - Courfaivre - Courtételle",{"$f":"Übersetzungstabelle!$A$20","v":"Bus Überland/Berg (ohne Tourismus)"},null,"A"]
[7,"PAG",22.151,"51 Bassecourt - Montavon",{"$f":"Übersetzungstabelle!$A$20","v":"Bus Überland/Berg (ohne Tourismus)"},"","B"]
[7,"PAG",22.152000000000001,"52 Bassecourt - Soulce",{"$f":"Übersetzungstabelle!$A$20","v":"Bus Überland/Berg (ohne Tourismus)"},"","A"]
[7,"PAG",22.161000000000001,"61 St-Ursanne - La Motte",{"$f":"Übersetzungstabelle!$A$20","v":"Bus Überland/Berg (ohne Tourismus)"},"","A"]
[7,"PAG",22.161999999999999,"62 St-Ursanne - Soubey (- Saignelégier)",{"$f":"Übersetzungstabelle!$A$20","v":"Bus Überland/Berg (ohne Tourismus)"},"","A"]
[7,"PAG",22.170999999999999,"71 Porrentruy - Hôpital - Bure Casernes",{"$f":"Übersetzungstabelle!$A$20","v":"Bus Überland/Berg (ohne Tourismus)"},"","B"]
[7,"PAG",22.172000000000001,"72 Porrentruy - Beurnevésin",{"$f":"Übersetzungstabelle!$A$20","v":"Bus Überland/Berg (ohne Tourismus)"},"","B"]
[7,"PAG",22.172999999999998,"73 Porrentruy -] Chevenez - Grandfontaine - Damvant",{"$f":"Übersetzungstabelle!$A$20","v":"Bus Überland/Berg (ohne Tourismus)"},"","B"]
[7,"PAG",22.173999999999999,"74 Porrentruy - Bressaucourt",{"$f":"Übersetzungstabelle!$A$20","v":"Bus Überland/Berg (ohne Tourismus)"},"","B"]
[7,"PAG",22.175000000000001,"75 Porrentruy - Villars-sur-Fontenais",{"$f":"Übersetzungstabelle!$A$20","v":"Bus Überland/Berg (ohne Tourismus)"},"","B"]
[7,"PAG",22.175999999999998,"76 Porrentruy - Courgenay - Cornol - Charmoille",{"$f":"Übersetzungstabelle!$A$20","v":"Bus Überland/Berg (ohne Tourismus)"},"","B"]
[7,"PAG",22.177,"77 Porrentruy - Alle - Charmoille",{"$f":"Übersetzungstabelle!$A$20","v":"Bus Überland/Berg (ohne Tourismus)"},"","B"]
[7,"PAG",22.178000000000001,"78 Porrentruy - Chevenez - Fahy",{"$f":"Übersetzungstabelle!$A$20","v":"Bus Überland/Berg (ohne Tourismus)"},null,"A"]
[7,"PAG",22.190999999999999,"91 Montignez - Courtemaîche",{"$f":"Übersetzungstabelle!$A$20","v":"Bus Überland/Berg (ohne Tourismus)"},"","A"]
[7,"PAG",22.210999999999999,"11 Delémont - Courrendlin - Moutier",{"$f":"Übersetzungstabelle!$A$20","v":"Bus Überland/Berg (ohne Tourismus)"},"","B"]
[7,"PAG",22.210999999999999,"18 Delémont - Courrendlin - Rebeuvelier",{"$f":"Übersetzungstabelle!$A$20","v":"Bus Überland/Berg (ohne Tourismus)"},"","A"]
[7,"PAG",22.212,"12 Delémont - Develier - Charmoille (- Alle)",{"$f":"Übersetzungstabelle!$A$20","v":"Bus Überland/Berg (ohne Tourismus)"},"","B"]
[7,"PAG",22.213000000000001,"13 Delémont - Soyhières - Pleigne",{"$f":"Übersetzungstabelle!$A$20","v":"Bus Überland/Berg (ohne Tourismus)"},"","B"]
[7,"PAG",22.213000000000001,"14 Delémont - Soyhières - Roggenburg",{"$f":"Übersetzungstabelle!$A$20","v":"Bus Überland/Berg (ohne Tourismus)"},"","B"]
[7,"PAG",22.215,"15 Delémont - Courtételle - Courfaivre",{"$f":"Übersetzungstabelle!$A$20","v":"Bus Überland/Berg (ohne Tourismus)"},null,"B"]
[7,"PAG",22.216000000000001,"16 Delémont - Châtillon JU",{"$f":"Übersetzungstabelle!$A$20","v":"Bus Überland/Berg (ohne Tourismus)"},"","B"]
[7,"PAG",22.216999999999999,"17 Delémont - Montsevelier",{"$f":"Übersetzungstabelle!$A$20","v":"Bus Überland/Berg (ohne Tourismus)"},"","B"]
[7,"PAG",22.22,"20 Vicques - Vermes",{"$f":"Übersetzungstabelle!$A$20","v":"Bus Überland/Berg (ohne Tourismus)"},"","A"]
[7,"PAG",22.231000000000002,"231 Moutier - Souboz - Bellelay",{"$f":"Übersetzungstabelle!$A$20","v":"Bus Überland/Berg (ohne Tourismus)"},"","A"]
[7,"PAG",22.231999999999999,"232 Moutier - Belprahon [- Corcelles BE",{"$f":"Übersetzungstabelle!$A$20","v":"Bus Überland/Berg (ohne Tourismus)"},"","A"]
[7,"PAG",30.1,"100 Bern - Wohlen - Detligen - Aarberg",{"$f":"Übersetzungstabelle!$A$20","v":"Bus Überland/Berg (ohne Tourismus)"},{"$f":"Übersetzungstabelle!$A$19","v":"Bus Agglomerationsverkehr"},"A"]
[7,"PAG",30.100999999999999,"101 Bern - Kappelenring /- Schlossmatt - Bern",{"$f":"Übersetzungstabelle!$A$19","v":"Bus Agglomerationsverkehr"},"","B"]
[7,"PAG",30.102,"102 Bern - Uettligen - Säriswil",{"$f":"Übersetzungstabelle!$A$20","v":"Bus Überland/Berg (ohne Tourismus)"},{"$f":"Übersetzungstabelle!$A$19","v":"Bus Agglomerationsverkehr"},"A"]
[7,"PAG",30.103999999999999,"104 Bern - Meikirch - Wahlendorf",{"$f":"Übersetzungstabelle!$A$20","v":"Bus Überland/Berg (ohne Tourismus)"},{"$f":"Übersetzungstabelle!$A$19","v":"Bus Agglomerationsverkehr"},"A"]
[7,"PAG",30.105,"105 Bern - Meikirch - Seedorf - Lyss",{"$f":"Übersetzungstabelle!$A$20","v":"Bus Überland/Berg (ohne Tourismus)"},{"$f":"Übersetzungstabelle!$A$19","v":"Bus Agglomerationsverkehr"},"B"]
[7,"PAG",30.106000000000002,"106 Bern - Kirchlindach - Zollikofen",{"$f":"Übersetzungstabelle!$A$19","v":"Bus Agglomerationsverkehr"},"","A"]
[7,"PAG",30.106999999999999,"107 Bern - Wohlen - Uettligen - Zollikofen",{"$f":"Übersetzungstabelle!$A$19","v":"Bus Agglomerationsverkehr"},"","B"]
[7,"PAG",30.13,"130 Laupen -] Neuenegg - Thörishaus Dorf",{"$f":"Übersetzungstabelle!$A$20","v":"Bus Überland/Berg (ohne Tourismus)"},"","A"]
[7,"PAG",30.131,"131 Flamatt - Albligen",{"$f":"Übersetzungstabelle!$A$20","v":"Bus Überland/Berg (ohne Tourismus)"},"","A"]
[7,"PAG",30.164999999999999,"165 Münsingen - Wichtrach - Kirchdorf (- Kaufdorf)",{"$f":"Übersetzungstabelle!$A$20","v":"Bus Überland/Berg (ohne Tourismus)"},"","A"]
[7,"PAG",30.166,"166 Wichtrach - Kirchdorf - Gerzensee - Toffen",{"$f":"Übersetzungstabelle!$A$20","v":"Bus Überland/Berg (ohne Tourismus)"},null,"A"]
[7,"PAG",30.167000000000002,"167 Münsingen - Wichtrach - Oppligen - Oberdiessbach",{"$f":"Übersetzungstabelle!$A$20","v":"Bus Überland/Berg (ohne Tourismus)"},null,"B"]
[7,"PAG",30.321000000000002,"320 Riggisberg - Thurnen",{"$f":"Übersetzungstabelle!$A$20","v":"Bus Überland/Berg (ohne Tourismus)"},"","B"]
[7,"PAG",30.321000000000002,"321 Riggisberg - Toffen",{"$f":"Übersetzungstabelle!$A$20","v":"Bus Überland/Berg (ohne Tourismus)"},"","B"]
[7,"PAG",30.321999999999999,"322 Riggisberg - Rüeggisberg - Hinterfultigen",{"$f":"Übersetzungstabelle!$A$20","v":"Bus Überland/Berg (ohne Tourismus)"},"","A"]
[7,"PAG",30.34,"340 Wabern - Zimmerwald - Niedermuhlern",{"$f":"Übersetzungstabelle!$A$20","v":"Bus Überland/Berg (ohne Tourismus)"},"","A"]
[7,"PAG",30.361000000000001,"361 Aarberg - Aarberg Spital - Lyss",{"$f":"Übersetzungstabelle!$A$20","v":"Bus Überland/Berg (ohne Tourismus)"},"","B"]
[7,"PAG",30.364999999999998,"365 Aarberg - Seedorf",{"$f":"Übersetzungstabelle!$A$20","v":"Bus Überland/Berg (ohne Tourismus)"},"","B"]
[7,"PAG",30.451000000000001,"451 Hindelbank - Krauchtal - Bolligen",{"$f":"Übersetzungstabelle!$A$20","v":"Bus Überland/Berg (ohne Tourismus)"},"","A"]
[7,"PAG",30.472000000000001,"472 Lützelflüh -/ Moosegg - Arni - Biglen",{"$f":"Übersetzungstabelle!$A$20","v":"Bus Überland/Berg (ohne Tourismus)"},"","A"]
[7,"PAG",30.521000000000001,"521/522/524 Ins - Tschugg /- Vinelz - Erlach",{"$f":"Übersetzungstabelle!$A$20","v":"Bus Überland/Berg (ohne Tourismus)"},"","A"]
[7,"PAG",30.524999999999999,"525 Erlach - Vinelz - Lüscherz",{"$f":"Übersetzungstabelle!$A$20","v":"Bus Überland/Berg (ohne Tourismus)"},"","A"]
[7,"PAG",30.526,"526 Erlach - Gals - Le Landeron",{"$f":"Übersetzungstabelle!$A$20","v":"Bus Überland/Berg (ohne Tourismus)"},null,"A"]
[7,"PAG",30.541,"541 Kerzers - Golaten - Wileroltigen - Kerzers",{"$f":"Übersetzungstabelle!$A$20","v":"Bus Überland/Berg (ohne Tourismus)"},"","A"]
[7,"PAG",30.55,"550 Gümmenen - Laupen",{"$f":"Übersetzungstabelle!$A$20","v":"Bus Überland/Berg (ohne Tourismus)"},"","A"]
[7,"PAG",30.57,"570 Bern Brünnen - Frauenkappelen - Mühleberg",{"$f":"Übersetzungstabelle!$A$20","v":"Bus Überland/Berg (ohne Tourismus)"},"","A"]
[7,"PAG",30.611000000000001,"611 Schwarzenburg - Riggisberg",{"$f":"Übersetzungstabelle!$A$20","v":"Bus Überland/Berg (ohne Tourismus)"},"","A"]
[7,"PAG",30.611999999999998,"612 Schwarzenburg - Guggisberg - Schwarzenburg",{"$f":"Übersetzungstabelle!$A$20","v":"Bus Überland/Berg (ohne Tourismus)"},"","A"]
[7,"PAG",30.631,"631 Köniz - Oberbalm - Niedermuhlern - Riggisberg",{"$f":"Übersetzungstabelle!$A$20","v":"Bus Überland/Berg (ohne Tourismus)"},"","B"]
[7,"PAG",30.780999999999999,"781 Boll-Utzigen - Utzigen",{"$f":"Übersetzungstabelle!$A$20","v":"Bus Überland/Berg (ohne Tourismus)"},"","A"]
[7,"PAG",30.791,"791 Worb Dorf - Walkringen",{"$f":"Übersetzungstabelle!$A$20","v":"Bus Überland/Berg (ohne Tourismus)"},"","A"]
[7,"PAG",30.792000000000002,"792 Worb Dorf - Biglen",{"$f":"Übersetzungstabelle!$A$20","v":"Bus Überland/Berg (ohne Tourismus)"},"","A"]
[7,"PAG",30.792999999999999,"793 Worb Dorf - Grosshöchstetten",{"$f":"Übersetzungstabelle!$A$20","v":"Bus Überland/Berg (ohne Tourismus)"},"","B"]
[7,"PAG",30.795000000000002,"795 Worb Dorf - Rubigen",{"$f":"Übersetzungstabelle!$A$20","v":"Bus Überland/Berg (ohne Tourismus)"},"","B"]
[7,"PAG",30.882000000000001,"882 Bätterkinden - Oberramsern - Messen",{"$f":"Übersetzungstabelle!$A$20","v":"Bus Überland/Berg (ohne Tourismus)"},"","A"]
[7,"PAG",30.885000000000002,"885 Lohn-Lüterkofen - Mühledorf - Gächliwil - Schnottwil",{"$f":"Übersetzungstabelle!$A$20","v":"Bus Überland/Berg (ohne Tourismus)"},"","A"]
[7,"PAG",30.885999999999999,"886 Lohn-Lüterkofen - Bibern - Gächliwil - Schnottwil",{"$f":"Übersetzungstabelle!$A$20","v":"Bus Überland/Berg (ohne Tourismus)"},"","A"]
[7,"PAG",31.056000000000001,"56 Riggisberg - Burgistein - Wattenwil",{"$f":"Übersetzungstabelle!$A$20","v":"Bus Überland/Berg (ohne Tourismus)"},"","A"]
[7,"PAG",31.056999999999999,"57 Gurzelen - Uetendorf",{"$f":"Übersetzungstabelle!$A$20","v":"Bus Überland/Berg (ohne Tourismus)"},"","A"]
[7,"PAG",31.061,"61/62/63 Spiez - Spiezwiler /- Krattigen - Aeschi b. Spiez - Aeschiried",{"$f":"Übersetzungstabelle!$A$20","v":"Bus Überland/Berg (ohne Tourismus)"},"","A"]
[7,"PAG",31.065999999999999,"66 Spiez - Emdthal - Aeschi b. Spiez",{"$f":"Übersetzungstabelle!$A$20","v":"Bus Überland/Berg (ohne Tourismus)"},null,"A"]
[7,"PAG",31.100999999999999,"101 Interlaken West - Beatenberg",{"$f":"Übersetzungstabelle!$A$20","v":"Bus Überland/Berg (ohne Tourismus)"},"","A"]
[7,"PAG",31.102,"102 Interlaken West -] Interlaken Ost - Ringgenberg",{"$f":"Übersetzungstabelle!$A$20","v":"Bus Überland/Berg (ohne Tourismus)"},{"$f":"Übersetzungstabelle!$A$19","v":"Bus Agglomerationsverkehr"},"A"]
[7,"PAG",31.103000000000002,"103 Interlaken West - Interlaken Ost - Bönigen - Iseltwald",{"$f":"Übersetzungstabelle!$A$20","v":"Bus Überland/Berg (ohne Tourismus)"},{"$f":"Übersetzungstabelle!$A$19","v":"Bus Agglomerationsverkehr"},"A"]
[7,"PAG",31.105,"105 (Interlaken Ost -) Interlaken West - Wilderswil - Gsteigwiler",{"$f":"Übersetzungstabelle!$A$20","v":"Bus Überland/Berg (ohne Tourismus)"},{"$f":"Übersetzungstabelle!$A$19","v":"Bus Agglomerationsverkehr"},"A"]
[7,"PAG",31.106000000000002,"106 Interlaken West - Habkern",{"$f":"Übersetzungstabelle!$A$20","v":"Bus Überland/Berg (ohne Tourismus)"},"","A"]
[7,"PAG",31.140999999999998,"141 Lauterbrunnen - Stechelberg",{"$f":"Übersetzungstabelle!$A$20","v":"Bus Überland/Berg (ohne Tourismus)"},{"$f":"Übersetzungstabelle!$A$22","v":"Bus Touristische Angebote"},"B"]
[7,"PAG",31.151,"151 Brienz - Brienzwiler - Brünig - Hasliberg Reuti",{"$f":"Übersetzungstabelle!$A$20","v":"Bus Überland/Berg (ohne Tourismus)"},{"$f":"Übersetzungstabelle!$A$22","v":"Bus Touristische Angebote"},"A"]
[7,"PAG",31.170999999999999,"171 (Meiringen -) Innertkirchen - Guttannen",{"$f":"Übersetzungstabelle!$A$20","v":"Bus Überland/Berg (ohne Tourismus)"},{"$f":"Übersetzungstabelle!$A$22","v":"Bus Touristische Angebote"},"A"]
[7,"PAG",31.172000000000001,"172 Innertkirchen - Gadmen",{"$f":"Übersetzungstabelle!$A$20","v":"Bus Überland/Berg (ohne Tourismus)"},{"$f":"Übersetzungstabelle!$A$22","v":"Bus Touristische Angebote"},"A"]
[7,"PAG",31.173999999999999,"174 (Geissholz -) Meiringen - Unterbach - Brienzwiler",{"$f":"Übersetzungstabelle!$A$20","v":"Bus Überland/Berg (ohne Tourismus)"},"","A"]
[7,"PAG",31.173999999999999,"174 Geissholz - Meiringen (- Brienzwiler)",{"$f":"Übersetzungstabelle!$A$20","v":"Bus Überland/Berg (ohne Tourismus)"},"","A"]
[7,"PAG",31.21,"210 (Spiez -) Reichenbach - Frutigen",{"$f":"Übersetzungstabelle!$A$20","v":"Bus Überland/Berg (ohne Tourismus)"},"","A"]
[7,"PAG",31.22,"220 Reichenbach - Kiental (- Griesalp)",{"$f":"Übersetzungstabelle!$A$20","v":"Bus Überland/Berg (ohne Tourismus)"},{"$f":"Übersetzungstabelle!$A$22","v":"Bus Touristische Angebote"},"A"]
[7,"PAG",31.26,"260 Oey-Diemtigen - Diemtigen - Grimmialp",{"$f":"Übersetzungstabelle!$A$20","v":"Bus Überland/Berg (ohne Tourismus)"},{"$f":"Übersetzungstabelle!$A$22","v":"Bus Touristische Angebote"},"A"]
[7,"PAG",40.012,"12 Solothurn - Günsberg - Oberbalmberg",{"$f":"Übersetzungstabelle!$A$20","v":"Bus Überland/Berg (ohne Tourismus)"},"","B"]
[7,"PAG",50.067,"67 Dornach - Hochwald - Seewen SO - Büren SO",{"$f":"Übersetzungstabelle!$A$20","v":"Bus Überland/Berg (ohne Tourismus)"},"","B"]
[7,"PAG",50.067999999999998,"68 Aesch - Ettingen - Hofstetten - Flüh",{"$f":"Übersetzungstabelle!$A$20","v":"Bus Überland/Berg (ohne Tourismus)"},"","B"]
[7,"PAG",50.069000000000003,"69 Flüh - Mariastein - Metzerlen - Burg - Challhöchi",{"$f":"Übersetzungstabelle!$A$20","v":"Bus Überland/Berg (ohne Tourismus)"},"","B"]
[7,"PAG",50.073,"73 Liestal -/ Büren SO - Nuglar - St. Pantaleon - Nuglar - Büren SO /- Liestal",{"$f":"Übersetzungstabelle!$A$20","v":"Bus Überland/Berg (ohne Tourismus)"},null,"B"]
[7,"PAG",50.084000000000003,"84 Rheinfelden - Kaiseraugst (- Pratteln)",{"$f":"Übersetzungstabelle!$A$20","v":"Bus Überland/Berg (ohne Tourismus)"},"","B"]
[7,"PAG",50.088000000000001,"88 Rheinfelden - Möhlin - Bata Park",{"$f":"Übersetzungstabelle!$A$20","v":"Bus Überland/Berg (ohne Tourismus)"},{"$f":"Übersetzungstabelle!$A$19","v":"Bus Agglomerationsverkehr"},"B"]
[7,"PAG",50.088999999999999,"89 Möhlin - Wegenstetten",{"$f":"Übersetzungstabelle!$A$20","v":"Bus Überland/Berg (ohne Tourismus)"},{"$f":"Übersetzungstabelle!$A$19","v":"Bus Agglomerationsverkehr"},"B"]
[7,"PAG",50.09,"90 Möhlin - Mumpf - Schupfart",{"$f":"Übersetzungstabelle!$A$20","v":"Bus Überland/Berg (ohne Tourismus)"},"","B"]
[7,"PAG",50.094000000000001,"94 Balsthal - Langenbruck - Waldenburg",{"$f":"Übersetzungstabelle!$A$20","v":"Bus Überland/Berg (ohne Tourismus)"},"","B"]
[7,"PAG",50.098999999999997,"99 Magden - Olsberg - Giebenach (- Liebrüti)",{"$f":"Übersetzungstabelle!$A$20","v":"Bus Überland/Berg (ohne Tourismus)"},"","A"]
[7,"PAG",50.1,"100 Gelterkinden - Maisprach - Rheinfelden",{"$f":"Übersetzungstabelle!$A$20","v":"Bus Überland/Berg (ohne Tourismus)"},{"$f":"Übersetzungstabelle!$A$19","v":"Bus Agglomerationsverkehr"},"B"]
[7,"PAG",50.100999999999999,"101 Gelterkinden - Hemmiken - Wegenstetten",{"$f":"Übersetzungstabelle!$A$20","v":"Bus Überland/Berg (ohne Tourismus)"},"","A"]
[7,"PAG",50.101999999999997,"102 Gelterkinden - Kienberg (- Salhöhe)",{"$f":"Übersetzungstabelle!$A$20","v":"Bus Überland/Berg (ohne Tourismus)"},"","B"]
[7,"PAG",50.103000000000002,"103 Gelterkinden - Tecknau - Oltingen",{"$f":"Übersetzungstabelle!$A$20","v":"Bus Überland/Berg (ohne Tourismus)"},"","B"]
[7,"PAG",50.103999999999999,"104 Gelterkinden - Rünenberg - Zeglingen",{"$f":"Übersetzungstabelle!$A$20","v":"Bus Überland/Berg (ohne Tourismus)"},"","B"]
[7,"PAG",50.110999999999997,"111 Laufen - Breitenbach - Nunningen - Seewen SO - Liestal",{"$f":"Übersetzungstabelle!$A$20","v":"Bus Überland/Berg (ohne Tourismus)"},{"$f":"Übersetzungstabelle!$A$19","v":"Bus Agglomerationsverkehr"},"B"]
[7,"PAG",50.112000000000002,"112 Laufen - Kleinlützel - Roggenburg",{"$f":"Übersetzungstabelle!$A$20","v":"Bus Überland/Berg (ohne Tourismus)"},"","B"]
[7,"PAG",50.113999999999997,"114 Laufen - Bärschwil",{"$f":"Übersetzungstabelle!$A$20","v":"Bus Überland/Berg (ohne Tourismus)"},"","B"]
[7,"PAG",50.115000000000002,"115 Zwingen - Erschwil - Beinwil SO - Ramiswil - Balsthal",{"$f":"Übersetzungstabelle!$A$20","v":"Bus Überland/Berg (ohne Tourismus)"},"","B"]
[7,"PAG",50.116,"116 Nunningen - Bretzwil - Grellingen",{"$f":"Übersetzungstabelle!$A$20","v":"Bus Überland/Berg (ohne Tourismus)"},"","B"]
[7,"PAG",50.116999999999997,"117 Nunningen - Himmelried - Grellingen",{"$f":"Übersetzungstabelle!$A$20","v":"Bus Überland/Berg (ohne Tourismus)"},"","B"]
[7,"PAG",50.118000000000002,"118 Laufen - Liesberg Riederwald",{"$f":"Übersetzungstabelle!$A$20","v":"Bus Überland/Berg (ohne Tourismus)"},"","B"]
[7,"PAG",50.119,"119 Laufen - Dittingen - Blauen - Zwingen - Nenzlingen",{"$f":"Übersetzungstabelle!$A$20","v":"Bus Überland/Berg (ohne Tourismus)"},"","A"]
[7,"PAG",50.125999999999998,"126 Oensingen - Neuendorf - Wolfwil - Boningen - Olten /- Hägendorf",{"$f":"Übersetzungstabelle!$A$20","v":"Bus Überland/Berg (ohne Tourismus)"},"","B"]
[7,"PAG",50.127000000000002,"127 Olten - Egerkingen - Wolfwil - Oensingen",{"$f":"Übersetzungstabelle!$A$20","v":"Bus Überland/Berg (ohne Tourismus)"},"","A"]
[7,"PAG",50.128999999999998,"129 Balsthal - Welschenrohr - Gänsbrunnen",{"$f":"Übersetzungstabelle!$A$20","v":"Bus Überland/Berg (ohne Tourismus)"},"","B"]
[7,"PAG",50.134,"134 Stein AG - Münchwilen AG - Eiken - Oeschgen - Frick",{"$f":"Übersetzungstabelle!$A$20","v":"Bus Überland/Berg (ohne Tourismus)"},"","B"]
[7,"PAG",50.134999999999998,"135 Aarau - Staffelegg - Frick - Laufenburg",{"$f":"Übersetzungstabelle!$A$20","v":"Bus Überland/Berg (ohne Tourismus)"},"","B"]
[7,"PAG",50.136000000000003,"136 Aarau - Benkerjoch - Frick",{"$f":"Übersetzungstabelle!$A$20","v":"Bus Überland/Berg (ohne Tourismus)"},"","B"]
[7,"PAG",50.137,"137 Frick - Bözen - Elfingen - Brugg AG",{"$f":"Übersetzungstabelle!$A$20","v":"Bus Überland/Berg (ohne Tourismus)"},"","B"]
[7,"PAG",50.139000000000003,"139 Effingen - Zeihen - Herznach",{"$f":"Übersetzungstabelle!$A$20","v":"Bus Überland/Berg (ohne Tourismus)"},"","B"]
[7,"PAG",50.140999999999998,"141 Laufenburg - Sulz - Obersulz",{"$f":"Übersetzungstabelle!$A$20","v":"Bus Überland/Berg (ohne Tourismus)"},"","A"]
[7,"PAG",50.142000000000003,"142 Laufenburg - Hottwil - Gansingen - Brugg AG",{"$f":"Übersetzungstabelle!$A$20","v":"Bus Überland/Berg (ohne Tourismus)"},"","B"]
[7,"PAG",50.143000000000001,"143 Laufenburg - Kaisten - Sisseln - Stein",{"$f":"Übersetzungstabelle!$A$20","v":"Bus Überland/Berg (ohne Tourismus)"},"","B"]
[7,"PAG",50.143999999999998,"144 Laufenburg - Kaisten - Ittenthal",{"$f":"Übersetzungstabelle!$A$20","v":"Bus Überland/Berg (ohne Tourismus)"},"","A"]
[7,"PAG",50.146999999999998,"147 Koblenz - Full - Leibstadt [- Leuggern",{"$f":"Übersetzungstabelle!$A$20","v":"Bus Überland/Berg (ohne Tourismus)"},"","A"]
[7,"PAG",50.148000000000003,"148 Döttingen - Leuggern - Mandach",{"$f":"Übersetzungstabelle!$A$20","v":"Bus Überland/Berg (ohne Tourismus)"},"","A"]
[7,"PAG",50.149000000000001,"149 Döttingen - Schwaderloch - Laufenburg",{"$f":"Übersetzungstabelle!$A$20","v":"Bus Überland/Berg (ohne Tourismus)"},"","B"]
[7,"PAG",50.216999999999999,"217 Muri AG - Merenschwand - Affoltern a.A.",{"$f":"Übersetzungstabelle!$A$20","v":"Bus Überland/Berg (ohne Tourismus)"},"","B"]
[7,"PAG",50.231000000000002,"231 Bremgarten - Jonen",{"$f":"Übersetzungstabelle!$A$20","v":"Bus Überland/Berg (ohne Tourismus)"},"","B"]
[7,"PAG",50.32,"N70 Baden - Berikon-Widen (Rohrdorf-Liner)",{"$f":"Übersetzungstabelle!$A$21","v":"Bus alternative Erschliessung"},null,"B"]
[7,"PAG",50.32,"320 Baden - Oberrohrdorf - Berikon-Widen",{"$f":"Übersetzungstabelle!$A$20","v":"Bus Überland/Berg (ohne Tourismus)"},{"$f":"Übersetzungstabelle!$A$19","v":"Bus Agglomerationsverkehr"},"B"]
[7,"PAG",50.32,"321 Baden - Niederrohrdorf - Bellikon",{"$f":"Übersetzungstabelle!$A$20","v":"Bus Überland/Berg (ohne Tourismus)"},{"$f":"Übersetzungstabelle!$A$19","v":"Bus Agglomerationsverkehr"},"B"]
[7,"PAG",50.322000000000003,"322 Baden - Stetten - Bremgarten AG",{"$f":"Übersetzungstabelle!$A$19","v":"Bus Agglomerationsverkehr"},"","B"]
[7,"PAG",50.322000000000003,"N71 Baden - Stetten - Bremgarten AG (Nachtangebot)",{"$f":"Übersetzungstabelle!$A$21","v":"Bus alternative Erschliessung"},null,"B"]
[7,"PAG",50.331000000000003,"331 Mellingen Heitersberg - Niederrohrdorf - Widen",{"$f":"Übersetzungstabelle!$A$20","v":"Bus Überland/Berg (ohne Tourismus)"},"","B"]
[7,"PAG",50.332000000000001,"332 Baden - Mellingen - Bremgarten AG",{"$f":"Übersetzungstabelle!$A$20","v":"Bus Überland/Berg (ohne Tourismus)"},"","B"]
[7,"PAG",50.332000000000001,"N72 Baden - Bremgarten AG (Reusstal-Liner)",{"$f":"Übersetzungstabelle!$A$21","v":"Bus alternative Erschliessung"},null,"B"]
[7,"PAG",50.334000000000003,"334 Baden - Mellingen - Mägenwil",{"$f":"Übersetzungstabelle!$A$20","v":"Bus Überland/Berg (ohne Tourismus)"},{"$f":"Übersetzungstabelle!$A$19","v":"Bus Agglomerationsverkehr"},"B"]
[7,"PAG",50.335000000000001,"335 Mellingen Heitersberg - Niederrohrdorf - Staretschwil - KSB",{"$f":"Übersetzungstabelle!$A$20","v":"Bus Überland/Berg (ohne Tourismus)"},"","B"]
[7,"PAG",50.335999999999999,"336 Wohlen AG - Stetten - Mellingen Heitersberg",{"$f":"Übersetzungstabelle!$A$20","v":"Bus Überland/Berg (ohne Tourismus)"},"","B"]
[7,"PAG",50.338999999999999,"339 Bremgarten AG - Hermetschwil",{"$f":"Übersetzungstabelle!$A$20","v":"Bus Überland/Berg (ohne Tourismus)"},"","B"]
[7,"PAG",50.341000000000001,"341 Wohlen AG - Rottenschwil Abzw. - Muri AG",{"$f":"Übersetzungstabelle!$A$20","v":"Bus Überland/Berg (ohne Tourismus)"},"","B"]
[7,"PAG",50.341999999999999,"342 Wohlen AG - Büttikon - Uezwil",{"$f":"Übersetzungstabelle!$A$20","v":"Bus Überland/Berg (ohne Tourismus)"},"","A"]
[7,"PAG",50.343000000000004,"343 Muri AG - Buttwil - Geltwil",{"$f":"Übersetzungstabelle!$A$20","v":"Bus Überland/Berg (ohne Tourismus)"},"","B"]
[7,"PAG",50.344000000000001,"344 Muri AG - Brunnwil",{"$f":"Übersetzungstabelle!$A$20","v":"Bus Überland/Berg (ohne Tourismus)"},"","A"]
[7,"PAG",50.344999999999999,"345 Hägglingen - Wohlen AG",{"$f":"Übersetzungstabelle!$A$20","v":"Bus Überland/Berg (ohne Tourismus)"},"","A"]
[7,"PAG",50.345999999999997,"346 (Wohlen -) Dintikon-Dottikon - Hägglingen",{"$f":"Übersetzungstabelle!$A$20","v":"Bus Überland/Berg (ohne Tourismus)"},null,"B"]
[7,"PAG",50.35,"350 Berikon-Widen - Zürich Wiedikon",{"$f":"Übersetzungstabelle!$A$20","v":"Bus Überland/Berg (ohne Tourismus)"},{"$f":"Übersetzungstabelle!$A$19","v":"Bus Agglomerationsverkehr"},"B"]
[7,"PAG",50.351999999999997,"352 Baden - Tiefenwaag - Endingen - Tegerfelden / 353 Baden - Freienwil - Endingen - Tegerfelden",{"$f":"Übersetzungstabelle!$A$19","v":"Bus Agglomerationsverkehr"},"","B"]
[7,"PAG",50.351999999999997,"N73 Baden - Bad Zurzach (Surbtal-Liner)",{"$f":"Übersetzungstabelle!$A$21","v":"Bus alternative Erschliessung"},null,"B"]
[7,"PAG",50.353999999999999,"354 Baden - Niederweningen - Kaiserstuhl",{"$f":"Übersetzungstabelle!$A$20","v":"Bus Überland/Berg (ohne Tourismus)"},"","B"]
[7,"PAG",50.354999999999997,"355 Döttingen - Endingen - Niederweningen",{"$f":"Übersetzungstabelle!$A$20","v":"Bus Überland/Berg (ohne Tourismus)"},"","B"]
[7,"PAG",50.356999999999999,"357 Gebenstorf - Turgi - Siggenthal - Würenlingen - Villigen PSI",{"$f":"Übersetzungstabelle!$A$20","v":"Bus Überland/Berg (ohne Tourismus)"},"","B"]
[7,"PAG",50.357999999999997,"358 Bad Zurzach - Rekingen - Baldingen",{"$f":"Übersetzungstabelle!$A$20","v":"Bus Überland/Berg (ohne Tourismus)"},"","A"]
[7,"PAG",50.36,"360 Brugg AG - Bad Zurzach",{"$f":"Übersetzungstabelle!$A$20","v":"Bus Überland/Berg (ohne Tourismus)"},"","B"]
[7,"PAG",50.362000000000002,"362 Brugg AG - Gebenstorf - Birmenstorf AG - Mellingen Heitersberg",{"$f":"Übersetzungstabelle!$A$20","v":"Bus Überland/Berg (ohne Tourismus)"},"","B"]
[7,"PAG",50.363,"363 Brugg AG - Mülligen - Birrhard - Mellingen",{"$f":"Übersetzungstabelle!$A$20","v":"Bus Überland/Berg (ohne Tourismus)"},"","B"]
[7,"PAG",50.363999999999997,"364 Brugg AG - Birr",{"$f":"Übersetzungstabelle!$A$20","v":"Bus Überland/Berg (ohne Tourismus)"},{"$f":"Übersetzungstabelle!$A$19","v":"Bus Agglomerationsverkehr"},"B"]
[7,"PAG",50.363999999999997,"N43 Brugg AG - Mülligen /- Habsburg (Birrfeld-Liner)",{"$f":"Übersetzungstabelle!$A$21","v":"Bus alternative Erschliessung"},null,"B"]
[7,"PAG",50.366,"366 Brugg AG - Habsburg - Scherz",{"$f":"Übersetzungstabelle!$A$20","v":"Bus Überland/Berg (ohne Tourismus)"},"","B"]
[7,"PAG",50.371000000000002,"371 Brugg AG - Thalheim AG",{"$f":"Übersetzungstabelle!$A$20","v":"Bus Überland/Berg (ohne Tourismus)"},"","B"]
[7,"PAG",50.371000000000002,"N42 Brugg AG - Thalheim - Schinznach Bad (Schenkenberg-Liner)",{"$f":"Übersetzungstabelle!$A$21","v":"Bus alternative Erschliessung"},null,"B"]
[7,"PAG",50.372,"372 Brugg AG - Bözberg - Linn",{"$f":"Übersetzungstabelle!$A$20","v":"Bus Überland/Berg (ohne Tourismus)"},"","B"]
[7,"PAG",50.374000000000002,"374 Brugg AG - Mönthal",{"$f":"Übersetzungstabelle!$A$20","v":"Bus Überland/Berg (ohne Tourismus)"},"","B"]
[7,"PAG",50.374000000000002,"N40 Brugg AG - Riniken (Bruggerberg-Liner)",{"$f":"Übersetzungstabelle!$A$21","v":"Bus alternative Erschliessung"},null,"B"]
[7,"PAG",50.375999999999998,"376 Brugg AG - Döttingen",{"$f":"Übersetzungstabelle!$A$20","v":"Bus Überland/Berg (ohne Tourismus)"},{"$f":"Übersetzungstabelle!$A$19","v":"Bus Agglomerationsverkehr"},"B"]
[7,"PAG",50.378999999999998,"379 Wildegg - Schinznach Dorf",{"$f":"Übersetzungstabelle!$A$20","v":"Bus Überland/Berg (ohne Tourismus)"},"","B"]
[7,"PAG",50.398000000000003,"398 Beinwil am See - Beromünster",{"$f":"Übersetzungstabelle!$A$20","v":"Bus Überland/Berg (ohne Tourismus)"},"","B"]
[7,"PAG",50.399000000000001,"399 Beinwil am See - Rickenbach LU - Sursee",{"$f":"Übersetzungstabelle!$A$20","v":"Bus Überland/Berg (ohne Tourismus)"},"","A"]
[7,"PAG",50.616,"616 Schöftland - Walde - Schiltwald",{"$f":"Übersetzungstabelle!$A$20","v":"Bus Überland/Berg (ohne Tourismus)"},"","A"]
[7,"PAG",60.07,"70 Sempach - Neuenkirch - Rothenburg",{"$f":"Übersetzungstabelle!$A$20","v":"Bus Überland/Berg (ohne Tourismus)"},null,"B"]
[7,"PAG",60.070999999999998,"71 Luzern - Kriens - Eigenthal",{"$f":"Übersetzungstabelle!$A$20","v":"Bus Überland/Berg (ohne Tourismus)"},"","A"]
[7,"PAG",60.072000000000003,"72 Luzern - Neuenkirch",{"$f":"Übersetzungstabelle!$A$20","v":"Bus Überland/Berg (ohne Tourismus)"},{"$f":"Übersetzungstabelle!$A$19","v":"Bus Agglomerationsverkehr"},"B"]
[7,"PAG",60.073,"73 Luzern - Udligenswil - Meierskappel - Rotkreuz",{"$f":"Übersetzungstabelle!$A$20","v":"Bus Überland/Berg (ohne Tourismus)"},{"$f":"Übersetzungstabelle!$A$19","v":"Bus Agglomerationsverkehr"},"B"]
[7,"PAG",60.081000000000003,"81 Sursee - Schenkon - Rickenbach LU - Beromünster",{"$f":"Übersetzungstabelle!$A$20","v":"Bus Überland/Berg (ohne Tourismus)"},"","B"]
[7,"PAG",60.082000000000001,"82 Sursee - St. Erhard - Knutwil - Uffikon - Dagmersellen",{"$f":"Übersetzungstabelle!$A$20","v":"Bus Überland/Berg (ohne Tourismus)"},"","A"]
[7,"PAG",60.082999999999998,"83 Sursee - Knutwil - Büron - Schlierbach - Etzelwil",{"$f":"Übersetzungstabelle!$A$21","v":"Bus alternative Erschliessung"},"","A"]
[7,"PAG",60.084000000000003,"84 Sursee - Eich - Sempach Station",{"$f":"Übersetzungstabelle!$A$20","v":"Bus Überland/Berg (ohne Tourismus)"},"","B"]
[7,"PAG",60.085000000000001,"85 Sursee - Triengen - Schöftland",{"$f":"Übersetzungstabelle!$A$20","v":"Bus Überland/Berg (ohne Tourismus)"},"","B"]
[7,"PAG",60.087000000000003,"87 Beromünster - Sursee",{"$f":"Übersetzungstabelle!$A$20","v":"Bus Überland/Berg (ohne Tourismus)"},"","B"]
[7,"PAG",60.088000000000001,"88 Hochdorf - Hildisrieden - Rain - Sempach",{"$f":"Übersetzungstabelle!$A$20","v":"Bus Überland/Berg (ohne Tourismus)"},"","A"]
[7,"PAG",60.091000000000001,"91 Dagmersellen Industriepark - Nebikon - Schötz - Ebersecken",{"$f":"Übersetzungstabelle!$A$20","v":"Bus Überland/Berg (ohne Tourismus)"},"","A"]
[7,"PAG",60.11,"110 Hochdorf - Rotkreuz",{"$f":"Übersetzungstabelle!$A$20","v":"Bus Überland/Berg (ohne Tourismus)"},{"$f":"Übersetzungstabelle!$A$19","v":"Bus Agglomerationsverkehr"},"A"]
[7,"PAG",60.210999999999999,"211 Malters - Schwarzenberg LU (- Eigenthal)",{"$f":"Übersetzungstabelle!$A$20","v":"Bus Überland/Berg (ohne Tourismus)"},{"$f":"Übersetzungstabelle!$A$22","v":"Bus Touristische Angebote"},"A"]
[7,"PAG",60.220999999999997,"221 Wolhusen - Romoos (- Holzwäge)",{"$f":"Übersetzungstabelle!$A$20","v":"Bus Überland/Berg (ohne Tourismus)"},"","A"]
[7,"PAG",60.231000000000002,"231 Entlebuch - Ebnet",{"$f":"Übersetzungstabelle!$A$20","v":"Bus Überland/Berg (ohne Tourismus)"},"","A"]
[7,"PAG",60.231999999999999,"232 Entlebuch - Finsterwald - Gfellen (- Langis)",{"$f":"Übersetzungstabelle!$A$20","v":"Bus Überland/Berg (ohne Tourismus)"},"","A"]
[7,"PAG",60.232999999999997,"233 Entlebuch - Hasle LU - Heiligkreuz",{"$f":"Übersetzungstabelle!$A$20","v":"Bus Überland/Berg (ohne Tourismus)"},"","A"]
[7,"PAG",60.234000000000002,"234 Entlebuch - Hasle LU - Bramboden",{"$f":"Übersetzungstabelle!$A$20","v":"Bus Überland/Berg (ohne Tourismus)"},null,"A"]
[7,"PAG",60.241,"241 Schüpfheim - Flühli - Sörenberg (- Giswil)",{"$f":"Übersetzungstabelle!$A$20","v":"Bus Überland/Berg (ohne Tourismus)"},{"$f":"Übersetzungstabelle!$A$22","v":"Bus Touristische Angebote"},"A"]
[7,"PAG",60.250999999999998,"251 Escholzmatt - Wiggen - Marbach - Schangnau - Kemmeriboden",{"$f":"Übersetzungstabelle!$A$20","v":"Bus Überland/Berg (ohne Tourismus)"},"","B"]
[7,"PAG",60.261000000000003,"261 (Geiss -) Menznau - Menzberg",{"$f":"Übersetzungstabelle!$A$20","v":"Bus Überland/Berg (ohne Tourismus)"},"","A"]
[7,"PAG",60.271000000000001,"271 Willisau - Schötz - Nebikon - Dagmersellen",{"$f":"Übersetzungstabelle!$A$20","v":"Bus Überland/Berg (ohne Tourismus)"},"","B"]
[7,"PAG",60.271999999999998,"272 Willisau - Hergiswil b.W. - Hübeli",{"$f":"Übersetzungstabelle!$A$20","v":"Bus Überland/Berg (ohne Tourismus)"},"","A"]
[7,"PAG",60.280999999999999,"281 Ufhusen - Zell - Altbüron - St. Urban",{"$f":"Übersetzungstabelle!$A$20","v":"Bus Überland/Berg (ohne Tourismus)"},"","B"]
[7,"PAG",60.281999999999996,"282 Zell - Hüswil - Luthern - Luthern Bad",{"$f":"Übersetzungstabelle!$A$20","v":"Bus Überland/Berg (ohne Tourismus)"},"","A"]
[7,"PAG",60.31,"310 Stans - Ennetbürgen - Altdorf UR (Winkelriedbus)",{"$f":"Übersetzungstabelle!$A$20","v":"Bus Überland/Berg (ohne Tourismus)"},"","B"]
[7,"PAG",60.311,"311 (Länderpark -) Stans - Beckenried - Emmetten - Seelisberg",{"$f":"Übersetzungstabelle!$A$20","v":"Bus Überland/Berg (ohne Tourismus)"},{"$f":"Übersetzungstabelle!$A$19","v":"Bus Agglomerationsverkehr"},"B"]
[7,"PAG",60.311999999999998,"312 Stans - Ennetmoos - St. Jakob (Ennetmoos) - Kerns (- Sarnen)",{"$f":"Übersetzungstabelle!$A$20","v":"Bus Überland/Berg (ohne Tourismus)"},"","B"]
[7,"PAG",60.313000000000002,"313 St. Jakob (Ennetmoos) - Mueterschwandenberg",{"$f":"Übersetzungstabelle!$A$20","v":"Bus Überland/Berg (ohne Tourismus)"},"","A"]
[7,"PAG",60.320999999999998,"321 Stansstad - Obbürgen - Bürgenstock",{"$f":"Übersetzungstabelle!$A$20","v":"Bus Überland/Berg (ohne Tourismus)"},"","B"]
[7,"PAG",60.323999999999998,"324 Stans - Oberdorf NW - Büren NW",{"$f":"Übersetzungstabelle!$A$20","v":"Bus Überland/Berg (ohne Tourismus)"},"","A"]
[7,"PAG",60.331000000000003,"331 Wolfenschiessen - Oberrickenbach",{"$f":"Übersetzungstabelle!$A$20","v":"Bus Überland/Berg (ohne Tourismus)"},"","A"]
[7,"PAG",60.341000000000001,"341 Sarnen - Kerns - Sand (- Stans)",{"$f":"Übersetzungstabelle!$A$20","v":"Bus Überland/Berg (ohne Tourismus)"},"","A"]
[7,"PAG",60.341999999999999,"342 Sarnen - Kägiswil - Alpnach Dorf",{"$f":"Übersetzungstabelle!$A$20","v":"Bus Überland/Berg (ohne Tourismus)"},"","A"]
[7,"PAG",60.343000000000004,"343 Sarnen - Melchtal - Stöckalp",{"$f":"Übersetzungstabelle!$A$20","v":"Bus Überland/Berg (ohne Tourismus)"},{"$f":"Übersetzungstabelle!$A$22","v":"Bus Touristische Angebote"},"A"]
[7,"PAG",60.344000000000001,"344 Sarnen - Stalden (Sarnen) (- Langis)",{"$f":"Übersetzungstabelle!$A$20","v":"Bus Überland/Berg (ohne Tourismus)"},"","A"]
[7,"PAG",60.344999999999999,"345 Sarnen - Oberwilen",{"$f":"Übersetzungstabelle!$A$20","v":"Bus Überland/Berg (ohne Tourismus)"},"","A"]
[7,"PAG",60.350999999999999,"351 (Sarnen -) Sachseln - Flüeli-Ranft",{"$f":"Übersetzungstabelle!$A$20","v":"Bus Überland/Berg (ohne Tourismus)"},"","A"]
[7,"PAG",60.360999999999997,"361 Giswil - Grossteil - Kleinteil",{"$f":"Übersetzungstabelle!$A$20","v":"Bus Überland/Berg (ohne Tourismus)"},"","A"]
[7,"PAG",60.405000000000001,"405 Flüelen - Altdorf UR - Isenthal - Seilbahn St. Jakob",{"$f":"Übersetzungstabelle!$A$20","v":"Bus Überland/Berg (ohne Tourismus)"},"","A"]
[7,"PAG",60.406999999999996,"407 Erstfeld -] Amsteg - Bristen - Golzern Talstation Seilbahn",{"$f":"Übersetzungstabelle!$A$20","v":"Bus Überland/Berg (ohne Tourismus)"},{"$f":"Übersetzungstabelle!$A$22","v":"Bus Touristische Angebote"},"A"]
[7,"PAG",60.408000000000001,"408 Flüelen - Unterschächen - Urigen",{"$f":"Übersetzungstabelle!$A$20","v":"Bus Überland/Berg (ohne Tourismus)"},{"$f":"Übersetzungstabelle!$A$22","v":"Bus Touristische Angebote"},"A"]
[7,"PAG",60.552,"552 Einsiedeln - Willerzell - Egg SZ - Einsiedeln",{"$f":"Übersetzungstabelle!$A$20","v":"Bus Überland/Berg (ohne Tourismus)"},"","A"]
[7,"PAG",60.552999999999997,"553 Einsiedeln - Willerzell - Studen - Ochsenboden",{"$f":"Übersetzungstabelle!$A$20","v":"Bus Überland/Berg (ohne Tourismus)"},"","A"]
[7,"PAG",60.554000000000002,"554 Einsiedeln - Alpthal - Brunni",{"$f":"Übersetzungstabelle!$A$20","v":"Bus Überland/Berg (ohne Tourismus)"},"","A"]
[7,"PAG",60.555,"555/556 Einsiedeln - Oberiberg - Hoch-Ybrig Laucheren /- Unteriberg - Hoch-Ybrig Weglosen",{"$f":"Übersetzungstabelle!$A$20","v":"Bus Überland/Berg (ohne Tourismus)"},"","B"]
[7,"PAG",62.112000000000002,"112 Airolo - Ronco (Bedretto) - Cioss Prato",{"$f":"Übersetzungstabelle!$A$20","v":"Bus Überland/Berg (ohne Tourismus)"},{"$f":"Übersetzungstabelle!$A$22","v":"Bus Touristische Angebote"},"A"]
[7,"PAG",62.116,"116 Ambrì-Piotta - Altanca - Lurengo",{"$f":"Übersetzungstabelle!$A$20","v":"Bus Überland/Berg (ohne Tourismus)"},"","A"]
[7,"PAG",62.116999999999997,"117 (Airolo -) Rodi - Dalpe",{"$f":"Übersetzungstabelle!$A$20","v":"Bus Überland/Berg (ohne Tourismus)"},"","A"]
[7,"PAG",62.118000000000002,"118 Faido - Osco [- Predelp",{"$f":"Übersetzungstabelle!$A$20","v":"Bus Überland/Berg (ohne Tourismus)"},"","A"]
[7,"PAG",62.119,"119 Faido - Tengia - Carì [- Predelp",{"$f":"Übersetzungstabelle!$A$20","v":"Bus Überland/Berg (ohne Tourismus)"},"","A"]
[7,"PAG",62.122999999999998,"123 Lavorgo - Chironico",{"$f":"Übersetzungstabelle!$A$20","v":"Bus Überland/Berg (ohne Tourismus)"},"","A"]
[7,"PAG",62.124000000000002,"124 Faido -] Lavorgo - Sobrio",{"$f":"Übersetzungstabelle!$A$20","v":"Bus Überland/Berg (ohne Tourismus)"},"","A"]
[7,"PAG",62.191000000000003,"191 Bellinzona - Airolo",{"$f":"Übersetzungstabelle!$A$20","v":"Bus Überland/Berg (ohne Tourismus)"},"","B"]
[7,"PAG",62.192999999999998,"193 Bellinzona - Iragna - Biasca",{"$f":"Übersetzungstabelle!$A$20","v":"Bus Überland/Berg (ohne Tourismus)"},"","A"]
[7,"PAG",62.212000000000003,"212 Giubiasco - Carena",{"$f":"Übersetzungstabelle!$A$20","v":"Bus Überland/Berg (ohne Tourismus)"},"","A"]
[7,"PAG",62.213999999999999,"214 Bellinzona - Grono - Mesocco - San Bernardino (- Thusis)",{"$f":"Übersetzungstabelle!$A$20","v":"Bus Überland/Berg (ohne Tourismus)"},{"$f":"Übersetzungstabelle!$A$22","v":"Bus Touristische Angebote"},"A"]
[7,"PAG",62.215000000000003,"215 Grono - Rossa",{"$f":"Übersetzungstabelle!$A$20","v":"Bus Überland/Berg (ohne Tourismus)"},"","A"]
[7,"PAG",62.216000000000001,"216 Grono - Tevegno - Sta Maria in Calanca",{"$f":"Übersetzungstabelle!$A$20","v":"Bus Überland/Berg (ohne Tourismus)"},"","A"]
[7,"PAG",62.216999999999999,"217 Grono - Verdabbio",{"$f":"Übersetzungstabelle!$A$20","v":"Bus Überland/Berg (ohne Tourismus)"},"","A"]
[7,"PAG",62.320999999999998,"321 Locarno - Tenero - Sonogno",{"$f":"Übersetzungstabelle!$A$20","v":"Bus Überland/Berg (ohne Tourismus)"},"","A"]
[7,"PAG",62.322000000000003,"322 Tenero - Medoscio",{"$f":"Übersetzungstabelle!$A$20","v":"Bus Überland/Berg (ohne Tourismus)"},"","A"]
[7,"PAG",62.323,"323 Tenero - Contra",{"$f":"Übersetzungstabelle!$A$20","v":"Bus Überland/Berg (ohne Tourismus)"},"","A"]
[7,"PAG",62.323999999999998,"324 Locarno - Golino - Intragna - Russo - Spruga",{"$f":"Übersetzungstabelle!$A$20","v":"Bus Überland/Berg (ohne Tourismus)"},"","A"]
[7,"PAG",62.329000000000001,"329 S. Antonino - Cadenazzo - Magadino Debarcadero - Dirinella",{"$f":"Übersetzungstabelle!$A$20","v":"Bus Überland/Berg (ohne Tourismus)"},"","B"]
[7,"PAG",62.33,"330 Magadino - Gerra",{"$f":"Übersetzungstabelle!$A$20","v":"Bus Überland/Berg (ohne Tourismus)"},"","A"]
[7,"PAG",62.331000000000003,"331 Cevio - Cerentino - Bosco/Gurin",{"$f":"Übersetzungstabelle!$A$20","v":"Bus Überland/Berg (ohne Tourismus)"},"","A"]
[7,"PAG",62.334000000000003,"334 Bignasco - Peccia - Fusio",{"$f":"Übersetzungstabelle!$A$20","v":"Bus Überland/Berg (ohne Tourismus)"},"","A"]
[7,"PAG",62.420999999999999,"421 Ponte Tresa - Fornasette (- Luino)",{"$f":"Übersetzungstabelle!$A$20","v":"Bus Überland/Berg (ohne Tourismus)"},"","A"]
[7,"PAG",62.421999999999997,"422 Lugano - Bioggio - Cademario - Aranno",{"$f":"Übersetzungstabelle!$A$20","v":"Bus Überland/Berg (ohne Tourismus)"},"","A"]
[7,"PAG",62.423000000000002,"423 Lamone - Breno - Miglieglia",{"$f":"Übersetzungstabelle!$A$20","v":"Bus Überland/Berg (ohne Tourismus)"},"","A"]
[7,"PAG",62.423999999999999,"424 Agno - Aranno - Cademario Kurhaus",{"$f":"Übersetzungstabelle!$A$20","v":"Bus Überland/Berg (ohne Tourismus)"},"","A"]
[7,"PAG",62.424999999999997,"425 Magliaso - Novaggio",{"$f":"Übersetzungstabelle!$A$20","v":"Bus Überland/Berg (ohne Tourismus)"},"","A"]
[7,"PAG",62.426000000000002,"426 Novaggio - Astano",{"$f":"Übersetzungstabelle!$A$20","v":"Bus Überland/Berg (ohne Tourismus)"},"","A"]
[7,"PAG",62.427,"427 Novaggio - Cademario Kurhaus",{"$f":"Übersetzungstabelle!$A$20","v":"Bus Überland/Berg (ohne Tourismus)"},"","A"]
[7,"PAG",62.427999999999997,"428 Ponte Tresa - Castelrotto - Novaggio",{"$f":"Übersetzungstabelle!$A$20","v":"Bus Überland/Berg (ohne Tourismus)"},"","A"]
[7,"PAG",62.429000000000002,"429 Ponte Tresa - Sessa - Castello di Monteggio",{"$f":"Übersetzungstabelle!$A$20","v":"Bus Überland/Berg (ohne Tourismus)"},"","A"]
[7,"PAG",62.430999999999997,"431 Lugano - Morcote",{"$f":"Übersetzungstabelle!$A$20","v":"Bus Überland/Berg (ohne Tourismus)"},"","A"]
[7,"PAG",62.433,"433 Lugano - Carabietta",{"$f":"Übersetzungstabelle!$A$20","v":"Bus Überland/Berg (ohne Tourismus)"},"","A"]
[7,"PAG",62.433999999999997,"434 Lugano - Carona",{"$f":"Übersetzungstabelle!$A$20","v":"Bus Überland/Berg (ohne Tourismus)"},"","A"]
[7,"PAG",62.436,"436 Lugano - Sorengo - Agra",{"$f":"Übersetzungstabelle!$A$20","v":"Bus Überland/Berg (ohne Tourismus)"},"","A"]
[7,"PAG",62.442,"442 Lugano - Vezia - Cureglia - Tesserete",{"$f":"Übersetzungstabelle!$A$20","v":"Bus Überland/Berg (ohne Tourismus)"},"","A"]
[7,"PAG",62.442999999999998,"443 Lugano - Porza - Comano",{"$f":"Übersetzungstabelle!$A$20","v":"Bus Überland/Berg (ohne Tourismus)"},"","A"]
[7,"PAG",62.444000000000003,"444 Lugano - Lamone - Torricella",{"$f":"Übersetzungstabelle!$A$20","v":"Bus Überland/Berg (ohne Tourismus)"},"","B"]
[7,"PAG",62.445,"445 Lugano - Bioggio - Lamone",{"$f":"Übersetzungstabelle!$A$20","v":"Bus Überland/Berg (ohne Tourismus)"},"","B"]
[7,"PAG",62.447000000000003,"447 Tesserete - Maglio di Colla - Sonvico",{"$f":"Übersetzungstabelle!$A$20","v":"Bus Überland/Berg (ohne Tourismus)"},"","A"]
[7,"PAG",62.448,"448 Tesserete - Bogno - Maglio di Colla",{"$f":"Übersetzungstabelle!$A$20","v":"Bus Überland/Berg (ohne Tourismus)"},"","A"]
[7,"PAG",62.448999999999998,"449 Lamone - Bioggio Molinazzo",{"$f":"Übersetzungstabelle!$A$20","v":"Bus Überland/Berg (ohne Tourismus)"},null,"B"]
[7,"PAG",62.45,"450 Tesserete - Lelgio",{"$f":"Übersetzungstabelle!$A$20","v":"Bus Überland/Berg (ohne Tourismus)"},"","A"]
[7,"PAG",62.453000000000003,"453 Rivera-Bironico - Taverne - Lamone",{"$f":"Übersetzungstabelle!$A$20","v":"Bus Überland/Berg (ohne Tourismus)"},"","B"]
[7,"PAG",62.454000000000001,"454 Rivera-Bironico - Isone",{"$f":"Übersetzungstabelle!$A$20","v":"Bus Überland/Berg (ohne Tourismus)"},"","A"]
[7,"PAG",62.512999999999998,"513 Mendrisio - Castel S. Pietro - Morbio Inferiore Serfontana",{"$f":"Übersetzungstabelle!$A$20","v":"Bus Überland/Berg (ohne Tourismus)"},"","B"]
[7,"PAG",62.514000000000003,"514 Morbio Inferiore Serfontana - Morbio Superiore - Sagno",{"$f":"Übersetzungstabelle!$A$20","v":"Bus Überland/Berg (ohne Tourismus)"},"","A"]
[7,"PAG",62.515000000000001,"515 Morbio Inferiore Serfontana - Morbio Superiore - Muggio",{"$f":"Übersetzungstabelle!$A$20","v":"Bus Überland/Berg (ohne Tourismus)"},"","A"]
[7,"PAG",62.517000000000003,"517 Mendrisio - Novazzano - Chiasso",{"$f":"Übersetzungstabelle!$A$20","v":"Bus Überland/Berg (ohne Tourismus)"},"","B"]
[7,"PAG",62.521999999999998,"522 Mendrisio - Somazzo",{"$f":"Übersetzungstabelle!$A$20","v":"Bus Überland/Berg (ohne Tourismus)"},"","A"]
[7,"PAG",62.523000000000003,"523 Mendrisio - Stabio - Gaggiolo (- Varese)",{"$f":"Übersetzungstabelle!$A$20","v":"Bus Überland/Berg (ohne Tourismus)"},"","A"]
[7,"PAG",62.524000000000001,"524 Mendrisio - Arzo - Tremona - Meride",{"$f":"Übersetzungstabelle!$A$20","v":"Bus Überland/Berg (ohne Tourismus)"},"","A"]
[7,"PAG",62.524999999999999,"525 Mendrisio - Arzo",{"$f":"Übersetzungstabelle!$A$20","v":"Bus Überland/Berg (ohne Tourismus)"},null,"A"]
[7,"PAG",62.531999999999996,"532 Capolago - Riva S. Vitale - Brusino Arsizio (- Porto Ceresio)",{"$f":"Übersetzungstabelle!$A$20","v":"Bus Überland/Berg (ohne Tourismus)"},"","A"]
[7,"PAG",62.540999999999997,"541 Capolago - Melano - Rovio - Arogno",{"$f":"Übersetzungstabelle!$A$21","v":"Bus alternative Erschliessung"},"","A"]
[7,"PAG",70.19,"190 Pfäffikon SZ - Feusisberg - Schindellegi-Feusisberg",{"$f":"Übersetzungstabelle!$A$20","v":"Bus Überland/Berg (ohne Tourismus)"},"","B"]
[7,"PAG",70.2,"200 Zürich Enge - Bonstetten-Wettswil (- Affoltern a.A.)",{"$f":"Übersetzungstabelle!$A$19","v":"Bus Agglomerationsverkehr"},null,"B"]
[7,"PAG",70.204999999999998,"205 Bonstetten-Wettswil - Islisberg - Arni AG",{"$f":"Übersetzungstabelle!$A$20","v":"Bus Überland/Berg (ohne Tourismus)"},null,"A"]
[7,"PAG",70.212000000000003,"212 Affoltern a.A. - Obfelden - Rickenbach - Ottenbach",{"$f":"Übersetzungstabelle!$A$20","v":"Bus Überland/Berg (ohne Tourismus)"},null,"B"]
[7,"PAG",70.212999999999994,"213 Affoltern a.A. - Bickwil - Ottenbach",{"$f":"Übersetzungstabelle!$A$20","v":"Bus Überland/Berg (ohne Tourismus)"},null,"B"]
[7,"PAG",70.215000000000003,"215 Zürich Wiedikon - Birmensdorf ZH - Oberlunkhofen - Affoltern a.A.",{"$f":"Übersetzungstabelle!$A$20","v":"Bus Überland/Berg (ohne Tourismus)"},{"$f":"Übersetzungstabelle!$A$19","v":"Bus Agglomerationsverkehr"},"B"]
[7,"PAG",70.22,"220 Zürich Wiedikon - Bonstetten-Wettswil",{"$f":"Übersetzungstabelle!$A$20","v":"Bus Überland/Berg (ohne Tourismus)"},null,"B"]
[7,"PAG",70.222999999999999,"223 Affoltern a.A. - Mettmenstetten - Hausen a.A. - Aeugstertal",{"$f":"Übersetzungstabelle!$A$20","v":"Bus Überland/Berg (ohne Tourismus)"},null,"B"]
[7,"PAG",70.224999999999994,"225 Affoltern a.A. - Aeugst a.A.",{"$f":"Übersetzungstabelle!$A$20","v":"Bus Überland/Berg (ohne Tourismus)"},null,"B"]
[7,"PAG",70.227000000000004,"227 Bonstetten-Wettswil - Stallikon - Birmensdorf ZH",{"$f":"Übersetzungstabelle!$A$20","v":"Bus Überland/Berg (ohne Tourismus)"},null,"B"]
[7,"PAG",70.23,"230 Maschwanden - Mettmenstetten",{"$f":"Übersetzungstabelle!$A$20","v":"Bus Überland/Berg (ohne Tourismus)"},null,"A"]
[7,"PAG",70.231999999999999,"232 Mettmenstetten - Uerzlikon - Rifferswil - Mettmenstetten",{"$f":"Übersetzungstabelle!$A$20","v":"Bus Überland/Berg (ohne Tourismus)"},null,"A"]
[7,"PAG",70.234999999999999,"235 Zürich Wiedikon - Stallikon - Aeugst am Albis",{"$f":"Übersetzungstabelle!$A$20","v":"Bus Überland/Berg (ohne Tourismus)"},{"$f":"Übersetzungstabelle!$A$19","v":"Bus Agglomerationsverkehr"},"B"]
[7,"PAG",70.239999999999995,"240 Thalwil - Langnau-Gattikon - Hausen am Albis",{"$f":"Übersetzungstabelle!$A$20","v":"Bus Überland/Berg (ohne Tourismus)"},null,"A"]
[7,"PAG",70.245000000000005,"245 Muri AG - Oberlunkhofen - Zürich Wiedikon",{"$f":"Übersetzungstabelle!$A$20","v":"Bus Überland/Berg (ohne Tourismus)"},{"$f":"Übersetzungstabelle!$A$19","v":"Bus Agglomerationsverkehr"},"B"]
[7,"PAG",70.28,"280 Baar - Kappel am Albis - Hausen am Albis",{"$f":"Übersetzungstabelle!$A$20","v":"Bus Überland/Berg (ohne Tourismus)"},null,"B"]
[7,"PAG",70.510000000000005,"510 Zürich Flughafen - Oberglatt - Stadel b.N. - Kaiserstuhl AG",{"$f":"Übersetzungstabelle!$A$19","v":"Bus Agglomerationsverkehr"},null,"B"]
[7,"PAG",70.515000000000001,"515 Stadel b.N. - Hochfelden - Bülach",{"$f":"Übersetzungstabelle!$A$20","v":"Bus Überland/Berg (ohne Tourismus)"},null,"B"]
[7,"PAG",70.52,"520 Embrach-Rorbas - Zürich Flughafen",{"$f":"Übersetzungstabelle!$A$19","v":"Bus Agglomerationsverkehr"},null,"B"]
[7,"PAG",70.521000000000001,"521 Freienstein - Rorbas - Embrach - Zürich Flughafen",{"$f":"Übersetzungstabelle!$A$19","v":"Bus Agglomerationsverkehr"},null,"B"]
[7,"PAG",70.522000000000006,"522 Embrach-Rorbas - Freienstein - Teufen ZH",{"$f":"Übersetzungstabelle!$A$20","v":"Bus Überland/Berg (ohne Tourismus)"},null,"B"]
[7,"PAG",70.522999999999996,"523 Oberembrach - Embrach - Embrach-Rorbas",{"$f":"Übersetzungstabelle!$A$20","v":"Bus Überland/Berg (ohne Tourismus)"},null,"B"]
[7,"PAG",70.524000000000001,"524 Oberembrach - Zürich Flughafen",{"$f":"Übersetzungstabelle!$A$20","v":"Bus Überland/Berg (ohne Tourismus)"},null,"B"]
[7,"PAG",70.525000000000006,"525 Bülach - Höri - Oberglatt",{"$f":"Übersetzungstabelle!$A$19","v":"Bus Agglomerationsverkehr"},null,"B"]
[7,"PAG",70.53,"530 Zürich Flughafen - Kloten - Winkel Oberdorf - Bülach",{"$f":"Übersetzungstabelle!$A$19","v":"Bus Agglomerationsverkehr"},null,"B"]
[7,"PAG",70.53,"531 Zürich Flughafen - Bülach",{"$f":"Übersetzungstabelle!$A$19","v":"Bus Agglomerationsverkehr"},null,"A"]
[7,"PAG",70.534999999999997,"535 Stadel b.N. - Bachs - Steinmaur - Niederhasli",{"$f":"Übersetzungstabelle!$A$20","v":"Bus Überland/Berg (ohne Tourismus)"},null,"A"]
[7,"PAG",70.540000000000006,"540 Glattfelden - Zweidlen ",{"$f":"Übersetzungstabelle!$A$20","v":"Bus Überland/Berg (ohne Tourismus)"},null,"B"]
[7,"PAG",70.545000000000002,"545 Hüntwangen-Wil - Rafz",{"$f":"Übersetzungstabelle!$A$20","v":"Bus Überland/Berg (ohne Tourismus)"},null,"A"]
[7,"PAG",70.546000000000006,"546 Hüntwangen-Wil - Wasterkingen",{"$f":"Übersetzungstabelle!$A$20","v":"Bus Überland/Berg (ohne Tourismus)"},null,"B"]
[7,"PAG",70.555000000000007,"555 Schöfflisdorf-Oberweningen - Schleinikon",{"$f":"Übersetzungstabelle!$A$20","v":"Bus Überland/Berg (ohne Tourismus)"},null,"A"]
[7,"PAG",70.605000000000004,"605 Oberstammheim - Ossingen - Andelfingen",{"$f":"Übersetzungstabelle!$A$20","v":"Bus Überland/Berg (ohne Tourismus)"},null,"A"]
[7,"PAG",70.611999999999995,"612 Seuzach - Dinhard - Gütighausen - Andelfingen",{"$f":"Übersetzungstabelle!$A$20","v":"Bus Überland/Berg (ohne Tourismus)"},null,"A"]
[7,"PAG",70.614999999999995,"615 Altikon - Ellikon - Rickenbach [- Oberwinterthur",{"$f":"Übersetzungstabelle!$A$20","v":"Bus Überland/Berg (ohne Tourismus)"},null,"B"]
[7,"PAG",70.62,"620 Marthalen - Rheinau",{"$f":"Übersetzungstabelle!$A$20","v":"Bus Überland/Berg (ohne Tourismus)"},null,"B"]
[7,"PAG",70.620999999999995,"621 Marthalen - Trüllikon - Ossingen",{"$f":"Übersetzungstabelle!$A$20","v":"Bus Überland/Berg (ohne Tourismus)"},null,"B"]
[7,"PAG",70.63,"630 Schaffhausen - Uhwiesen - Benken ZH - Marthalen",{"$f":"Übersetzungstabelle!$A$20","v":"Bus Überland/Berg (ohne Tourismus)"},null,"B"]
[7,"PAG",70.63,"634 Schaffhausen - Uhwiesen - Dachsen - Schloss Laufen Rheinfall",{"$f":"Übersetzungstabelle!$A$20","v":"Bus Überland/Berg (ohne Tourismus)"},null,"B"]
[7,"PAG",70.67,"670 Winterthur - Neftenbach - Buchberg - Rafz",{"$f":"Übersetzungstabelle!$A$20","v":"Bus Überland/Berg (ohne Tourismus)"},null,"B"]
[7,"PAG",70.674999999999997,"675 Flaach - Henggart",{"$f":"Übersetzungstabelle!$A$20","v":"Bus Überland/Berg (ohne Tourismus)"},null,"B"]
[7,"PAG",70.676000000000002,"676 Henggart - Hettlingen - Winterthur ",{"$f":"Übersetzungstabelle!$A$20","v":"Bus Überland/Berg (ohne Tourismus)"},null,"B"]
[7,"PAG",70.680000000000007,"680 Winterthur - Elsau - Schlatt - Elgg [/ - Girenbad b. Turbenthal",{"$f":"Übersetzungstabelle!$A$20","v":"Bus Überland/Berg (ohne Tourismus)"},null,"B"]
[7,"PAG",70.805999999999997,"806 Turbenthal - Bichelsee - Itaslen",{"$f":"Übersetzungstabelle!$A$20","v":"Bus Überland/Berg (ohne Tourismus)"},null,"A"]
[7,"PAG",70.807000000000002,"807 Turbenthal - Wila - Sitzberg",{"$f":"Übersetzungstabelle!$A$20","v":"Bus Überland/Berg (ohne Tourismus)"},null,"A"]
[7,"PAG",70.808999999999997,"809 Bauma - Sternenberg",{"$f":"Übersetzungstabelle!$A$20","v":"Bus Überland/Berg (ohne Tourismus)"},null,"A"]
[7,"PAG",70.825000000000003,"825 Pfäffikon ZH - Russikon - Wildberg - Turbenthal",{"$f":"Übersetzungstabelle!$A$20","v":"Bus Überland/Berg (ohne Tourismus)"},null,"A"]
[7,"PAG",70.826999999999998,"827 Uster - Wermatswil - Fehraltorf - Schrännenbrunnen",{"$f":"Übersetzungstabelle!$A$20","v":"Bus Überland/Berg (ohne Tourismus)"},null,"A"]
[7,"PAG",70.83,"830 Uster - Wermatswil - Pfäffikon ZH",{"$f":"Übersetzungstabelle!$A$20","v":"Bus Überland/Berg (ohne Tourismus)"},{"$f":"Übersetzungstabelle!$A$19","v":"Bus Agglomerationsverkehr"},"B"]
[7,"PAG",70.831000000000003,"831 Pfäffikon ZH - Russikon - Rumlikon - Fehraltorf",{"$f":"Übersetzungstabelle!$A$20","v":"Bus Überland/Berg (ohne Tourismus)"},null,"A"]
[7,"PAG",70.831999999999994,"832 Fehraltorf - Weisslingen - Kollbrunn",{"$f":"Übersetzungstabelle!$A$20","v":"Bus Überland/Berg (ohne Tourismus)"},{"$f":"Übersetzungstabelle!$A$19","v":"Bus Agglomerationsverkehr"},"B"]
[7,"PAG",70.832999999999998,"833 Pfäffikon ZH - Hermatswil - Wila",{"$f":"Übersetzungstabelle!$A$20","v":"Bus Überland/Berg (ohne Tourismus)"},null,"A"]
[7,"PAG",70.834999999999994,"835 Pfäffikon ZH - Hittnau - Saland - Bauma",{"$f":"Übersetzungstabelle!$A$20","v":"Bus Überland/Berg (ohne Tourismus)"},{"$f":"Übersetzungstabelle!$A$19","v":"Bus Agglomerationsverkehr"},"B"]
[7,"PAG",70.837000000000003,"837 Pfäffikon ZH - Oberhittnau - Hittnau",{"$f":"Übersetzungstabelle!$A$20","v":"Bus Überland/Berg (ohne Tourismus)"},null,"A"]
[7,"PAG",72.501000000000005,"501 (Ennenda -) Glarus - Riedern (- Netstal - Näfels-Mollis)",{"$f":"Übersetzungstabelle!$A$20","v":"Bus Überland/Berg (ohne Tourismus)"},"","B"]
[7,"PAG",72.521000000000001,"521 Uznach - Siebnen-Wangen - Buttikon - Reichenburg",{"$f":"Übersetzungstabelle!$A$20","v":"Bus Überland/Berg (ohne Tourismus)"},null,"B"]
[7,"PAG",72.522000000000006,"522 Pfäfikon SZ - Lachen SZ - Siebnen-Wangen - Nuolen",{"$f":"Übersetzungstabelle!$A$20","v":"Bus Überland/Berg (ohne Tourismus)"},null,"B"]
[7,"PAG",72.522999999999996,"523 Siebnen-Wangen - Innerthal",{"$f":"Übersetzungstabelle!$A$20","v":"Bus Überland/Berg (ohne Tourismus)"},"","A"]
[7,"PAG",72.524000000000001,"524 Pfäffikon SZ - Lachen SZ - Galgenen - Buttikon - Ziegelbrücke",{"$f":"Übersetzungstabelle!$A$20","v":"Bus Überland/Berg (ohne Tourismus)"},null,"B"]
[7,"PAG",80.12,"120 (Heiden - Eggersriet -) St. Gallen - Engelburg",{"$f":"Übersetzungstabelle!$A$19","v":"Bus Agglomerationsverkehr"},"","B"]
[7,"PAG",80.12,"120 Heiden - Eggersriet - St. Gallen (- Engelburg)",{"$f":"Übersetzungstabelle!$A$20","v":"Bus Überland/Berg (ohne Tourismus)"},{"$f":"Übersetzungstabelle!$A$19","v":"Bus Agglomerationsverkehr"},"B"]
[7,"PAG",80.120999999999995,"121 (Heiden - Rehetobel -) St. Gallen - Engelburg",{"$f":"Übersetzungstabelle!$A$20","v":"Bus Überland/Berg (ohne Tourismus)"},{"$f":"Übersetzungstabelle!$A$19","v":"Bus Agglomerationsverkehr"},"B"]
[7,"PAG",80.120999999999995,"121 Heiden - Rehetobel - St. Gallen (- Engelburg)",{"$f":"Übersetzungstabelle!$A$20","v":"Bus Überland/Berg (ohne Tourismus)"},{"$f":"Übersetzungstabelle!$A$19","v":"Bus Agglomerationsverkehr"},"B"]
[7,"PAG",80.132000000000005,"132 Waldkirch - Hohfirst - Engelburg",{"$f":"Übersetzungstabelle!$A$20","v":"Bus Überland/Berg (ohne Tourismus)"},"","B"]
[7,"PAG",80.153999999999996,"154 Wittenbach - Bernhardzell - Waldkirch - Arnegg",{"$f":"Übersetzungstabelle!$A$20","v":"Bus Überland/Berg (ohne Tourismus)"},"","B"]
[7,"PAG",80.180000000000007,"180 Herisau - Hundwil - Stein AR - St. Gallen",{"$f":"Übersetzungstabelle!$A$20","v":"Bus Überland/Berg (ohne Tourismus)"},"","B"]
[7,"PAG",80.182000000000002,"182 Brunnadern-Neckertal - Schönengrund - Waldstatt - Herisau",{"$f":"Übersetzungstabelle!$A$20","v":"Bus Überland/Berg (ohne Tourismus)"},"","A"]
[7,"PAG",80.183999999999997,"184 Degersheim - Dicken - St. Peterzell",{"$f":"Übersetzungstabelle!$A$20","v":"Bus Überland/Berg (ohne Tourismus)"},"","A"]
[7,"PAG",80.185000000000002,"185 St. Peterzell - Hemberg",{"$f":"Übersetzungstabelle!$A$20","v":"Bus Überland/Berg (ohne Tourismus)"},"","A"]
[7,"PAG",80.191000000000003,"191 Teufen - Appenzell - Eggerstanden",{"$f":"Übersetzungstabelle!$A$20","v":"Bus Überland/Berg (ohne Tourismus)"},"","B"]
[7,"PAG",80.191999999999993,"192 Weissbad - Brülisau",{"$f":"Übersetzungstabelle!$A$20","v":"Bus Überland/Berg (ohne Tourismus)"},{"$f":"Übersetzungstabelle!$A$22","v":"Bus Touristische Angebote"},"A"]
[7,"PAG",80.192999999999998,"193 PubliCar Appenzell",{"$f":"Übersetzungstabelle!$A$21","v":"Bus alternative Erschliessung"},"","A"]
[7,"PAG",80.2,"200 St. Gallen - Wittenbach - Arbon",{"$f":"Übersetzungstabelle!$A$19","v":"Bus Agglomerationsverkehr"},"","B"]
[7,"PAG",80.200999999999993,"201 St. Gallen - Arbon (Schnellbus)",{"$f":"Übersetzungstabelle!$A$20","v":"Bus Überland/Berg (ohne Tourismus)"},null,"B"]
[7,"PAG",80.204999999999998,"205 Häggenschwil-Winden - Lömmenschwil - Wittenbach",{"$f":"Übersetzungstabelle!$A$20","v":"Bus Überland/Berg (ohne Tourismus)"},"","A"]
[7,"PAG",80.209999999999994,"210 St. Gallen - Mörschwil - Tübach - Steinach - Horn - St. Gallen",{"$f":"Übersetzungstabelle!$A$19","v":"Bus Agglomerationsverkehr"},"","B"]
[7,"PAG",80.210999999999999,"211 St. Gallen - Tübach - Steinach - Horn - St. Gallen",{"$f":"Übersetzungstabelle!$A$20","v":"Bus Überland/Berg (ohne Tourismus)"},null,"B"]
[7,"PAG",80.221999999999994,"222 Heiden - Rheineck",{"$f":"Übersetzungstabelle!$A$20","v":"Bus Überland/Berg (ohne Tourismus)"},"","B"]
[7,"PAG",80.222999999999999,"223 Heiden - Walzenhausen - Rheineck (Abendangebot)",{"$f":"Übersetzungstabelle!$A$21","v":"Bus alternative Erschliessung"},"","A"]
[7,"PAG",80.224000000000004,"224 Heiden - Zelg - Walzenhausen - St.Margrethen",{"$f":"Übersetzungstabelle!$A$20","v":"Bus Überland/Berg (ohne Tourismus)"},"","B"]
[7,"PAG",80.224000000000004,"225 Heiden - Lachen - Walzenhausen - St. Margrethen",{"$f":"Übersetzungstabelle!$A$20","v":"Bus Überland/Berg (ohne Tourismus)"},null,"B"]
[7,"PAG",80.225999999999999,"226 Heiden - Heerbrugg",{"$f":"Übersetzungstabelle!$A$20","v":"Bus Überland/Berg (ohne Tourismus)"},"","B"]
[7,"PAG",80.227000000000004,"227 Heiden - Altstätten",{"$f":"Übersetzungstabelle!$A$20","v":"Bus Überland/Berg (ohne Tourismus)"},"","B"]
[7,"PAG",80.228999999999999,"229 Heiden - Oberegg St. Anton - Trogen",{"$f":"Übersetzungstabelle!$A$20","v":"Bus Überland/Berg (ohne Tourismus)"},"","A"]
[7,"PAG",80.23,"230 Heiden - Wald - Trogen",{"$f":"Übersetzungstabelle!$A$20","v":"Bus Überland/Berg (ohne Tourismus)"},"","B"]
[7,"PAG",80.239999999999995,"240 Rorschach - Goldach - St. Gallen",{"$f":"Übersetzungstabelle!$A$19","v":"Bus Agglomerationsverkehr"},null,"B"]
[7,"PAG",80.239999999999995,"241 Rorschacherberg - Goldach - St. Gallen",{"$f":"Übersetzungstabelle!$A$20","v":"Bus Überland/Berg (ohne Tourismus)"},null,"B"]
[7,"PAG",80.242000000000004,"242 St. Gallen - Untereggen - Goldach - Rorschach - Thal - Rheineck",{"$f":"Übersetzungstabelle!$A$19","v":"Bus Agglomerationsverkehr"},"","B"]
[7,"PAG",80.441000000000003,"441 Sargans - Flums - Flumserberg Tannenbodenalp",{"$f":"Übersetzungstabelle!$A$20","v":"Bus Überland/Berg (ohne Tourismus)"},{"$f":"Übersetzungstabelle!$A$22","v":"Bus Touristische Angebote"},"B"]
[7,"PAG",80.450999999999993,"451 Bad Ragaz - Vättis (- Gigerwald)",{"$f":"Übersetzungstabelle!$A$20","v":"Bus Überland/Berg (ohne Tourismus)"},"","A"]
[7,"PAG",80.450999999999993,"452 Bad Ragaz - Valens (Schnellbus)",{"$f":"Übersetzungstabelle!$A$20","v":"Bus Überland/Berg (ohne Tourismus)"},"","A"]
[7,"PAG",80.453999999999994,"454 Pfäfers - St. Margrethenberg",{"$f":"Übersetzungstabelle!$A$20","v":"Bus Überland/Berg (ohne Tourismus)"},"","A"]
[7,"PAG",80.63,"630 Benken - Uznach - Eschenbach SG - Goldingen - Atzmännig",{"$f":"Übersetzungstabelle!$A$20","v":"Bus Überland/Berg (ohne Tourismus)"},"","A"]
[7,"PAG",80.632000000000005,"632 Uznach - Gommiswald - Ricken",{"$f":"Übersetzungstabelle!$A$20","v":"Bus Überland/Berg (ohne Tourismus)"},"","A"]
[7,"PAG",80.632999999999996,"633 Uznach - Ernetschwil - Rieden",{"$f":"Übersetzungstabelle!$A$20","v":"Bus Überland/Berg (ohne Tourismus)"},"","A"]
[7,"PAG",80.635000000000005,"635 Ziegelbrücke - Schänis - Kaltbrunn - Benken",{"$f":"Übersetzungstabelle!$A$20","v":"Bus Überland/Berg (ohne Tourismus)"},{"$f":"Übersetzungstabelle!$A$19","v":"Bus Agglomerationsverkehr"},"B"]
[7,"PAG",80.724999999999994,"725 Wil SG - Zuzwil - Niederhelfenschwil",{"$f":"Übersetzungstabelle!$A$20","v":"Bus Überland/Berg (ohne Tourismus)"},"","A"]
[7,"PAG",80.725999999999999,"726 Wil SG - Henau - Uzwil",{"$f":"Übersetzungstabelle!$A$20","v":"Bus Überland/Berg (ohne Tourismus)"},"","B"]
[7,"PAG",80.727000000000004,"727 Wil SG - Zuzwil - Oberbüren - Gossau SG",{"$f":"Übersetzungstabelle!$A$20","v":"Bus Überland/Berg (ohne Tourismus)"},null,"A"]
[7,"PAG",80.727999999999994,"728 Zuckenriet - Oberbüren - Uzwil",{"$f":"Übersetzungstabelle!$A$20","v":"Bus Überland/Berg (ohne Tourismus)"},null,"B"]
[7,"PAG",80.73,"730 Wil SG - Jonschwil - Uzwil",{"$f":"Übersetzungstabelle!$A$20","v":"Bus Überland/Berg (ohne Tourismus)"},"","B"]
[7,"PAG",80.739999999999995,"740 Uzwil - Oberbüren - Niederbüren - Bischofszell",{"$f":"Übersetzungstabelle!$A$20","v":"Bus Überland/Berg (ohne Tourismus)"},"","B"]
[7,"PAG",80.741,"741 Uzwil - Bichwil - Flawil",{"$f":"Übersetzungstabelle!$A$20","v":"Bus Überland/Berg (ohne Tourismus)"},"","A"]
[7,"PAG",80.751000000000005,"751 Degersheim - Flawil",{"$f":"Übersetzungstabelle!$A$20","v":"Bus Überland/Berg (ohne Tourismus)"},"","A"]
[7,"PAG",80.765000000000001,"765 Bütschwil - Mosnang - Libingen",{"$f":"Übersetzungstabelle!$A$20","v":"Bus Überland/Berg (ohne Tourismus)"},"","A"]
[7,"PAG",80.765000000000001,"766 Bütschwil - Mosnang - Mühlrüti (- Hulftegg)",{"$f":"Übersetzungstabelle!$A$20","v":"Bus Überland/Berg (ohne Tourismus)"},"","A"]
[7,"PAG",80.766999999999996,"767 Ganterschwil - Lütisburg - Rindal - Flawil",{"$f":"Übersetzungstabelle!$A$20","v":"Bus Überland/Berg (ohne Tourismus)"},"","B"]
[7,"PAG",80.768000000000001,"768 Bütschwil - Ganterschwil - Lütisburg",{"$f":"Übersetzungstabelle!$A$20","v":"Bus Überland/Berg (ohne Tourismus)"},"","B"]
[7,"PAG",80.771000000000001,"771 Dietfurt - Oberhelfenschwil - Brunnadern-Neckertal",{"$f":"Übersetzungstabelle!$A$20","v":"Bus Überland/Berg (ohne Tourismus)"},"","A"]
[7,"PAG",80.772000000000006,"772 Krinau - Lichtensteig - Dietfurt",{"$f":"Übersetzungstabelle!$A$20","v":"Bus Überland/Berg (ohne Tourismus)"},"","A"]
[7,"PAG",80.78,"780 Wattwil - Hemberg",{"$f":"Übersetzungstabelle!$A$20","v":"Bus Überland/Berg (ohne Tourismus)"},"","B"]
[7,"PAG",80.790000000000006,"790 Wattwil - Nesslau - Wildhaus - Buchs SG",{"$f":"Übersetzungstabelle!$A$20","v":"Bus Überland/Berg (ohne Tourismus)"},null,"B"]
[7,"PAG",80.790999999999997,"792 Nesslau - Ennetbühl (- Schwägalp)",{"$f":"Übersetzungstabelle!$A$20","v":"Bus Überland/Berg (ohne Tourismus)"},"","A"]
[7,"PAG",80.822000000000003,"822 Frauenfeld - Oberneunforn",{"$f":"Übersetzungstabelle!$A$20","v":"Bus Überland/Berg (ohne Tourismus)"},"","A"]
[7,"PAG",80.822999999999993,"823 Frauenfeld - Stammheim - Diessenhofen",{"$f":"Übersetzungstabelle!$A$20","v":"Bus Überland/Berg (ohne Tourismus)"},"","B"]
[7,"PAG",80.825000000000003,"825 Frauenfeld - Stein am Rhein",{"$f":"Übersetzungstabelle!$A$20","v":"Bus Überland/Berg (ohne Tourismus)"},"","B"]
[7,"PAG",80.825999999999993,"826 Frauenfeld - Steckborn",{"$f":"Übersetzungstabelle!$A$20","v":"Bus Überland/Berg (ohne Tourismus)"},"","B"]
[7,"PAG",80.828000000000003,"828 Frauenfeld - Uesslingen - Nussbaumen - Oberneunforn (Abendbus)",{"$f":"Übersetzungstabelle!$A$20","v":"Bus Überland/Berg (ohne Tourismus)"},null,"A"]
[7,"PAG",80.828999999999994,"829 Frauenfeld - Pfyn - Müllheim (- Lipperswil)",{"$f":"Übersetzungstabelle!$A$20","v":"Bus Überland/Berg (ohne Tourismus)"},"","B"]
[7,"PAG",80.831000000000003,"831 Müllheim-Wigoltingen - Homburg",{"$f":"Übersetzungstabelle!$A$20","v":"Bus Überland/Berg (ohne Tourismus)"},"","A"]
[7,"PAG",80.831999999999994,"832 Müllheim-Wigoltingen - Raperswilen - Homburg",{"$f":"Übersetzungstabelle!$A$20","v":"Bus Überland/Berg (ohne Tourismus)"},null,"B"]
[7,"PAG",80.832999999999998,"833 Weinfelden - Ermatingen",{"$f":"Übersetzungstabelle!$A$20","v":"Bus Überland/Berg (ohne Tourismus)"},"","A"]
[7,"PAG",80.834000000000003,"834 Frauenfeld - Aadorf - Ettenhausen",{"$f":"Übersetzungstabelle!$A$20","v":"Bus Überland/Berg (ohne Tourismus)"},"","B"]
[7,"PAG",80.835999999999999,"836 Frauenfeld - Gachnang - Islikon",{"$f":"Übersetzungstabelle!$A$20","v":"Bus Überland/Berg (ohne Tourismus)"},"","A"]
[7,"PAG",80.837000000000003,"837 Frauenfeld - Thundorf - Stettfurt - Tobel-Affeltrangen",{"$f":"Übersetzungstabelle!$A$20","v":"Bus Überland/Berg (ohne Tourismus)"},"","A"]
[7,"PAG",80.837999999999994,"838 Frauenfeld - Thundorf - Weinfelden",{"$f":"Übersetzungstabelle!$A$20","v":"Bus Überland/Berg (ohne Tourismus)"},"","A"]
[7,"PAG",80.846999999999994,"847 Schlatt b. Diessenhofen - Wildensbuch - Marthalen",{"$f":"Übersetzungstabelle!$A$20","v":"Bus Überland/Berg (ohne Tourismus)"},"","A"]
[7,"PAG",80.908000000000001,"908 (Konstanz -) Kreuzlingen Hauptzoll - Kreuzlingen - Münsterlingen Spital - Landschlacht",{"$f":"Übersetzungstabelle!$A$20","v":"Bus Überland/Berg (ohne Tourismus)"},"","B"]
[7,"PAG",80.92,"920 Tägerwilen - Engwilen - Märstetten - Weinfelden",{"$f":"Übersetzungstabelle!$A$20","v":"Bus Überland/Berg (ohne Tourismus)"},"","A"]
[7,"PAG",80.921000000000006,"921 Kreuzlingen - Hugelshofen - Weinfelden",{"$f":"Übersetzungstabelle!$A$20","v":"Bus Überland/Berg (ohne Tourismus)"},"","A"]
[7,"PAG",80.923000000000002,"923 Kreuzlingen - Bottighofen - Scherzingen - Altnau - Güttingen",{"$f":"Übersetzungstabelle!$A$20","v":"Bus Überland/Berg (ohne Tourismus)"},"","B"]
[7,"PAG",80.924000000000007,"924 Kreuzlingen - Lengwil - Birwinken - Donzhausen - Weinfelden",{"$f":"Übersetzungstabelle!$A$20","v":"Bus Überland/Berg (ohne Tourismus)"},"","A"]
[7,"PAG",80.924999999999997,"925 Konstanz - Kreuzlingen - Münsterlingen - Altnau (Abendbus)",{"$f":"Übersetzungstabelle!$A$20","v":"Bus Überland/Berg (ohne Tourismus)"},null,"A"]
[7,"PAG",80.930999999999997,"931 Amriswil - Langrickenbach - Münsterlingen",{"$f":"Übersetzungstabelle!$A$20","v":"Bus Überland/Berg (ohne Tourismus)"},"","A"]
[7,"PAG",80.932000000000002,"932 Weinfelden - Mettlen - Schönholzerswilen - Neukirch an der Thur",{"$f":"Übersetzungstabelle!$A$20","v":"Bus Überland/Berg (ohne Tourismus)"},"","A"]
[7,"PAG",80.933999999999997,"934 Weinfelden - Wuppenau",{"$f":"Übersetzungstabelle!$A$21","v":"Bus alternative Erschliessung"},"","A"]
[7,"PAG",80.944000000000003,"944 Dozwil - Amriswil - Erlen",{"$f":"Übersetzungstabelle!$A$20","v":"Bus Überland/Berg (ohne Tourismus)"},"","A"]
[7,"PAG",80.95,"950 Bischofszell - St. Pelagiberg",{"$f":"Übersetzungstabelle!$A$20","v":"Bus Überland/Berg (ohne Tourismus)"},"","A"]
[7,"PAG",90.003,"3 Chur - Trimmis - Untervaz / Chur - Haldenstein",{"$f":"Übersetzungstabelle!$A$20","v":"Bus Überland/Berg (ohne Tourismus)"},"","B"]
[7,"PAG",90.021000000000001,"21 Landquart - Mastrils",{"$f":"Übersetzungstabelle!$A$20","v":"Bus Überland/Berg (ohne Tourismus)"},"","A"]
[7,"PAG",90.022000000000006,"22 Bad Ragaz - Fläsch - Maienfeld - Jenins - Landquart",{"$f":"Übersetzungstabelle!$A$20","v":"Bus Überland/Berg (ohne Tourismus)"},"","A"]
[7,"PAG",90.025000000000006,"25 Trimmis - Says",{"$f":"Übersetzungstabelle!$A$20","v":"Bus Überland/Berg (ohne Tourismus)"},"","A"]
[7,"PAG",90.040999999999997,"41 Chur - St. Peter - Peist",{"$f":"Übersetzungstabelle!$A$20","v":"Bus Überland/Berg (ohne Tourismus)"},"","A"]
[7,"PAG",90.042000000000002,"42 Chur - Tschiertschen",{"$f":"Übersetzungstabelle!$A$20","v":"Bus Überland/Berg (ohne Tourismus)"},"","A"]
[7,"PAG",90.081000000000003,"81 Chur - Domat/Ems - Tamins - Flims - Laax [- Falera",{"$f":"Übersetzungstabelle!$A$20","v":"Bus Überland/Berg (ohne Tourismus)"},"","B"]
[7,"PAG",90.081999999999994,"82 Falera - Laax - Flims (- Bargis)",{"$f":"Übersetzungstabelle!$A$20","v":"Bus Überland/Berg (ohne Tourismus)"},{"$f":"Übersetzungstabelle!$A$22","v":"Bus Touristische Angebote"},"A"]
[7,"PAG",90.171000000000006,"171 Chur - S. Bernardino - Bellinzona",{"$f":"Übersetzungstabelle!$A$20","v":"Bus Überland/Berg (ohne Tourismus)"},"","A"]
[7,"PAG",90.183000000000007,"183 Lenzerheide/Lai - Davos Platz",{"$f":"Übersetzungstabelle!$A$20","v":"Bus Überland/Berg (ohne Tourismus)"},"","A"]
[7,"PAG",90.183999999999997,"184 Lenzerheide/Lai - Vaz/Obervaz",{"$f":"Übersetzungstabelle!$A$20","v":"Bus Überland/Berg (ohne Tourismus)"},"","A"]
[7,"PAG",90.200999999999993,"201 Seewis Dorf - Grüsch - Landquart",{"$f":"Übersetzungstabelle!$A$20","v":"Bus Überland/Berg (ohne Tourismus)"},"","A"]
[7,"PAG",90.201999999999998,"202 Grüsch - Valzeina",{"$f":"Übersetzungstabelle!$A$20","v":"Bus Überland/Berg (ohne Tourismus)"},"","A"]
[7,"PAG",90.210999999999999,"211 Schiers - Fanas",{"$f":"Übersetzungstabelle!$A$20","v":"Bus Überland/Berg (ohne Tourismus)"},"","A"]
[7,"PAG",90.212000000000003,"212 Schiers - Stels - Mottis",{"$f":"Übersetzungstabelle!$A$20","v":"Bus Überland/Berg (ohne Tourismus)"},"","A"]
[7,"PAG",90.212999999999994,"213 Schiers - Pusserein - Schuders",{"$f":"Übersetzungstabelle!$A$20","v":"Bus Überland/Berg (ohne Tourismus)"},"","A"]
[7,"PAG",90.213999999999999,"214 Schiers - Pany",{"$f":"Übersetzungstabelle!$A$20","v":"Bus Überland/Berg (ohne Tourismus)"},"","A"]
[7,"PAG",90.221000000000004,"221 Küblis - Fideris - Pragg-Jenaz - Furna",{"$f":"Übersetzungstabelle!$A$20","v":"Bus Überland/Berg (ohne Tourismus)"},"","A"]
[7,"PAG",90.221999999999994,"222 Küblis - Pany - St. Antönien",{"$f":"Übersetzungstabelle!$A$20","v":"Bus Überland/Berg (ohne Tourismus)"},"","A"]
[7,"PAG",90.222999999999999,"223 Küblis - Conters im Prättigau",{"$f":"Übersetzungstabelle!$A$20","v":"Bus Überland/Berg (ohne Tourismus)"},"","A"]
[7,"PAG",90.400999999999996,"401 Versam-Safien - Thalkirch /- Tenna",{"$f":"Übersetzungstabelle!$A$20","v":"Bus Überland/Berg (ohne Tourismus)"},"","A"]
[7,"PAG",90.405000000000001,"405 Ilanz - Riein",{"$f":"Übersetzungstabelle!$A$20","v":"Bus Überland/Berg (ohne Tourismus)"},"","A"]
[7,"PAG",90.411000000000001,"411 Ilanz - Laax - Falera /- Flims (- Bargis)",{"$f":"Übersetzungstabelle!$A$20","v":"Bus Überland/Berg (ohne Tourismus)"},"","B"]
[7,"PAG",90.421000000000006,"421 Ilanz - Siat",{"$f":"Übersetzungstabelle!$A$20","v":"Bus Überland/Berg (ohne Tourismus)"},"","A"]
[7,"PAG",90.421999999999997,"422 Ilanz - Ladir",{"$f":"Übersetzungstabelle!$A$20","v":"Bus Überland/Berg (ohne Tourismus)"},"","A"]
[7,"PAG",90.424000000000007,"424 Ilanz - Waltensburg/Vuorz - Andiast",{"$f":"Übersetzungstabelle!$A$20","v":"Bus Überland/Berg (ohne Tourismus)"},"","A"]
[7,"PAG",90.430999999999997,"431 Ilanz - Vals (- Zervreila)",{"$f":"Übersetzungstabelle!$A$20","v":"Bus Überland/Berg (ohne Tourismus)"},"","A"]
[7,"PAG",90.441000000000003,"441 Ilanz - Vrin",{"$f":"Übersetzungstabelle!$A$20","v":"Bus Überland/Berg (ohne Tourismus)"},"","A"]
[7,"PAG",90.441999999999993,"442 Ilanz - Luven",{"$f":"Übersetzungstabelle!$A$20","v":"Bus Überland/Berg (ohne Tourismus)"},"","A"]
[7,"PAG",90.442999999999998,"443 Morissen - Cuschnaus - Vella",{"$f":"Übersetzungstabelle!$A$20","v":"Bus Überland/Berg (ohne Tourismus)"},"","A"]
[7,"PAG",90.444000000000003,"444 Degen - Vattiz - Vella",{"$f":"Übersetzungstabelle!$A$20","v":"Bus Überland/Berg (ohne Tourismus)"},"","A"]
[7,"PAG",90.450999999999993,"451 Ilanz - Obersaxen",{"$f":"Übersetzungstabelle!$A$20","v":"Bus Überland/Berg (ohne Tourismus)"},"","A"]
[7,"PAG",90.460999999999999,"461 Tavanasa-Breil/Brigels - Breil/Brigels",{"$f":"Übersetzungstabelle!$A$20","v":"Bus Überland/Berg (ohne Tourismus)"},"","A"]
[7,"PAG",90.471999999999994,"472 Zignau - Trun - Campliun",{"$f":"Übersetzungstabelle!$A$21","v":"Bus alternative Erschliessung"},"","A"]
[7,"PAG",90.480999999999995,"481 Disentis/Mustér - Fuorns (- Lukmanier)",{"$f":"Übersetzungstabelle!$A$20","v":"Bus Überland/Berg (ohne Tourismus)"},{"$f":"Übersetzungstabelle!$A$22","v":"Bus Touristische Angebote"},"A"]
[7,"PAG",90.501000000000005,"501 Tumgel/Tomils Curschiglias - Oberscheid (- Feldis/Veulden)",{"$f":"Übersetzungstabelle!$A$21","v":"Bus alternative Erschliessung"},"","A"]
[7,"PAG",90.510999999999996,"511 Thusis - Cazis - Almens - Rhäzüns",{"$f":"Übersetzungstabelle!$A$20","v":"Bus Überland/Berg (ohne Tourismus)"},"","A"]
[7,"PAG",90.512,"512 Thusis - Sils /- Almens - Rothenbrunnen - Rhäzüns",{"$f":"Übersetzungstabelle!$A$20","v":"Bus Überland/Berg (ohne Tourismus)"},"","A"]
[7,"PAG",90.531000000000006,"531 Thusis - Obertschappina (- Glaspass)",{"$f":"Übersetzungstabelle!$A$20","v":"Bus Überland/Berg (ohne Tourismus)"},"","A"]
[7,"PAG",90.531999999999996,"532 Thusis - Präz",{"$f":"Übersetzungstabelle!$A$20","v":"Bus Überland/Berg (ohne Tourismus)"},"","A"]
[7,"PAG",90.540999999999997,"541 Thusis - Splügen - S. Bernardino - (Mesocco - Bellinzona)",{"$f":"Übersetzungstabelle!$A$20","v":"Bus Überland/Berg (ohne Tourismus)"},"","A"]
[7,"PAG",90.551000000000002,"551 (Andeer -) Zillis - Lohn - Wergenstein",{"$f":"Übersetzungstabelle!$A$20","v":"Bus Überland/Berg (ohne Tourismus)"},"","A"]
[7,"PAG",90.552000000000007,"552 Andeer - Cresta (Avers) - Juf",{"$f":"Übersetzungstabelle!$A$20","v":"Bus Überland/Berg (ohne Tourismus)"},"","A"]
[7,"PAG",90.572000000000003,"572 Tiefencastel - Surava - Alvaneu - Filisur",{"$f":"Übersetzungstabelle!$A$20","v":"Bus Überland/Berg (ohne Tourismus)"},"","A"]
[7,"PAG",90.581000000000003,"581 Savognin - Parsonz - Salouf - Stierva",{"$f":"Übersetzungstabelle!$A$20","v":"Bus Überland/Berg (ohne Tourismus)"},"","A"]
[7,"PAG",90.603999999999999,"604 St. Moritz - Maloja - Castasegna [- Chiavenna",{"$f":"Übersetzungstabelle!$A$20","v":"Bus Überland/Berg (ohne Tourismus)"},{"$f":"Übersetzungstabelle!$A$22","v":"Bus Touristische Angebote"},"A"]
[7,"PAG",90.632000000000005,"632 Promontogno - Soglio",{"$f":"Übersetzungstabelle!$A$20","v":"Bus Überland/Berg (ohne Tourismus)"},"","A"]
[7,"PAG",90.700999999999993,"701 (Le Prese -) Poschiavo - Percosta (- Samedan)",{"$f":"Übersetzungstabelle!$A$20","v":"Bus Überland/Berg (ohne Tourismus)"},{"$f":"Übersetzungstabelle!$A$22","v":"Bus Touristische Angebote"},"A"]
[7,"PAG",90.811000000000007,"811 Zernez - Müstair (- Malles/Mals)",{"$f":"Übersetzungstabelle!$A$20","v":"Bus Überland/Berg (ohne Tourismus)"},{"$f":"Übersetzungstabelle!$A$22","v":"Bus Touristische Angebote"},"A"]
[7,"PAG",90.850999999999999,"851 Guarda staziun - Guarda cumün",{"$f":"Übersetzungstabelle!$A$20","v":"Bus Überland/Berg (ohne Tourismus)"},"","A"]
[7,"PAG",90.911000000000001,"911 Scuol - Ftan",{"$f":"Übersetzungstabelle!$A$20","v":"Bus Überland/Berg (ohne Tourismus)"},"","A"]
[7,"PAG",90.912000000000006,"912 Scuol - Vulpera - Tarasp",{"$f":"Übersetzungstabelle!$A$20","v":"Bus Überland/Berg (ohne Tourismus)"},"","A"]
[7,"PAG",90.921000000000006,"921 Scuol - Martina [- Samnaun /(- Landeck)",{"$f":"Übersetzungstabelle!$A$20","v":"Bus Überland/Berg (ohne Tourismus)"},"","A"]
[7,"PAG",90.930999999999997,"931 Ramosch - Vnà",{"$f":"Übersetzungstabelle!$A$20","v":"Bus Überland/Berg (ohne Tourismus)"},"","A"]
[7,"PAG",90.941000000000003,"941 Strada - Tschlin",{"$f":"Übersetzungstabelle!$A$20","v":"Bus Überland/Berg (ohne Tourismus)"},"","A"]
[7,"PAG",412,"Oensingen - Balsthal (Bus)",{"$f":"Übersetzungstabelle!$A$21","v":"Bus alternative Erschliessung"},"","B"]
[7,"PAG",12.141999999999999,"142 Aigle - Vionnaz - Torgon",{"$f":"Übersetzungstabelle!$A$20","v":"Bus Überland/Berg (ohne Tourismus)"},"","A"]
[7,"PAG","12.381/382","381/382 Sion - Les Haudères - Arolla",{"$f":"Übersetzungstabelle!$A$20","v":"Bus Überland/Berg (ohne Tourismus)"},"","A"]
[7,"PAG","12.386/387","386/387 Sion - St-Martin - Eison / St-Martin - Praz-Jean",{"$f":"Übersetzungstabelle!$A$20","v":"Bus Überland/Berg (ohne Tourismus)"},"","A"]
[7,"PAG","12.451/453","451/453 Sierre - Vissoie - Zinal",{"$f":"Übersetzungstabelle!$A$20","v":"Bus Überland/Berg (ohne Tourismus)"},{"$f":"Übersetzungstabelle!$A$22","v":"Bus Touristische Angebote"},"A"]
[7,"PAG","12.621/622","621/622 Brig - Brigerbad - Visp",{"$f":"Übersetzungstabelle!$A$20","v":"Bus Überland/Berg (ohne Tourismus)"},"","A"]
[7,"PAG",12.13,"130 Monthey - Collombey - Illarsaz",{"$f":"Übersetzungstabelle!$A$20","v":"Bus Überland/Berg (ohne Tourismus)"},"","A"]
[7,"PAG",22.140999999999998,"141 PubliCar la Courtine de Bellelay",{"$f":"Übersetzungstabelle!$A$21","v":"Bus alternative Erschliessung"},"","A"]
[7,"PAG",62.311,"311 Locarno - Cugnasco - Bellinzona (PAG)",{"$f":"Übersetzungstabelle!$A$20","v":"Bus Überland/Berg (ohne Tourismus)"},"","B"]
[7,"PAG",80.12,"120 (Heiden - Eggersriet -) St. Gallen - Engelburg (Nachtangebot)",{"$f":"Übersetzungstabelle!$A$21","v":"Bus alternative Erschliessung"},"","B"]
[7,"PAG",80.12,"120 Heiden - Eggersriet - St. Gallen (- Engelburg) (Nachtangebot)",{"$f":"Übersetzungstabelle!$A$21","v":"Bus alternative Erschliessung"},"","B"]
[7,"PAG",80.183000000000007,"183 Schönengrund - Schwellbrunn - Herisau (Abendangebot)",{"$f":"Übersetzungstabelle!$A$21","v":"Bus alternative Erschliessung"},"","A"]
[7,"PAG",80.2,"200 St. Gallen - Arbon (Nachtangebot)",{"$f":"Übersetzungstabelle!$A$21","v":"Bus alternative Erschliessung"},"","B"]
[7,"PAG",80.225999999999999,"226 PubliCar Oberegg-Reute (Abendangebot)",{"$f":"Übersetzungstabelle!$A$21","v":"Bus alternative Erschliessung"},"","A"]
[7,"PAG","90.181/182","182 Chur - Lenzerheide - Bivio (- St. Moritz)",{"$f":"Übersetzungstabelle!$A$20","v":"Bus Überland/Berg (ohne Tourismus)"},{"$f":"Übersetzungstabelle!$A$22","v":"Bus Touristische Angebote"},"B"]
[7,"PAG","9201/9236/9237","Transports nocturnes JU",{"$f":"Übersetzungstabelle!$A$21","v":"Bus alternative Erschliessung"},"","B"]
[7,"PAG",20.538,"538 (Avenches -) Salavaux - Mur",{"$f":"Übersetzungstabelle!$A$20","v":"Bus Überland/Berg (ohne Tourismus)"},null,"A"]
[7,"PAG",21.611999999999998,"612 Gorgier-St-Aubin - Bevaix - Boudry",{"$f":"Übersetzungstabelle!$A$20","v":"Bus Überland/Berg (ohne Tourismus)"},null,"B"]
[7,"PAG",21.613,"613 Boudry - Perreux - Cortaillod - Areuse",{"$f":"Übersetzungstabelle!$A$20","v":"Bus Überland/Berg (ohne Tourismus)"},"","B"]
[7,"PAG",80.631,"631 Rüti ZH - Eschenbach SG (- Uznach - Kaltbrunn) (PAG)",{"$f":"Übersetzungstabelle!$A$20","v":"Bus Überland/Berg (ohne Tourismus)"},null,"B"]
[7,"PAG",20.46,"460 Romont FR - Villaz-St-Pierre - Sédeilles - Rosé - Avry Centre",{"$f":"Übersetzungstabelle!$A$20","v":"Bus Überland/Berg (ohne Tourismus)"},null,"B"]
[7,"PAG",70.623000000000005,"623 Marthalen - Oerlingen - Ossingen",{"$f":"Übersetzungstabelle!$A$20","v":"Bus Überland/Berg (ohne Tourismus)"},null,"B"]
[7,"PAG",70.671000000000006,"671 Hettlingen - Neftenbach - Winterthur",{"$f":"Übersetzungstabelle!$A$19","v":"Bus Agglomerationsverkehr"},null,"B"]
[7,"PAG",70.680999999999997,"681 Elgg - Hagenbuch",{"$f":"Übersetzungstabelle!$A$20","v":"Bus Überland/Berg (ohne Tourismus)"},null,"B"]
[7,"PAG",70.825999999999993,"826 Pfäffikon ZH - Russikon - Theilingen",{"$f":"Übersetzungstabelle!$A$20","v":"Bus Überland/Berg (ohne Tourismus)"},null,"B"]
[7,"PAG",70.528999999999996,"529 Rorbas - Freienstein - Dättlikon - Pfungen",{"$f":"Übersetzungstabelle!$A$20","v":"Bus Überland/Berg (ohne Tourismus)"},null,"B"]
[7,"PAG",60.31,"310 Stans - Flüelen (Gotthard-Riviera-Express)",{"$f":"Übersetzungstabelle!$A$20","v":"Bus Überland/Berg (ohne Tourismus)"},null,"B"]
[7,"PAG",21.132999999999999,"133 Enges - St-Blaise - Marin - Le Landeron",{"$f":"Übersetzungstabelle!$A$20","v":"Bus Überland/Berg (ohne Tourismus)"},null,"A"]
[7,"PAG",20.564,"564 Granges-près-Marnand - Trey - Sédeilles /- Henniez - Seigneux - Sédeilles",{"$f":"Übersetzungstabelle!$A$20","v":"Bus Überland/Berg (ohne Tourismus)"},null,"A"]
[7,"PAG",70.234999999999999,"236 Zürich Wiedikon - Stallikon - Hausen am Albis [- Ebertswil",{"$f":"Übersetzungstabelle!$A$20","v":"Bus Überland/Berg (ohne Tourismus)"},{"$f":"Übersetzungstabelle!$A$19","v":"Bus Agglomerationsverkehr"},"B"]
[7,"PAG",70.504000000000005,"504 Bülach - Bachenbülach - Oberglatt",{"$f":"Übersetzungstabelle!$A$20","v":"Bus Überland/Berg (ohne Tourismus)"},null,"B"]
[7,"PAG",70.543000000000006,"543 Hüntwangen-Wil - Eglisau Tössriederen",{"$f":"Übersetzungstabelle!$A$20","v":"Bus Überland/Berg (ohne Tourismus)"},null,"A"]
[7,"PAG",70.677000000000007,"677 Flaach - Andelfingen",{"$f":"Übersetzungstabelle!$A$20","v":"Bus Überland/Berg (ohne Tourismus)"},null,"B"]
[7,"PAG",70.858999999999995,"859 Pfäffikon ZH - Auslikon - Wetzikon ZH",{"$f":"Übersetzungstabelle!$A$20","v":"Bus Überland/Berg (ohne Tourismus)"},null,"B"]
[7,"PAG",70.209999999999994,"210 Zürich Enge - Bonstetten-Wettswil - Bonstetten",{"$f":"Übersetzungstabelle!$A$20","v":"Bus Überland/Berg (ohne Tourismus)"},null,"B"]
[7,"PAG",12.12,"120 Monthey - Vouvry - Villeneuve VD",{"$f":"Übersetzungstabelle!$A$20","v":"Bus Überland/Berg (ohne Tourismus)"},null,"A"]
[16,"BLS",30.283999999999999,"284 Ramsei - Langnau i.E. (- Trub - Fankhaus - Mettlenalp)",{"$f":"Übersetzungstabelle!$A$21","v":"Bus alternative Erschliessung"},"","A"]
[16,"BLS",145,"RE (Bern -) Brig - Iselle (- Domodossola)",{"$f":"Übersetzungstabelle!$A$12","v":"Normalspur Schnellzüge"},null,"B"]
[16,"BLS",223,"RE (Bern -) Neuchâtel - La-Chaux-de-Fonds",{"$f":"Übersetzungstabelle!$A$12","v":"Normalspur Schnellzüge"},null,"B"]
[16,"BLS",291,"(Kerzers -) Lyss - Büren a.A.",{"$f":"Übersetzungstabelle!$A$11","v":"Normalspur Überland/Regionalverkehr"},"","B"]
[16,"BLS",291,"Kerzers - Lyss (- Büren a.A.)",{"$f":"Übersetzungstabelle!$A$11","v":"Normalspur Überland/Regionalverkehr"},"","B"]
[16,"BLS",301,"S1 (Fribourg - Flamatt -) Bern - Münsingen - Thun",{"$f":"Übersetzungstabelle!$A$10","v":"Normalspur Agglomeration (S-Bahnen) "},"","B"]
[16,"BLS",301,"S1 Fribourg - Flamatt - Bern (- Münsingen - Thun)",{"$f":"Übersetzungstabelle!$A$10","v":"Normalspur Agglomeration (S-Bahnen) "},"","B"]
[16,"BLS",302,"S2 (Laupen - Flamatt -) Bern - Konolfingen - Langnau",{"$f":"Übersetzungstabelle!$A$10","v":"Normalspur Agglomeration (S-Bahnen) "},"","B"]
[16,"BLS",302,"S2 Laupen - Flamatt - Bern (- Konolfingen - Langnau)",{"$f":"Übersetzungstabelle!$A$10","v":"Normalspur Agglomeration (S-Bahnen) "},"","B"]
[16,"BLS",303,"S3 (Belp -) Bern - Biel/Bienne",{"$f":"Übersetzungstabelle!$A$10","v":"Normalspur Agglomeration (S-Bahnen) "},"","B"]
[16,"BLS",303,"S3 Belp - Bern (- Biel/Bienne)",{"$f":"Übersetzungstabelle!$A$10","v":"Normalspur Agglomeration (S-Bahnen) "},"","B"]
[16,"BLS",303,"S31 (Belp -) Bern - Münchenbuchsee [- Biel/Bienne]",{"$f":"Übersetzungstabelle!$A$11","v":"Normalspur Überland/Regionalverkehr"},null,"B"]
[16,"BLS",303,"S31 Belp - Bern (- Münchenbuchsee - Biel/Bienne)",{"$f":"Übersetzungstabelle!$A$11","v":"Normalspur Überland/Regionalverkehr"},null,"B"]
[16,"BLS",303,"S4 Thun - Belp - Bern (- Burgdorf - Langnau)",{"$f":"Übersetzungstabelle!$A$11","v":"Normalspur Überland/Regionalverkehr"},"","B"]
[16,"BLS",303,"S44 Thun - Belp - Bern (- Burgdorf - Sumiswald-Grünen /- Solothurn)",{"$f":"Übersetzungstabelle!$A$11","v":"Normalspur Überland/Regionalverkehr"},"","B"]
[16,"BLS",304.10000000000002,"(Thun -) Burgdorf - Solothurn",{"$f":"Übersetzungstabelle!$A$12","v":"Normalspur Schnellzüge"},"","B"]
[16,"BLS",304.10000000000002,"S44 (Thun - Belp - Bern -) Burgdorf - Solothurn",{"$f":"Übersetzungstabelle!$A$11","v":"Normalspur Überland/Regionalverkehr"},"","B"]
[16,"BLS",304.2,"S4 (Thun - Belp -) Bern - Burgdorf - Langnau",{"$f":"Übersetzungstabelle!$A$11","v":"Normalspur Überland/Regionalverkehr"},"","B"]
[16,"BLS",304.2,"S44 (Thun - Belp -) Bern - Burgdorf - Sumiswald-Grünen",{"$f":"Übersetzungstabelle!$A$11","v":"Normalspur Überland/Regionalverkehr"},"","B"]
[16,"BLS",305,"Murten - Payerne (Verdichtungszüge)",{"$f":"Übersetzungstabelle!$A$11","v":"Normalspur Überland/Regionalverkehr"},"","B"]
[16,"BLS",305,"RE Bern - Neuchâtel (- La-Chaux-de-Fonds)",{"$f":"Übersetzungstabelle!$A$12","v":"Normalspur Schnellzüge"},"","B"]
[16,"BLS",305,"S5 Bern - Neuchâtel /- Murten (- Payerne)",{"$f":"Übersetzungstabelle!$A$11","v":"Normalspur Überland/Regionalverkehr"},"","B"]
[16,"BLS",305,"S51 Bern - Bern Brünnen Westside",{"$f":"Übersetzungstabelle!$A$11","v":"Normalspur Überland/Regionalverkehr"},"","B"]
[16,"BLS",305,"S52 Bern - Kerzers [- Neuchâtel",{"$f":"Übersetzungstabelle!$A$11","v":"Normalspur Überland/Regionalverkehr"},"","B"]
[16,"BLS",306,"S6 Bern - Schwarzenburg",{"$f":"Übersetzungstabelle!$A$11","v":"Normalspur Überland/Regionalverkehr"},"","B"]
[16,"BLS",310,"RE (Zweisimmen -) Spiez - Interlaken Ost",{"$f":"Übersetzungstabelle!$A$12","v":"Normalspur Schnellzüge"},"","B"]
[16,"BLS",310,"Spiez - Interlaken Ost",{"$f":"Übersetzungstabelle!$A$11","v":"Normalspur Überland/Regionalverkehr"},"","B"]
[16,"BLS",310,"Spiez - Interlaken Ost (Bus)",{"$f":"Übersetzungstabelle!$A$21","v":"Bus alternative Erschliessung"},"","A"]
[16,"BLS",320,"RE (Interlaken Ost -) Spiez - Zweisimmen",{"$f":"Übersetzungstabelle!$A$12","v":"Normalspur Schnellzüge"},"","B"]
[16,"BLS",320,"Spiez - Frutigen (Verdichtungszüge)",{"$f":"Übersetzungstabelle!$A$12","v":"Normalspur Schnellzüge"},"","B"]
[16,"BLS",320,"Spiez - Zweisimmen",{"$f":"Übersetzungstabelle!$A$11","v":"Normalspur Überland/Regionalverkehr"},"","B"]
[16,"BLS",330,"RE Bern - Spiez - Kandersteg - Brig (- Domodossola)",{"$f":"Übersetzungstabelle!$A$12","v":"Normalspur Schnellzüge"},"","B"]
[16,"BLS",340,"Thun - Burgdorf (- Solothurn)",{"$f":"Übersetzungstabelle!$A$12","v":"Normalspur Schnellzüge"},"","B"]
[16,"BLS",340,"Thun - Hasle-Rüegsau [- Burgdorf",{"$f":"Übersetzungstabelle!$A$11","v":"Normalspur Überland/Regionalverkehr"},"","B"]
[16,"BLS",440,"S6 Langenthal - Wolhusen (- Luzern)",{"$f":"Übersetzungstabelle!$A$11","v":"Normalspur Überland/Regionalverkehr"},"","B"]
[16,"BLS",440,"S7 Langenthal - Wolhusen (- Luzern)",{"$f":"Übersetzungstabelle!$A$11","v":"Normalspur Überland/Regionalverkehr"},"","B"]
[16,"BLS",460,"RE Bern - Langnau - Luzern",{"$f":"Übersetzungstabelle!$A$12","v":"Normalspur Schnellzüge"},"","B"]
[16,"BLS",460,"S6 Luzern - Wolhusen - Langnau /(- Langenthal)",{"$f":"Übersetzungstabelle!$A$11","v":"Normalspur Überland/Regionalverkehr"},"","B"]
[16,"BLS",460,"S61 Luzern - Schachen LU",{"$f":"Übersetzungstabelle!$A$11","v":"Normalspur Überland/Regionalverkehr"},"","B"]
[19,"SOB",653,"S32 Arth-Goldau - Rotkreuz",{"$f":"Übersetzungstabelle!$A$11","v":"Normalspur Überland/Regionalverkehr"},"","B"]
[19,"SOB",670,"S31 Arth-Goldau - Biberbrugg",{"$f":"Übersetzungstabelle!$A$11","v":"Normalspur Überland/Regionalverkehr"},"","B"]
[19,"SOB",670,"S40 Rapperswil - Einsiedeln",{"$f":"Übersetzungstabelle!$A$11","v":"Normalspur Überland/Regionalverkehr"},"","B"]
[19,"SOB",672,"S13 Wädenswil - Einsiedeln",{"$f":"Übersetzungstabelle!$A$11","v":"Normalspur Überland/Regionalverkehr"},"","B"]
[19,"SOB",720,"S27 Siebnen-Wangen - Ziegelbrücke",{"$f":"Übersetzungstabelle!$A$11","v":"Normalspur Überland/Regionalverkehr"},null,"B"]
[19,"SOB",853,"Wil - Nesslau-Neu St. Johann (Nachtangebot)",{"$f":"Übersetzungstabelle!$A$21","v":"Bus alternative Erschliessung"},"","B"]
[19,"SOB","600/670/870","IR Luzern - Arth-Goldau - Rapperswil - St. Gallen (Voralpenexpress)",{"$f":"Übersetzungstabelle!$A$12","v":"Normalspur Schnellzüge"},null,"B"]
[19,"SOB","735/870/880/900","S4 St. Gallen - Sargans - Uznach - St. Gallen",{"$f":"Übersetzungstabelle!$A$11","v":"Normalspur Überland/Regionalverkehr"},null,"B"]
[20,"THURBO",701,"S36 (Waldshut -) Koblenz Grenze - Bülach",{"$f":"Übersetzungstabelle!$A$11","v":"Normalspur Überland/Regionalverkehr"},"","B"]
[20,"THURBO",754,"S26 Winterthur - Bauma - Rüti ZH",{"$f":"Übersetzungstabelle!$A$11","v":"Normalspur Überland/Regionalverkehr"},"","B"]
[20,"THURBO",760,"S22 Jestetten - Schaffhausen",{"$f":"Übersetzungstabelle!$A$11","v":"Normalspur Überland/Regionalverkehr"},"","B"]
[20,"THURBO",760,"SN Schaffhausen - Bülach",{"$f":"Übersetzungstabelle!$A$12","v":"Normalspur Schnellzüge"},null,"B"]
[20,"THURBO",761,"S41 Bülach - Winterthur",{"$f":"Übersetzungstabelle!$A$11","v":"Normalspur Überland/Regionalverkehr"},"","B"]
[20,"THURBO",761,"SN Bülach - Winterthur",{"$f":"Übersetzungstabelle!$A$12","v":"Normalspur Schnellzüge"},"","B"]
[20,"THURBO",762,"SN3 Winterthur - Schaffhausen (- Stein am Rhein)",{"$f":"Übersetzungstabelle!$A$12","v":"Normalspur Schnellzüge"},"","B"]
[20,"THURBO",820,"S8 Schaffhausen - Kreuzlingen (- St. Gallen - Nesslau-Neu St. Johann)",{"$f":"Übersetzungstabelle!$A$11","v":"Normalspur Überland/Regionalverkehr"},"","B"]
[20,"THURBO",820,"SN3 (Winterthur -) Schaffhausen - Stein am Rhein",{"$f":"Übersetzungstabelle!$A$12","v":"Normalspur Schnellzüge"},"","B"]
[20,"THURBO",820,"Stein am Rhein - Kreuzlingen (Nachtangebot Bus)",{"$f":"Übersetzungstabelle!$A$21","v":"Bus alternative Erschliessung"},null,"B"]
[20,"THURBO",821,"S29 Winterthur - Stein am Rhein",{"$f":"Übersetzungstabelle!$A$11","v":"Normalspur Überland/Regionalverkehr"},"","B"]
[20,"THURBO",830,"S14 Konstanz - Weinfelden",{"$f":"Übersetzungstabelle!$A$11","v":"Normalspur Überland/Regionalverkehr"},"","B"]
[20,"THURBO",830,"SN Konstanz - Weinfelden",{"$f":"Übersetzungstabelle!$A$12","v":"Normalspur Schnellzüge"},"","B"]
[20,"THURBO",835,"S10 Wil SG - Weinfelden - Romanshorn",{"$f":"Übersetzungstabelle!$A$11","v":"Normalspur Überland/Regionalverkehr"},"","B"]
[20,"THURBO",840,"S30 Winterthur - Frauenfeld - Weinfelden",{"$f":"Übersetzungstabelle!$A$11","v":"Normalspur Überland/Regionalverkehr"},"","B"]
[20,"THURBO",840,"S7 Weinfelden - Romanshorn - Rorschach",{"$f":"Übersetzungstabelle!$A$11","v":"Normalspur Überland/Regionalverkehr"},"","B"]
[20,"THURBO",840,"SN Winterthur - Frauenfeld - Romanshorn",{"$f":"Übersetzungstabelle!$A$12","v":"Normalspur Schnellzüge"},"","B"]
[20,"THURBO",850,"S1 Wil SG - St. Gallen",{"$f":"Übersetzungstabelle!$A$11","v":"Normalspur Überland/Regionalverkehr"},"","B"]
[20,"THURBO",850,"S35 Winterthur - Wil SG",{"$f":"Übersetzungstabelle!$A$11","v":"Normalspur Überland/Regionalverkehr"},"","B"]
[20,"THURBO",850,"* St. Gallen - Winterthur - (Zürich Oerlikon) (Frühzug)",{"$f":"Übersetzungstabelle!$A$12","v":"Normalspur Schnellzüge"},"","B"]
[20,"THURBO",850,"SN Winterthur - St. Gallen",{"$f":"Übersetzungstabelle!$A$12","v":"Normalspur Schnellzüge"},null,"B"]
[20,"THURBO",852,"S5 St. Gallen - Weinfelden",{"$f":"Übersetzungstabelle!$A$11","v":"Normalspur Überland/Regionalverkehr"},"","B"]
[20,"THURBO",852,"Weinfelden - Gossau (Nachtangebot Bus)",{"$f":"Übersetzungstabelle!$A$21","v":"Bus alternative Erschliessung"},"","B"]
[20,"THURBO",853,"S9 Wil SG - Wattwil",{"$f":"Übersetzungstabelle!$A$11","v":"Normalspur Überland/Regionalverkehr"},"","B"]
[20,"THURBO",870,"S82 Wittenbach - St. Gallen",{"$f":"Übersetzungstabelle!$A$11","v":"Normalspur Überland/Regionalverkehr"},null,"B"]
[20,"THURBO",881,"S2 Altstätten SG - St. Gallen - Wattwil - Nesslau-Neu St. Johann",{"$f":"Übersetzungstabelle!$A$11","v":"Normalspur Überland/Regionalverkehr"},"","B"]
[20,"THURBO",881,"SN St. Gallen - St. Margrethen",{"$f":"Übersetzungstabelle!$A$12","v":"Normalspur Schnellzüge"},"","B"]
[20,"THURBO",881,"S3 St. Gallen - St. Margrethen",{"$f":"Übersetzungstabelle!$A$11","v":"Normalspur Überland/Regionalverkehr"},null,"B"]
[20,"THURBO",881,"S81 Herisau - St. Gallen",{"$f":"Übersetzungstabelle!$A$11","v":"Normalspur Überland/Regionalverkehr"},null,"B"]
[20,"THURBO",905,"S12 Sargans - Chur",{"$f":"Übersetzungstabelle!$A$11","v":"Normalspur Überland/Regionalverkehr"},null,"B"]
[20,"THURBO","820/845","S8 (Schaffhausen -) Kreuzlingen - Romanshorn - St. Gallen (- Nesslau-Neu St. Johann)",{"$f":"Übersetzungstabelle!$A$11","v":"Normalspur Überland/Regionalverkehr"},"","B"]
[20,"THURBO","850/880","Wil SG - St. Gallen - Sargans",{"$f":"Übersetzungstabelle!$A$11","v":"Normalspur Überland/Regionalverkehr"},null,"B"]
[20,"THURBO","870/820","SN St. Gallen - Romanshorn - Kreuzlingen",{"$f":"Übersetzungstabelle!$A$12","v":"Normalspur Schnellzüge"},null,"B"]
[20,"THURBO","870/820/830","RE Herisau - St. Gallen - Kreuzlingen - Konstanz",{"$f":"Übersetzungstabelle!$A$12","v":"Normalspur Schnellzüge"},null,"B"]
[20,"THURBO",900,"Ziegelbrücke - Sargans (Frühzug)",{"$f":"Übersetzungstabelle!$A$12","v":"Normalspur Schnellzüge"},null,"B"]
[31,"RA",12.491,"491/492/493 Leuk - Turtmann - Gampel-Steg /- Gampel - Raron - Visp",{"$f":"Übersetzungstabelle!$A$20","v":"Bus Überland/Berg (ohne Tourismus)"},"","B"]
[31,"RA",133,"Martigny - Orsières /- Le Châble",{"$f":"Übersetzungstabelle!$A$11","v":"Normalspur Überland/Regionalverkehr"},"","B"]
[31,"RA","100/130","St-Gingolph - St-Maurice - Sion - Brig",{"$f":"Übersetzungstabelle!$A$11","v":"Normalspur Überland/Regionalverkehr"},"","B"]
[31,"RA",12.494,"494 Gampel-Steg - Raron - St. German",{"$f":"Übersetzungstabelle!$A$20","v":"Bus Überland/Berg (ohne Tourismus)"},null,"B"]
[32,"TMR",12.211,"211 Orsières - Le Grand-St-Bernard (- Aosta)",{"$f":"Übersetzungstabelle!$A$20","v":"Bus Überland/Berg (ohne Tourismus)"},{"$f":"Übersetzungstabelle!$A$22","v":"Bus Touristische Angebote"},"A"]
[32,"TMR",12.271000000000001,"271 Orsières - Champex",{"$f":"Übersetzungstabelle!$A$20","v":"Bus Überland/Berg (ohne Tourismus)"},{"$f":"Übersetzungstabelle!$A$22","v":"Bus Touristische Angebote"},"A"]
[32,"TMR",12.272,"272 Orsières - Praz-de-Fort - Ferret",{"$f":"Übersetzungstabelle!$A$20","v":"Bus Überland/Berg (ohne Tourismus)"},{"$f":"Übersetzungstabelle!$A$22","v":"Bus Touristische Angebote"},"A"]
[32,"TMR",132,"Martigny - Le Châtelard-Frontière (- Vallorcine)",{"$f":"Übersetzungstabelle!$A$16","v":"Schmalspur Touristische Angebote"},{"$f":"Übersetzungstabelle!$A$15","v":"Schmalspur Überland/Berg (ohne Tourismus)"},"B"]
[37,"TRAVYS",10.611000000000001,"611 Yverdon-les-Bains - Chamblon - Champvent",{"$f":"Übersetzungstabelle!$A$20","v":"Bus Überland/Berg (ohne Tourismus)"},"","A"]
[37,"TRAVYS",10.613,"613 Yverdon-les-Bains - Vallorbe",{"$f":"Übersetzungstabelle!$A$21","v":"Bus alternative Erschliessung"},"","B"]
[37,"TRAVYS",10.615,"615 L'Auberson - Ste-Croix - Bullet (- Mauborget)",{"$f":"Übersetzungstabelle!$A$20","v":"Bus Überland/Berg (ohne Tourismus)"},"","A"]
[37,"TRAVYS",201,"Vallorbe - Le Brassus",{"$f":"Übersetzungstabelle!$A$11","v":"Normalspur Überland/Regionalverkehr"},"","B"]
[37,"TRAVYS",211,"Orbe - Chavornay",{"$f":"Übersetzungstabelle!$A$11","v":"Normalspur Überland/Regionalverkehr"},"","B"]
[37,"TRAVYS",211,"Orbe - Chavornay (Bus)",{"$f":"Übersetzungstabelle!$A$21","v":"Bus alternative Erschliessung"},null,"A"]
[37,"TRAVYS",212,"Yverdon-les-Bains - Ste-Croix",{"$f":"Übersetzungstabelle!$A$15","v":"Schmalspur Überland/Berg (ohne Tourismus)"},"","B"]
[40,"CJ",22.131,"131 Tramelan - St-Imier",{"$f":"Übersetzungstabelle!$A$20","v":"Bus Überland/Berg (ohne Tourismus)"},"","A"]
[40,"CJ",22.132999999999999,"133 Saignelégier -] Tramelan - Glovelier - Bassecourt",{"$f":"Übersetzungstabelle!$A$20","v":"Bus Überland/Berg (ohne Tourismus)"},"","A"]
[40,"CJ",22.134,"134 Boécourt - Glovelier - Saignelégier [- Les Breuleux",{"$f":"Übersetzungstabelle!$A$20","v":"Bus Überland/Berg (ohne Tourismus)"},"","A"]
[40,"CJ",236,"La Chaux-de-Fonds - Le Noirmont - Saignelégier - Glovelier",{"$f":"Übersetzungstabelle!$A$15","v":"Schmalspur Überland/Berg (ohne Tourismus)"},"","B"]
[40,"CJ",237,"Le Noirmont - Tramelan - Tavannes",{"$f":"Übersetzungstabelle!$A$15","v":"Schmalspur Überland/Berg (ohne Tourismus)"},"","B"]
[40,"CJ",238,"Porrentruy - Bonfol",{"$f":"Übersetzungstabelle!$A$11","v":"Normalspur Überland/Regionalverkehr"},"","B"]
[42,"SZU",70.131,"131 Horgen Bahnhof - Horgen Oberdorf - Horgen Bocken - Aamüli",{"$f":"Übersetzungstabelle!$A$20","v":"Bus Überland/Berg (ohne Tourismus)"},null,"B"]
[42,"SZU",70.14,"140 Thalwil Zentrum - Gattikon - Langnau-Gattikon - Langnau a.A. Unterrengg",{"$f":"Übersetzungstabelle!$A$20","v":"Bus Überland/Berg (ohne Tourismus)"},{"$f":"Übersetzungstabelle!$A$19","v":"Bus Agglomerationsverkehr"},"B"]
[42,"SZU",70.150000000000006,"150 Wädenswil - Schönenberg ZH - Hirzel - Horgenberg - Horgen",{"$f":"Übersetzungstabelle!$A$20","v":"Bus Überland/Berg (ohne Tourismus)"},null,"B"]
[42,"SZU",70.150000000000006,"155 Hirzel - Horgen",{"$f":"Übersetzungstabelle!$A$20","v":"Bus Überland/Berg (ohne Tourismus)"},null,"A"]
[42,"SZU",70.156000000000006,"156 Adliswil - Rüschlikon - Thalwil",{"$f":"Übersetzungstabelle!$A$20","v":"Bus Überland/Berg (ohne Tourismus)"},null,"A"]
[42,"SZU",70.16,"160 Wädenswil - Schönenberg ZH - Hütten",{"$f":"Übersetzungstabelle!$A$20","v":"Bus Überland/Berg (ohne Tourismus)"},null,"B"]
[42,"SZU",712,"S4 Zürich HB - Adliswil - Langnau-Gattikon [- Sihlwald",{"$f":"Übersetzungstabelle!$A$11","v":"Normalspur Überland/Regionalverkehr"},null,"B"]
[42,"SZU",712,"SN4 Zürich HB - Adliswil - Langnau-Gattikon (Nachtangebot)",{"$f":"Übersetzungstabelle!$A$12","v":"Normalspur Schnellzüge"},null,"B"]
[42,"SZU",713,"S10 Zürich HB - Triemli - Uitikon Waldegg - Ringlikon (- Uetliberg)",{"$f":"Übersetzungstabelle!$A$11","v":"Normalspur Überland/Regionalverkehr"},null,"B"]
[47,"TRN",21.21,"120 Neuchâtel - Corcelles NE - Chambrelien - Les Grattes de bise",{"$f":"Übersetzungstabelle!$A$20","v":"Bus Überland/Berg (ohne Tourismus)"},null,"B"]
[47,"TRN",21.36,"360 La Chaux-de-Fonds - Le Locle",{"$f":"Übersetzungstabelle!$A$19","v":"Bus Agglomerationsverkehr"},"","B"]
[47,"TRN",21.420999999999999,"421 Neuchâtel - Savagnier - Cernier",{"$f":"Übersetzungstabelle!$A$20","v":"Bus Überland/Berg (ohne Tourismus)"},"","A"]
[47,"TRN",21.422000000000001,"422 Neuchâtel - Cernier - Villiers",{"$f":"Übersetzungstabelle!$A$19","v":"Bus Agglomerationsverkehr"},"","B"]
[47,"TRN",21.422999999999998,"423 Les Hauts-Geneveys - Cernier [- Engollon",{"$f":"Übersetzungstabelle!$A$20","v":"Bus Überland/Berg (ohne Tourismus)"},{"$f":"Übersetzungstabelle!$A$19","v":"Bus Agglomerationsverkehr"},"B"]
[47,"TRN",21.59,"590 Couvet - Fleurier - Les Verrières (- Pontarlier) (Bus)",{"$f":"Übersetzungstabelle!$A$20","v":"Bus Überland/Berg (ohne Tourismus)"},"","A"]
[47,"TRN",215,"Neuchâtel - Areuse - Boudry",{"$f":"Übersetzungstabelle!$A$15","v":"Schmalspur Überland/Berg (ohne Tourismus)"},{"$f":"Übersetzungstabelle!$A$17","v":"Schmalspur Schnellzüge"},"B"]
[47,"TRN",221,"Buttes - Fleurier - Travers (- Neuchâtel)",{"$f":"Übersetzungstabelle!$A$11","v":"Normalspur Überland/Regionalverkehr"},"","B"]
[47,"TRN",222,"Les Ponts-de-Martel - La Chaux-de-Fonds",{"$f":"Übersetzungstabelle!$A$15","v":"Schmalspur Überland/Berg (ohne Tourismus)"},"","B"]
[47,"TRN",224,"Les Brenets - Le Locle",{"$f":"Übersetzungstabelle!$A$15","v":"Schmalspur Überland/Berg (ohne Tourismus)"},"","B"]
[52,"TPN",10.81,"810 Nyon - Crassier - La Rippe",{"$f":"Übersetzungstabelle!$A$20","v":"Bus Überland/Berg (ohne Tourismus)"},"","B"]
[52,"TPN",10.811,"811 Coppet - Nyon - Gland",{"$f":"Übersetzungstabelle!$A$20","v":"Bus Überland/Berg (ohne Tourismus)"},"","B"]
[52,"TPN",10.813000000000001,"813 Crassier - Coppet - Chavannes-des-Bois",{"$f":"Übersetzungstabelle!$A$20","v":"Bus Überland/Berg (ohne Tourismus)"},null,"B"]
[52,"TPN",10.814,"814 Coppet - Divonne-les-Bains (- Gex)",{"$f":"Übersetzungstabelle!$A$20","v":"Bus Überland/Berg (ohne Tourismus)"},null,"A"]
[52,"TPN",10.815,"815 Nyon - Gingins",{"$f":"Übersetzungstabelle!$A$20","v":"Bus Überland/Berg (ohne Tourismus)"},"","B"]
[53,"SBG",71.033000000000001,"33 Stein am Rhein - Singen",{"$f":"Übersetzungstabelle!$A$20","v":"Bus Überland/Berg (ohne Tourismus)"},"","B"]
[54,"DB",763,"Schaffhausen - Singen (Hohentwiel)",{"$f":"Übersetzungstabelle!$A$11","v":"Normalspur Überland/Regionalverkehr"},null,"B"]
[105,"TPC",12.061,"61 Monthey - Monthey-Ville - Troistorrents - Morgins",{"$f":"Übersetzungstabelle!$A$20","v":"Bus Überland/Berg (ohne Tourismus)"},{"$f":"Übersetzungstabelle!$A$22","v":"Bus Touristische Angebote"},"A"]
[105,"TPC",12.111000000000001,"111 Aigle - Villeneuve VD",{"$f":"Übersetzungstabelle!$A$20","v":"Bus Überland/Berg (ohne Tourismus)"},"","B"]
[105,"TPC",12.144,"144 Aigle - Ollon VD - Villars-sur-Ollon",{"$f":"Übersetzungstabelle!$A$20","v":"Bus Überland/Berg (ohne Tourismus)"},{"$f":"Übersetzungstabelle!$A$22","v":"Bus Touristische Angebote"},"A"]
[105,"TPC",12.151,"151 Bex - Monthey",{"$f":"Übersetzungstabelle!$A$20","v":"Bus Überland/Berg (ohne Tourismus)"},"","A"]
[105,"TPC",124,"Aigle - Les Diablerets",{"$f":"Übersetzungstabelle!$A$15","v":"Schmalspur Überland/Berg (ohne Tourismus)"},"","B"]
[105,"TPC",125,"Aigle - Leysin",{"$f":"Übersetzungstabelle!$A$16","v":"Schmalspur Touristische Angebote"},"","B"]
[105,"TPC",126,"Aigle - Ollon - Monthey - Champéry",{"$f":"Übersetzungstabelle!$A$16","v":"Schmalspur Touristische Angebote"},"","B"]
[105,"TPC",127,"Bex - Villars-sur-Ollon (- Col-de-Bretaye)",{"$f":"Übersetzungstabelle!$A$16","v":"Schmalspur Touristische Angebote"},"","B"]
[105,"TPC","12.062/63","62/63 Monthey - Monthey-Ville - Chenarlier /- Les Cernier",{"$f":"Übersetzungstabelle!$A$20","v":"Bus Überland/Berg (ohne Tourismus)"},"","A"]
[105,"TPC","12.081/82","81/82 Val-d'Illiez - Les Crosets /- Champoussin",{"$f":"Übersetzungstabelle!$A$20","v":"Bus Überland/Berg (ohne Tourismus)"},{"$f":"Übersetzungstabelle!$A$22","v":"Bus Touristische Angebote"},"A"]
[109,"AB",80.19,"190 Teufen - Speicher (- Speicherschwendi)",{"$f":"Übersetzungstabelle!$A$20","v":"Bus Überland/Berg (ohne Tourismus)"},"","A"]
[109,"AB",854,"S23 Gossau SG - Herisau - Appenzell - Wasserauen",{"$f":"Übersetzungstabelle!$A$15","v":"Schmalspur Überland/Berg (ohne Tourismus)"},"","B"]
[109,"AB",855,"S22 Teufen – St. Gallen – Speicher/Trogen",{"$f":"Übersetzungstabelle!$A$15","v":"Schmalspur Überland/Berg (ohne Tourismus)"},"","B"]
[109,"AB",855,"St. Gallen - Gais - Appenzell (Nachtangebot Bus)",{"$f":"Übersetzungstabelle!$A$21","v":"Bus alternative Erschliessung"},"","B"]
[109,"AB",856,"S24 Gais - Altstätten Stadt",{"$f":"Übersetzungstabelle!$A$15","v":"Schmalspur Überland/Berg (ohne Tourismus)"},"","B"]
[109,"AB",857,"S25 Rorschach Hafen - Heiden",{"$f":"Übersetzungstabelle!$A$16","v":"Schmalspur Touristische Angebote"},"","B"]
[109,"AB",858,"S26 Rheineck - Walzenhausen",{"$f":"Übersetzungstabelle!$A$15","v":"Schmalspur Überland/Berg (ohne Tourismus)"},"","B"]
[109,"AB",859,"S21 Appenzell – St. Gallen – Trogen",{"$f":"Übersetzungstabelle!$A$15","v":"Schmalspur Überland/Berg (ohne Tourismus)"},"","B"]
[109,"AB",859,"St. Gallen - Trogen (Nachtangebot Bus)",{"$f":"Übersetzungstabelle!$A$21","v":"Bus alternative Erschliessung"},"","B"]
[109,"AB",856,"Gais - Altstätten Stadt (Bus)",{"$f":"Übersetzungstabelle!$A$21","v":"Bus alternative Erschliessung"},null,"B"]
[109,"AB",854,"Gossau SG - Herisau - Appenzell - Wasserauen (Bus)",{"$f":"Übersetzungstabelle!$A$21","v":"Bus alternative Erschliessung"},null,"B"]
[114,"BOB",311,"Interlaken Ost - Lauterbrunnen",{"$f":"Übersetzungstabelle!$A$16","v":"Schmalspur Touristische Angebote"},"","B"]
[114,"BOB",312,"Interlaken Ost - Grindelwald",{"$f":"Übersetzungstabelle!$A$16","v":"Schmalspur Touristische Angebote"},"","B"]
[114,"BOB",311,"Interlaken Ost - Lauterbrunnen (Bus)",{"$f":"Übersetzungstabelle!$A$21","v":"Bus alternative Erschliessung"},null,"B"]
[114,"BOB",312,"Interlaken Ost - Grindelwald (Bus)",{"$f":"Übersetzungstabelle!$A$21","v":"Bus alternative Erschliessung"},null,"B"]
[117,"ABl",62.131,"131 Biasca - Acquarossa - Olivone",{"$f":"Übersetzungstabelle!$A$20","v":"Bus Überland/Berg (ohne Tourismus)"},"","A"]
[117,"ABl",62.131999999999998,"132 Biasca - Semione - Motto-Ludiano",{"$f":"Übersetzungstabelle!$A$20","v":"Bus Überland/Berg (ohne Tourismus)"},"","A"]
[117,"ABl",62.133000000000003,"133 Acquarossa - Leontica",{"$f":"Übersetzungstabelle!$A$20","v":"Bus Überland/Berg (ohne Tourismus)"},"","A"]
[117,"ABl",62.134,"134 Acquarossa - Ponto Valentino",{"$f":"Übersetzungstabelle!$A$20","v":"Bus Überland/Berg (ohne Tourismus)"},"","A"]
[117,"Abl",62.134999999999998,"135 Olivone - Campo (Blenio) - Ghirone",{"$f":"Übersetzungstabelle!$A$20","v":"Bus Überland/Berg (ohne Tourismus)"},null,"A"]
[120,"MBC",10.724,"724 Morges - St-Prex - Etoy",{"$f":"Übersetzungstabelle!$A$20","v":"Bus Überland/Berg (ohne Tourismus)"},"","A"]
[120,"MBC",10.726000000000001,"726 Morges - Lavigny",{"$f":"Übersetzungstabelle!$A$20","v":"Bus Überland/Berg (ohne Tourismus)"},"","A"]
[120,"MBC",10.728,"728 Morges - Apples",{"$f":"Übersetzungstabelle!$A$20","v":"Bus Überland/Berg (ohne Tourismus)"},"","A"]
[120,"MBC",10.73,"730 Morges - Cottens - Cossonay-Ville",{"$f":"Übersetzungstabelle!$A$20","v":"Bus Überland/Berg (ohne Tourismus)"},"","A"]
[120,"MBC",10.734999999999999,"735 Morges - Aclens - Cossonay-Ville",{"$f":"Übersetzungstabelle!$A$20","v":"Bus Überland/Berg (ohne Tourismus)"},"","A"]
[120,"MBC",10.742000000000001,"742 L'Isle - Bière",{"$f":"Übersetzungstabelle!$A$21","v":"Bus alternative Erschliessung"},"","A"]
[120,"MBC",10.75,"750 Cossonay-Gare - L'Isle",{"$f":"Übersetzungstabelle!$A$20","v":"Bus Überland/Berg (ohne Tourismus)"},"","A"]
[120,"MBC",10.76,"760 La Sarraz - L'Isle - Mont-la-Ville",{"$f":"Übersetzungstabelle!$A$20","v":"Bus Überland/Berg (ohne Tourismus)"},"","A"]
[120,"MBC",156,"Morges - Apples - Bière",{"$f":"Übersetzungstabelle!$A$15","v":"Schmalspur Überland/Berg (ohne Tourismus)"},"","B"]
[120,"MBC",2003,"Cossonay-Gare - Cossonay-Ville",{"$f":"Übersetzungstabelle!$A$26","v":"Standseilbahnen"},"","A"]
[120,"MBC","10.791/792","791/792 Pyjam'bus",{"$f":"Übersetzungstabelle!$A$21","v":"Bus alternative Erschliessung"},null,"B"]
[122,"BLT",50.046999999999997,"47 Muttenz - Basel St. Jakob - Muttenz",{"$f":"Übersetzungstabelle!$A$19","v":"Bus Agglomerationsverkehr"},"","B"]
[122,"BLT",50.061,"61 Oberwil - Binningen - Allschwil",{"$f":"Übersetzungstabelle!$A$20","v":"Bus Überland/Berg (ohne Tourismus)"},"","B"]
[122,"BLT",50.063000000000002,"63 Dornach-Arlesheim - Münchenstein - Muttenz",{"$f":"Übersetzungstabelle!$A$20","v":"Bus Überland/Berg (ohne Tourismus)"},"","B"]
[122,"BLT",50.064,"64 Allschwil - Oberwil BL - Therwil - Dornach - Arlesheim",{"$f":"Übersetzungstabelle!$A$20","v":"Bus Überland/Berg (ohne Tourismus)"},"","B"]
[122,"BLT",50.091999999999999,"92 Reigoldswil - Oberdorf - Bennwil - Hölstein",{"$f":"Übersetzungstabelle!$A$20","v":"Bus Überland/Berg (ohne Tourismus)"},"","A"]
[122,"BLT",50.106000000000002,"106 Sissach - Wintersingen",{"$f":"Übersetzungstabelle!$A$20","v":"Bus Überland/Berg (ohne Tourismus)"},null,"B"]
[122,"BLT",50.106999999999999,"107 Eptingen - Sissach",{"$f":"Übersetzungstabelle!$A$20","v":"Bus Überland/Berg (ohne Tourismus)"},"","B"]
[122,"BLT",50.107999999999997,"108 Sissach - Wittinsburg",{"$f":"Übersetzungstabelle!$A$20","v":"Bus Überland/Berg (ohne Tourismus)"},"","B"]
[122,"BLT",502,"19 Liestal - Waldenburg",{"$f":"Übersetzungstabelle!$A$15","v":"Schmalspur Überland/Berg (ohne Tourismus)"},{"$f":"Übersetzungstabelle!$A$14","v":"Schmalspur Agglomeration"},"B"]
[122,"BLT",505,"10 Rodersdorf - Ettingen - Basel SBB (- Dornach)",{"$f":"Übersetzungstabelle!$A$14","v":"Schmalspur Agglomeration"},"","B"]
[122,"BLT",505,"10 (Rodersdorf -) Basel SBB - Basel Dreispitz - Dornach",{"$f":"Übersetzungstabelle!$A$14","v":"Schmalspur Agglomeration"},"","B"]
[122,"BLT",506,"17 (Basel Wiesenplatz -) Basel Heuwaage - Ettingen",{"$f":"Übersetzungstabelle!$A$14","v":"Schmalspur Agglomeration"},"","B"]
[122,"BLT",507,"11 (St. Louis Grenze -) Basel SBB - Basel Dreispitz - Aesch BL",{"$f":"Übersetzungstabelle!$A$14","v":"Schmalspur Agglomeration"},"","B"]
[129,"FB",731,"S18 Zürich Stadelhofen - Forch - Esslingen",{"$f":"Übersetzungstabelle!$A$14","v":"Schmalspur Agglomeration"},null,"B"]
[129,"FB",731,"SN18 Zürich Stadelhofen - Forch - Egg (Nachtangebot)",{"$f":"Übersetzungstabelle!$A$17","v":"Schmalspur Schnellzüge"},null,"B"]
[130,"FW",841,"S15 Frauenfeld - Wil SG",{"$f":"Übersetzungstabelle!$A$15","v":"Schmalspur Überland/Berg (ohne Tourismus)"},"","B"]
[130,"FW",841,"S15 Frauenfeld - Wil SG (Nachtangebot)",{"$f":"Übersetzungstabelle!$A$17","v":"Schmalspur Schnellzüge"},"","B"]
[130,"FW",841,"Münchwilen - Frauenfeld Marktplatz (Bus)",{"$f":"Übersetzungstabelle!$A$21","v":"Bus alternative Erschliessung"},null,"B"]
[136,"asm",22.071999999999999,"72 Biel/Bienne - Meinisberg",{"$f":"Übersetzungstabelle!$A$19","v":"Bus Agglomerationsverkehr"},"","A"]
[136,"asm",40.051000000000002,"51 (Langenthal -) Melchnau - Grossdietwil",{"$f":"Übersetzungstabelle!$A$20","v":"Bus Überland/Berg (ohne Tourismus)"},"","B"]
[136,"asm",40.051000000000002,"51 Langenthal - Melchnau",{"$f":"Übersetzungstabelle!$A$20","v":"Bus Überland/Berg (ohne Tourismus)"},"","A"]
[136,"asm",40.051000000000002,"51 Wangen an der Aare - Herzogenbuchsee - Langenthal",{"$f":"Übersetzungstabelle!$A$20","v":"Bus Überland/Berg (ohne Tourismus)"},"","A"]
[136,"asm",40.052,"52 Thunstetten - Langenthal - Thörigen - Herzogenbuchsee",{"$f":"Übersetzungstabelle!$A$20","v":"Bus Überland/Berg (ohne Tourismus)"},"","A"]
[136,"asm",40.054000000000002,"54 Herzogenbuchsee - Wynigen",{"$f":"Übersetzungstabelle!$A$20","v":"Bus Überland/Berg (ohne Tourismus)"},"","A"]
[136,"asm",40.058,"58 Farnern - Wangen an der Aare",{"$f":"Übersetzungstabelle!$A$20","v":"Bus Überland/Berg (ohne Tourismus)"},"","A"]
[136,"asm",290,"Biel/Bienne - Täuffelen - Ins",{"$f":"Übersetzungstabelle!$A$15","v":"Schmalspur Überland/Berg (ohne Tourismus)"},"","B"]
[136,"asm",413,"Solothurn - Oensingen - Langenthal",{"$f":"Übersetzungstabelle!$A$15","v":"Schmalspur Überland/Berg (ohne Tourismus)"},"","B"]
[136,"asm",414,"Langenthal - St. Urban Ziegelei",{"$f":"Übersetzungstabelle!$A$15","v":"Schmalspur Überland/Berg (ohne Tourismus)"},"","B"]
[136,"asm",2016,"Ligerz - Prêles (Tessenberg)",{"$f":"Übersetzungstabelle!$A$26","v":"Standseilbahnen"},"","B"]
[139,"LEB",101,"Lausanne - Bercher",{"$f":"Übersetzungstabelle!$A$15","v":"Schmalspur Überland/Berg (ohne Tourismus)"},{"$f":"Übersetzungstabelle!$A$14","v":"Schmalspur Agglomeration"},"B"]
[141,"LLB",12.461,"461 Sierre - Salgesch - Varen",{"$f":"Übersetzungstabelle!$A$20","v":"Bus Überland/Berg (ohne Tourismus)"},"","A"]
[141,"LLB",12.471,"471 Leuk - Leukerbad",{"$f":"Übersetzungstabelle!$A$20","v":"Bus Überland/Berg (ohne Tourismus)"},{"$f":"Übersetzungstabelle!$A$22","v":"Bus Touristische Angebote"},"A"]
[141,"LLB",12.472,"472 Leuk - Albinen",{"$f":"Übersetzungstabelle!$A$20","v":"Bus Überland/Berg (ohne Tourismus)"},"","A"]
[141,"LLB",12.473000000000001,"473 Leuk - Feschel - Guttet",{"$f":"Übersetzungstabelle!$A$20","v":"Bus Überland/Berg (ohne Tourismus)"},"","A"]
[141,"LLB",12.474,"474 Leuk - Erschmatt",{"$f":"Übersetzungstabelle!$A$20","v":"Bus Überland/Berg (ohne Tourismus)"},"","A"]
[141,"LLB",12.475,"475 Varen - Leuk Stadt - Leuk - Agarn",{"$f":"Übersetzungstabelle!$A$20","v":"Bus Überland/Berg (ohne Tourismus)"},"","A"]
[141,"LLB",12.476000000000001,"476 Leukerbad - Albinen",{"$f":"Übersetzungstabelle!$A$20","v":"Bus Überland/Berg (ohne Tourismus)"},{"$f":"Übersetzungstabelle!$A$22","v":"Bus Touristische Angebote"},"A"]
[141,"LLB",12.483000000000001,"483 Turtmann - Ergisch",{"$f":"Übersetzungstabelle!$A$20","v":"Bus Überland/Berg (ohne Tourismus)"},"","A"]
[142,"FART",62.311999999999998,"312 Locarno - Orselina - Mergoscia",{"$f":"Übersetzungstabelle!$A$20","v":"Bus Überland/Berg (ohne Tourismus)"},"","A"]
[142,"FART",62.314,"314 Locarno - Ronco sopra Ascona",{"$f":"Übersetzungstabelle!$A$20","v":"Bus Überland/Berg (ohne Tourismus)"},"","A"]
[142,"FART",62.314999999999998,"315 Locarno - Bignasco - Cavergno",{"$f":"Übersetzungstabelle!$A$20","v":"Bus Überland/Berg (ohne Tourismus)"},"","A"]
[142,"FART",62.316000000000003,"316 Locarno - Brissago",{"$f":"Übersetzungstabelle!$A$20","v":"Bus Überland/Berg (ohne Tourismus)"},{"$f":"Übersetzungstabelle!$A$22","v":"Bus Touristische Angebote"},"A"]
[142,"FART",620,"Locarno - Camedo (- Domodossola)",{"$f":"Übersetzungstabelle!$A$15","v":"Schmalspur Überland/Berg (ohne Tourismus)"},null,"B"]
[142,"FART",62.311,"311 Locarno - Cugnasco - Bellinzona (FART)",{"$f":"Übersetzungstabelle!$A$20","v":"Bus Überland/Berg (ohne Tourismus)"},"","B"]
[145,"ARL",62.441000000000003,"441 Lamone - Canobbio - Lugano",{"$f":"Übersetzungstabelle!$A$20","v":"Bus Überland/Berg (ohne Tourismus)"},"","B"]
[145,"ARL",62.460999999999999,"461 Tesserete - Canobbio - Lugano (- Villa Luganese)",{"$f":"Übersetzungstabelle!$A$20","v":"Bus Überland/Berg (ohne Tourismus)"},"","B"]
[145,"ARL",62.460999999999999,"461 (Tesserete -) Lugano - Sonvico - Villa Luganese",{"$f":"Übersetzungstabelle!$A$20","v":"Bus Überland/Berg (ohne Tourismus)"},"","A"]
[146,"FLP",635,"S60 Lugano - Ponte Tresa",{"$f":"Übersetzungstabelle!$A$15","v":"Schmalspur Überland/Berg (ohne Tourismus)"},{"$f":"Übersetzungstabelle!$A$14","v":"Schmalspur Agglomeration"},"B"]
[148,"KWO",474,"Meiringen - Innertkirchen",{"$f":"Übersetzungstabelle!$A$15","v":"Schmalspur Überland/Berg (ohne Tourismus)"},"","B"]
[151,"MOB",120,"Montreux - Les Avants",{"$f":"Übersetzungstabelle!$A$15","v":"Schmalspur Überland/Berg (ohne Tourismus)"},"","B"]
[151,"MOB",120,"Montreux - Zweisimmen",{"$f":"Übersetzungstabelle!$A$17","v":"Schmalspur Schnellzüge"},"","B"]
[151,"MOB",120,"Zweisimmen - Lenk",{"$f":"Übersetzungstabelle!$A$15","v":"Schmalspur Überland/Berg (ohne Tourismus)"},{"$f":"Übersetzungstabelle!$A$16","v":"Schmalspur Touristische Angebote"},"B"]
[151,"MOB",120,"Zweisimmen - Saanen (- Châteaux d'Oex)",{"$f":"Übersetzungstabelle!$A$15","v":"Schmalspur Überland/Berg (ohne Tourismus)"},{"$f":"Übersetzungstabelle!$A$16","v":"Schmalspur Touristische Angebote"},"B"]
[152,"NStCM",155,"Nyon - St-Cergue - La Cure",{"$f":"Übersetzungstabelle!$A$15","v":"Schmalspur Überland/Berg (ohne Tourismus)"},"","B"]
[154,"RhB",910,"RE Landquart - Davos Platz",{"$f":"Übersetzungstabelle!$A$17","v":"Schmalspur Schnellzüge"},"","B"]
[154,"RhB",910,"RE (Disentis/Mustér -) Landquart - Vereina - Scuol-Tarasp",{"$f":"Übersetzungstabelle!$A$17","v":"Schmalspur Schnellzüge"},"","B"]
[154,"RhB",910,"Chur - Landquart (Bus)",{"$f":"Übersetzungstabelle!$A$21","v":"Bus alternative Erschliessung"},null,"A"]
[154,"RhB",910,"Landquart - Davos (Bus)",{"$f":"Übersetzungstabelle!$A$21","v":"Bus alternative Erschliessung"},null,"A"]
[154,"RhB",915,"Davos - Filisur",{"$f":"Übersetzungstabelle!$A$15","v":"Schmalspur Überland/Berg (ohne Tourismus)"},"","B"]
[154,"RhB",930,"Chur - Arosa",{"$f":"Übersetzungstabelle!$A$17","v":"Schmalspur Schnellzüge"},"","B"]
[154,"RhB",940,"IR Chur - Thusis - St. Moritz",{"$f":"Übersetzungstabelle!$A$17","v":"Schmalspur Schnellzüge"},"","B"]
[154,"RhB",941,"S2 Chur - Thusis",{"$f":"Übersetzungstabelle!$A$15","v":"Schmalspur Überland/Berg (ohne Tourismus)"},"","B"]
[154,"RhB",941,"S1 Schiers - Rhäzüns",{"$f":"Übersetzungstabelle!$A$15","v":"Schmalspur Überland/Berg (ohne Tourismus)"},"","B"]
[154,"RhB",950,"St. Moritz - Pontresina - Tirano",{"$f":"Übersetzungstabelle!$A$17","v":"Schmalspur Schnellzüge"},"","B"]
[154,"RhB",950,"Poschiavo - Tirano (Bus)",{"$f":"Übersetzungstabelle!$A$21","v":"Bus alternative Erschliessung"},null,"A"]
[154,"RhB",950,"Samedan - Pontresina - Campocologno (Bus)",{"$f":"Übersetzungstabelle!$A$21","v":"Bus alternative Erschliessung"},null,"A"]
[154,"RhB",960,"Pontresina - Samedan - Scuol-Tarasp",{"$f":"Übersetzungstabelle!$A$15","v":"Schmalspur Überland/Berg (ohne Tourismus)"},"","B"]
[154,"RhB","910/920","RE (Scuol-Tarasp -) Landquart - Chur - Disentis/Mustér",{"$f":"Übersetzungstabelle!$A$17","v":"Schmalspur Schnellzüge"},"","B"]
[154,"RhB","910/960","RE Landquart - Vereina - St. Moritz",{"$f":"Übersetzungstabelle!$A$17","v":"Schmalspur Schnellzüge"},"","B"]
[154,"RhB","940/950","BEX Chur - Thusis -/ St. Moritz - Pontresina - Tirano",{"$f":"Übersetzungstabelle!$A$17","v":"Schmalspur Schnellzüge"},"","B"]
[165,"RVSH",71.021000000000001,"21 Schaffhausen - Beggingen /- Neunkirch",{"$f":"Übersetzungstabelle!$A$19","v":"Bus Agglomerationsverkehr"},"","B"]
[165,"RVSH",71.022000000000006,"22 Schaffhausen - Hemmental",{"$f":"Übersetzungstabelle!$A$20","v":"Bus Überland/Berg (ohne Tourismus)"},"","B"]
[165,"RVSH",71.022999999999996,"23 Schaffhausen - Bargen",{"$f":"Übersetzungstabelle!$A$20","v":"Bus Überland/Berg (ohne Tourismus)"},"","B"]
[165,"RVSH",71.024000000000001,"24 Schaffhausen - Büttenhardt - Opfertshofen - Thayngen",{"$f":"Übersetzungstabelle!$A$20","v":"Bus Überland/Berg (ohne Tourismus)"},"","B"]
[165,"RVSH",71.025000000000006,"25 Schaffhausen - Dörflingen - Ramsen",{"$f":"Übersetzungstabelle!$A$20","v":"Bus Überland/Berg (ohne Tourismus)"},"","B"]
[165,"RVSH",71.027000000000001,"27 Oberhallau - Hallau - Wilchingen - Osterfingen",{"$f":"Übersetzungstabelle!$A$20","v":"Bus Überland/Berg (ohne Tourismus)"},null,"B"]
[165,"RVSH",71.028000000000006,"28 Beringen - Guntmadingen",{"$f":"Übersetzungstabelle!$A$20","v":"Bus Überland/Berg (ohne Tourismus)"},null,"B"]
[165,"RVSH",71.021000000000001,"21 Schaffhausen - Beggingen (Nachtangebot)",{"$f":"Übersetzungstabelle!$A$21","v":"Bus alternative Erschliessung"},null,"B"]
[165,"RVSH",71.022000000000006,"22 Schaffhausen - Hemmental (Nachtangebot)",{"$f":"Übersetzungstabelle!$A$21","v":"Bus alternative Erschliessung"},null,"B"]
[165,"RVSH",71.022999999999996,"23 Schaffhausen - Bargen (Nachtangebot)",{"$f":"Übersetzungstabelle!$A$21","v":"Bus alternative Erschliessung"},null,"B"]
[165,"RVSH",71.024000000000001,"24 Schaffhausen - Büttenhardt - Opfertshofen - Thayngen (Nachtangebot)",{"$f":"Übersetzungstabelle!$A$21","v":"Bus alternative Erschliessung"},null,"B"]
[165,"RVSH",71.025000000000006,"25 Schaffhausen - Dörflingen - Ramsen (Nachtangebot)",{"$f":"Übersetzungstabelle!$A$21","v":"Bus alternative Erschliessung"},null,"B"]
[165,"RVSH",71.075999999999993,"76 Schaffhausen - Herblingen - Thayngen (Nachtangebot)",{"$f":"Übersetzungstabelle!$A$21","v":"Bus alternative Erschliessung"},null,"B"]
[165,"RVSH",71.076999999999998,"77 Schaffhausen - Neunkirch - Osterfingen - Trasadingen (Nachtangebot)",{"$f":"Übersetzungstabelle!$A$20","v":"Bus Überland/Berg (ohne Tourismus)"},null,"B"]
[168,"AS",72.540999999999997,"541 Schwanden - Elm",{"$f":"Übersetzungstabelle!$A$20","v":"Bus Überland/Berg (ohne Tourismus)"},"","B"]
[168,"AS",72.542000000000002,"542 Schwanden - Schwändi b. Schwanden",{"$f":"Übersetzungstabelle!$A$20","v":"Bus Überland/Berg (ohne Tourismus)"},"","A"]
[168,"AS",72.543000000000006,"543 Schwanden - Sool",{"$f":"Übersetzungstabelle!$A$20","v":"Bus Überland/Berg (ohne Tourismus)"},"","A"]
[170,"RBS",30.036000000000001,"36 (Bern Breitenrain -) Zollikofen - Münchenbuchsee Hüslimoos",{"$f":"Übersetzungstabelle!$A$19","v":"Bus Agglomerationsverkehr"},"","B"]
[170,"RBS",30.038,"38 Schönbühl - Bäriswil /- Mattstetten",{"$f":"Übersetzungstabelle!$A$20","v":"Bus Überland/Berg (ohne Tourismus)"},"","B"]
[170,"RBS",30.361999999999998,"362 Lyss - Schnottwil",{"$f":"Übersetzungstabelle!$A$20","v":"Bus Überland/Berg (ohne Tourismus)"},"","A"]
[170,"RBS",30.363,"363 Lyss - Grossaffoltern - Messen - Limpach - Bätterkinden",{"$f":"Übersetzungstabelle!$A$20","v":"Bus Überland/Berg (ohne Tourismus)"},"","A"]
[170,"RBS",30.870999999999999,"871 Jegenstorf - Messen [- Ruppoldsried",{"$f":"Übersetzungstabelle!$A$20","v":"Bus Überland/Berg (ohne Tourismus)"},"","A"]
[170,"RBS",30.884,"884 Bätterkinden - Utzenstorf - Koppigen",{"$f":"Übersetzungstabelle!$A$20","v":"Bus Überland/Berg (ohne Tourismus)"},"","A"]
[170,"RBS",30.898,"898 Münchenbuchsee - Wengi b.B - Büren a.A.",{"$f":"Übersetzungstabelle!$A$20","v":"Bus Überland/Berg (ohne Tourismus)"},"","A"]
[170,"RBS",40.008000000000003,"8 Büren a.A. - Solothurn",{"$f":"Übersetzungstabelle!$A$20","v":"Bus Überland/Berg (ohne Tourismus)"},{"$f":"Übersetzungstabelle!$A$19","v":"Bus Agglomerationsverkehr"},"B"]
[170,"RBS",307,"S7 Bern - Bolligen - Worb Dorf",{"$f":"Übersetzungstabelle!$A$14","v":"Schmalspur Agglomeration"},"","B"]
[170,"RBS",308,"RE Bern - Solothurn",{"$f":"Übersetzungstabelle!$A$17","v":"Schmalspur Schnellzüge"},"","B"]
[170,"RBS",308,"S8 Bern - Jegenstorf",{"$f":"Übersetzungstabelle!$A$14","v":"Schmalspur Agglomeration"},"","B"]
[170,"RBS",309,"Bern - Unterzollikofen (Bus)",{"$f":"Übersetzungstabelle!$A$21","v":"Bus alternative Erschliessung"},"","A"]
[170,"RBS",309,"S9 Bern - Unterzollikofen",{"$f":"Übersetzungstabelle!$A$14","v":"Schmalspur Agglomeration"},"","B"]
[171,"zb",470,"IR Luzern - Interlaken Ost",{"$f":"Übersetzungstabelle!$A$17","v":"Schmalspur Schnellzüge"},"","B"]
[171,"zb",470,"Meiringen - Interlaken Ost",{"$f":"Übersetzungstabelle!$A$15","v":"Schmalspur Überland/Berg (ohne Tourismus)"},"","B"]
[171,"zb",470,"S5 Luzern - Giswil",{"$f":"Übersetzungstabelle!$A$15","v":"Schmalspur Überland/Berg (ohne Tourismus)"},"","B"]
[171,"zb",470,"S55 Luzern - Sachseln",{"$f":"Übersetzungstabelle!$A$15","v":"Schmalspur Überland/Berg (ohne Tourismus)"},null,"B"]
[171,"zb",480,"Dallenwil - Engelberg (Bus)",{"$f":"Übersetzungstabelle!$A$21","v":"Bus alternative Erschliessung"},"","A"]
[171,"zb",480,"IR Luzern - Stans - Engelberg",{"$f":"Übersetzungstabelle!$A$16","v":"Schmalspur Touristische Angebote"},"Schmalspur Schnellzüge","B"]
[171,"zb",480,"S4 Luzern - Stans [- Wolfenschiessen",{"$f":"Übersetzungstabelle!$A$15","v":"Schmalspur Überland/Berg (ohne Tourismus)"},"","B"]
[171,"zb",480,"S44 Luzern - Stans",{"$f":"Übersetzungstabelle!$A$15","v":"Schmalspur Überland/Berg (ohne Tourismus)"},null,"B"]
[171,"zb","470/480","Busersatz Hergiswil Matt",{"$f":"Übersetzungstabelle!$A$21","v":"Bus alternative Erschliessung"},null,"A"]
[180,"MGB",12.551,"551 Visp -] St. Niklaus VS - Grächen",{"$f":"Übersetzungstabelle!$A$20","v":"Bus Überland/Berg (ohne Tourismus)"},{"$f":"Übersetzungstabelle!$A$22","v":"Bus Touristische Angebote"},"A"]
[180,"MGB",12.552,"552 Visp - St. Niklaus VS",{"$f":"Übersetzungstabelle!$A$20","v":"Bus Überland/Berg (ohne Tourismus)"},"","B"]
[180,"MGB",12.553000000000001,"553 St. Niklaus VS - Gasenried",{"$f":"Übersetzungstabelle!$A$20","v":"Bus Überland/Berg (ohne Tourismus)"},"","A"]
[180,"MGB",12.651,"651 Fiesch - Fieschertal",{"$f":"Übersetzungstabelle!$A$20","v":"Bus Überland/Berg (ohne Tourismus)"},"","A"]
[180,"MGB",12.651999999999999,"652 Fiesch - Ernen - Binn",{"$f":"Übersetzungstabelle!$A$20","v":"Bus Überland/Berg (ohne Tourismus)"},{"$f":"Übersetzungstabelle!$A$22","v":"Bus Touristische Angebote"},"A"]
[180,"MGB",12.654999999999999,"655 Ernen - Mühlebach (Goms) - Steinhaus",{"$f":"Übersetzungstabelle!$A$20","v":"Bus Überland/Berg (ohne Tourismus)"},"","A"]
[180,"MGB",140,"Brig - Visp - Zermatt",{"$f":"Übersetzungstabelle!$A$16","v":"Schmalspur Touristische Angebote"},"","B"]
[180,"MGB",141,"Täsch - Zermatt (Pendelzüge)",{"$f":"Übersetzungstabelle!$A$16","v":"Schmalspur Touristische Angebote"},"","B"]
[180,"MGB",142,"Brig - Andermatt - Göschenen (Bus)",{"$f":"Übersetzungstabelle!$A$21","v":"Bus alternative Erschliessung"},"","A"]
[180,"MGB",143,"Dieni - Sedrun - Disentis (Bus)",{"$f":"Übersetzungstabelle!$A$21","v":"Bus alternative Erschliessung"},"","A"]
[180,"MGB","142/143","Visp - Brig - Andermatt - Disentis /- Göschenen",{"$f":"Übersetzungstabelle!$A$16","v":"Schmalspur Touristische Angebote"},"","B"]
[182,"VZO",70.841999999999999,"842 Uster - Mönchaltorf - Oetwil am See",{"$f":"Übersetzungstabelle!$A$19","v":"Bus Agglomerationsverkehr"},null,"B"]
[182,"VZO",70.844999999999999,"845 Uster - Gossau ZH - Grüningen - Oetwil am See",{"$f":"Übersetzungstabelle!$A$19","v":"Bus Agglomerationsverkehr"},null,"B"]
[182,"VZO",70.849999999999994,"850 Wetzikon ZH - Bäretswil - Bauma",{"$f":"Übersetzungstabelle!$A$19","v":"Bus Agglomerationsverkehr"},null,"B"]
[182,"VZO",70.849999999999994,"851 Wetzikon ZH - Adetswil",{"$f":"Übersetzungstabelle!$A$19","v":"Bus Agglomerationsverkehr"},null,"B"]
[182,"VZO",70.853999999999999,"854 Rüti ZH - Wald - Bauma",{"$f":"Übersetzungstabelle!$A$19","v":"Bus Agglomerationsverkehr"},null,"A"]
[182,"VZO",70.861999999999995,"862 Wetzikon ZH - Gossau ZH - Wetzikon ZH",{"$f":"Übersetzungstabelle!$A$19","v":"Bus Agglomerationsverkehr"},null,"B"]
[182,"VZO",70.867000000000004,"867 Wetzikon ZH - Grüningen - Oetwil am See",{"$f":"Übersetzungstabelle!$A$19","v":"Bus Agglomerationsverkehr"},null,"B"]
[182,"VZO",70.87,"870 Rüti ZH - Dürnten - Hinwil",{"$f":"Übersetzungstabelle!$A$19","v":"Bus Agglomerationsverkehr"},null,"B"]
[182,"VZO",70.875,"875 Hinwil - Girenbad - Ringwil",{"$f":"Übersetzungstabelle!$A$20","v":"Bus Überland/Berg (ohne Tourismus)"},null,"B"]
[182,"VZO",70.88,"880 (Rüti ZH -) Bubikon - Hombrechtikon - Stäfa",{"$f":"Übersetzungstabelle!$A$19","v":"Bus Agglomerationsverkehr"},null,"B"]
[182,"VZO",70.882000000000005,"882 Bubikon - Dürnten",{"$f":"Übersetzungstabelle!$A$19","v":"Bus Agglomerationsverkehr"},null,"B"]
[182,"VZO",70.885000000000005,"885 Rapperswil SG - Rüti ZH - Goldingen (- Atzmännig)",{"$f":"Übersetzungstabelle!$A$20","v":"Bus Überland/Berg (ohne Tourismus)"},null,"B"]
[182,"VZO",70.891999999999996,"892 Wald ZH - Faltigberg ZH",{"$f":"Übersetzungstabelle!$A$19","v":"Bus Agglomerationsverkehr"},null,"A"]
[182,"VZO",70.94,"940 Oetwil am See - Männedorf",{"$f":"Übersetzungstabelle!$A$19","v":"Bus Agglomerationsverkehr"},null,"B"]
[182,"VZO",70.954999999999998,"955 Hombrechtikon - Stäfa",{"$f":"Übersetzungstabelle!$A$20","v":"Bus Überland/Berg (ohne Tourismus)"},null,"B"]
[182,"VZO",70.974000000000004,"974 Herrliberg - Wetzwil",{"$f":"Übersetzungstabelle!$A$20","v":"Bus Überland/Berg (ohne Tourismus)"},null,"B"]
[182,"VZO","Buxi","879 Buxi Dürnten",{"$f":"Übersetzungstabelle!$A$21","v":"Bus alternative Erschliessung"},null,"A"]
[182,"VZO",70.858000000000004,"858 Wetzikon ZH - Hittnau",{"$f":"Übersetzungstabelle!$A$20","v":"Bus Überland/Berg (ohne Tourismus)"},null,"B"]
[182,"VZO",70.882999999999996,"883 Bubikon - Wetzikon ZH",{"$f":"Übersetzungstabelle!$A$20","v":"Bus Überland/Berg (ohne Tourismus)"},null,"B"]
[182,"VZO",70.870999999999995,"871 Buxi Hinwil",{"$f":"Übersetzungstabelle!$A$21","v":"Bus alternative Erschliessung"},null,"B"]
[183,"AVA",50.34,"340 Wohlen - Meisterschwanden",{"$f":"Übersetzungstabelle!$A$20","v":"Bus Überland/Berg (ohne Tourismus)"},"","B"]
[183,"AVA",50.444000000000003,"444 Bremgarten - Zürich Enge",{"$f":"Übersetzungstabelle!$A$19","v":"Bus Agglomerationsverkehr"},null,"B"]
[183,"AVA",50.445,"445 Oberrohrdorf - Zürich Enge",{"$f":"Übersetzungstabelle!$A$19","v":"Bus Agglomerationsverkehr"},null,"B"]
[183,"AVA",50.603000000000002,"3 (Industrie - Zofingen -) Rothrist - Glashütten",{"$f":"Übersetzungstabelle!$A$20","v":"Bus Überland/Berg (ohne Tourismus)"},"","B"]
[183,"AVA",50.606000000000002,"6 Zofingen - Strengelbach - Vordemwald /- Rothrist",{"$f":"Übersetzungstabelle!$A$20","v":"Bus Überland/Berg (ohne Tourismus)"},"","B"]
[183,"AVA",50.607999999999997,"8 Zofingen - Reiden - St. Urban",{"$f":"Übersetzungstabelle!$A$20","v":"Bus Überland/Berg (ohne Tourismus)"},"","B"]
[183,"AVA",50.609000000000002,"9 Zofingen - Reiden - Richenthal",{"$f":"Übersetzungstabelle!$A$20","v":"Bus Überland/Berg (ohne Tourismus)"},"","A"]
[183,"AVA",50.613,"13 Zofingen - Bottenwil /- Schöftland",{"$f":"Übersetzungstabelle!$A$20","v":"Bus Überland/Berg (ohne Tourismus)"},"","B"]
[183,"AVA",654,"S17 Wohlen - Bremgarten - Dietikon",{"$f":"Übersetzungstabelle!$A$15","v":"Schmalspur Überland/Berg (ohne Tourismus)"},{"$f":"Übersetzungstabelle!$A$14","v":"Schmalspur Agglomeration"},"B"]
[183,"AVA","N31","N31 Dietikon - Widen - Berikon-Widen - Oberwil-Lieli",{"$f":"Übersetzungstabelle!$A$21","v":"Bus alternative Erschliessung"},null,"B"]
[183,"AVA","N32","N32 Dietikon - Berikon-Widen - Wohlen - Sarmenstorf",{"$f":"Übersetzungstabelle!$A$21","v":"Bus alternative Erschliessung"},null,"B"]
[183,"AVA","N60","N60 Olten - Aarburg - Oftringen - Zofingen - Vordemwald",{"$f":"Übersetzungstabelle!$A$21","v":"Bus alternative Erschliessung"},null,"B"]
[183,"AVA",643,"S14 Aarau - Schöftland",{"$f":"Übersetzungstabelle!$A$15","v":"Schmalspur Überland/Berg (ohne Tourismus)"},{"$f":"Übersetzungstabelle!$A$14","v":"Schmalspur Agglomeration"},"B"]
[183,"AVA",644,"S14 Aarau - Menziken",{"$f":"Übersetzungstabelle!$A$15","v":"Schmalspur Überland/Berg (ohne Tourismus)"},{"$f":"Übersetzungstabelle!$A$14","v":"Schmalspur Agglomeration"},"B"]
[185,"ZVB",50.347000000000001,"347 Sins - Auw - Abtwil - Fenkrieden",{"$f":"Übersetzungstabelle!$A$20","v":"Bus Überland/Berg (ohne Tourismus)"},"","B"]
[185,"ZVB",50.347999999999999,"348 Sins - Dietwil - Gisikon-Root",{"$f":"Übersetzungstabelle!$A$20","v":"Bus Überland/Berg (ohne Tourismus)"},"","B"]
[185,"ZVB",60.100999999999999,"1 Hochdorf - Hohenrain - Hochdorf",{"$f":"Übersetzungstabelle!$A$20","v":"Bus Überland/Berg (ohne Tourismus)"},"","A"]
[185,"ZVB",60.104999999999997,"5 Hochdorf - Römerswil - Herlisberg - Beromünster",{"$f":"Übersetzungstabelle!$A$20","v":"Bus Überland/Berg (ohne Tourismus)"},"","A"]
[185,"ZVB",60.106000000000002,"6 Hitzkirch - Müswangen - Hämikon Berg",{"$f":"Übersetzungstabelle!$A$20","v":"Bus Überland/Berg (ohne Tourismus)"},"","B"]
[185,"ZVB",60.106999999999999,"7 Hitzkirch - Schongau",{"$f":"Übersetzungstabelle!$A$20","v":"Bus Überland/Berg (ohne Tourismus)"},"","A"]
[185,"ZVB",60.600999999999999,"1 Zug - Oberägeri",{"$f":"Übersetzungstabelle!$A$19","v":"Bus Agglomerationsverkehr"},"","B"]
[185,"ZVB",60.601999999999997,"2 Zug - Menzingen",{"$f":"Übersetzungstabelle!$A$19","v":"Bus Agglomerationsverkehr"},"","B"]
[185,"ZVB",60.604999999999997,"5 Zug - Walchwil",{"$f":"Übersetzungstabelle!$A$20","v":"Bus Überland/Berg (ohne Tourismus)"},{"$f":"Übersetzungstabelle!$A$19","v":"Bus Agglomerationsverkehr"},"B"]
[185,"ZVB",60.609000000000002,"9 Oberägeri - Sattel",{"$f":"Übersetzungstabelle!$A$20","v":"Bus Überland/Berg (ohne Tourismus)"},"","A"]
[185,"ZVB",60.61,"10 Oberägeri - Alosen Giregg (- Raten)",{"$f":"Übersetzungstabelle!$A$20","v":"Bus Überland/Berg (ohne Tourismus)"},null,"B"]
[185,"ZVB",60.621000000000002,"21 Walchwil - Arth-Goldau",{"$f":"Übersetzungstabelle!$A$20","v":"Bus Überland/Berg (ohne Tourismus)"},{"$f":"Übersetzungstabelle!$A$19","v":"Bus Agglomerationsverkehr"},"B"]
[185,"ZVB",60.622,"22 Küssnacht a.R. - Immensee",{"$f":"Übersetzungstabelle!$A$20","v":"Bus Überland/Berg (ohne Tourismus)"},"","B"]
[185,"ZVB",60.631,"31 Baar - Neuheim",{"$f":"Übersetzungstabelle!$A$20","v":"Bus Überland/Berg (ohne Tourismus)"},"","B"]
[185,"ZVB",60.640999999999998,"41 Cham - Hünenberg",{"$f":"Übersetzungstabelle!$A$19","v":"Bus Agglomerationsverkehr"},"","B"]
[185,"ZVB",60.651000000000003,"51 (Küntwil -) Rotkreuz - Hünenberg",{"$f":"Übersetzungstabelle!$A$20","v":"Bus Überland/Berg (ohne Tourismus)"},"","B"]
[185,"ZVB",60.652999999999999,"53 Rotkreuz - Küssnacht a.R.",{"$f":"Übersetzungstabelle!$A$20","v":"Bus Überland/Berg (ohne Tourismus)"},{"$f":"Übersetzungstabelle!$A$19","v":"Bus Agglomerationsverkehr"},"B"]
[185,"ZVB","N1","N1 Zug - Oberägeri (Nachtangebot)",{"$f":"Übersetzungstabelle!$A$21","v":"Bus alternative Erschliessung"},null,"B"]
[185,"ZVB","N2","N2 Zug - Menzingen (Nachtangebot)",{"$f":"Übersetzungstabelle!$A$21","v":"Bus alternative Erschliessung"},null,"B"]
[185,"ZVB","N4","N4 Zug - Cham (Nachtangebot)",{"$f":"Übersetzungstabelle!$A$21","v":"Bus alternative Erschliessung"},null,"B"]
[185,"ZVB","N5","N5 Zug - Walchwil (Nachtangebot)",{"$f":"Übersetzungstabelle!$A$21","v":"Bus alternative Erschliessung"},null,"B"]
[185,"ZVB","N6","N6 Zug - Hünenberg - Sins - Mühlau (Nachtangebot)",{"$f":"Übersetzungstabelle!$A$21","v":"Bus alternative Erschliessung"},null,"B"]
[201,"RB",603,"Vitznau - Rigi Staffelhöhe (- Rigi Kulm)",{"$f":"Übersetzungstabelle!$A$16","v":"Schmalspur Touristische Angebote"},"","B"]
[201,"RB",2566,"Weggis - Rigi Kaltbad",{"$f":"Übersetzungstabelle!$A$25","v":"Seilbahnen"},"","B"]
[212,"MVR",112,"Vevey - Blonay - Lally (- Les Pléiades)",{"$f":"Übersetzungstabelle!$A$15","v":"Schmalspur Überland/Berg (ohne Tourismus)"},"","B"]
[212,"MVR",121,"Montreux - Glion - Haut-de-Caux (- Rochers-de-Naye)",{"$f":"Übersetzungstabelle!$A$16","v":"Schmalspur Touristische Angebote"},"","B"]
[212,"MVR",2050,"Vevey-Plan - Chardonne-Jongny - Mont-Pèlerin",{"$f":"Übersetzungstabelle!$A$26","v":"Standseilbahnen"},"","A"]
[212,"MVR",2054,"Territet - Glion",{"$f":"Übersetzungstabelle!$A$26","v":"Standseilbahnen"},"","B"]
[219,"WAB",311,"Lauterbrunnen - Wengen (- Kleine Scheidegg)",{"$f":"Übersetzungstabelle!$A$16","v":"Schmalspur Touristische Angebote"},"","B"]
[251,"TPF",20.001000000000001,"1 Marly - Pérolles - Fribourg gare - Portes de Fribourg",{"$f":"Übersetzungstabelle!$A$19","v":"Bus Agglomerationsverkehr"},"","B"]
[251,"TPF",20.007999999999999,"8 Fribourg - Corminboeuf - Chésopelloz",{"$f":"Übersetzungstabelle!$A$20","v":"Bus Überland/Berg (ohne Tourismus)"},"","B"]
[251,"TPF",20.12,"120 Tafers - Schmitten",{"$f":"Übersetzungstabelle!$A$20","v":"Bus Überland/Berg (ohne Tourismus)"},"","A"]
[251,"TPF",20.123000000000001,"123 Fribourg - Tafers - Plaffeien - Schwarzsee",{"$f":"Übersetzungstabelle!$A$20","v":"Bus Überland/Berg (ohne Tourismus)"},"","B"]
[251,"TPF",20.123999999999999,"124 Fribourg - St. Ursen - Tafers - Düdingen",{"$f":"Übersetzungstabelle!$A$20","v":"Bus Überland/Berg (ohne Tourismus)"},"","A"]
[251,"TPF",20.126999999999999,"127 Fribourg - Rechthalten - Plaffeien",{"$f":"Übersetzungstabelle!$A$20","v":"Bus Überland/Berg (ohne Tourismus)"},"","A"]
[251,"TPF",20.129000000000001,"129 Fribourg - Marly - Giffers - Plaffeien",{"$f":"Übersetzungstabelle!$A$20","v":"Bus Überland/Berg (ohne Tourismus)"},{"$f":"Übersetzungstabelle!$A$19","v":"Bus Agglomerationsverkehr"},"B"]
[251,"TPF",20.13,"130 Giffers - St. Silvester",{"$f":"Übersetzungstabelle!$A$20","v":"Bus Überland/Berg (ohne Tourismus)"},"","A"]
[251,"TPF",20.181000000000001,"181 Fribourg - Heitenried - Schwarzenburg",{"$f":"Übersetzungstabelle!$A$20","v":"Bus Überland/Berg (ohne Tourismus)"},"","A"]
[251,"TPF",20.181999999999999,"182 Fribourg - Tafers - Heitenried - Schmitten - Wünnewil",{"$f":"Übersetzungstabelle!$A$20","v":"Bus Überland/Berg (ohne Tourismus)"},"","A"]
[251,"TPF",20.202000000000002,"202 Morlon - Bulle - Vuadens",{"$f":"Übersetzungstabelle!$A$20","v":"Bus Überland/Berg (ohne Tourismus)"},"","A"]
[251,"TPF",20.231000000000002,"231 Fribourg - Le Mouret - Bonnefontaine",{"$f":"Übersetzungstabelle!$A$20","v":"Bus Überland/Berg (ohne Tourismus)"},"","A"]
[251,"TPF",20.233000000000001,"233 Fribourg - Treyvaux Le Pratzey",{"$f":"Übersetzungstabelle!$A$20","v":"Bus Überland/Berg (ohne Tourismus)"},"","A"]
[251,"TPF",20.234000000000002,"234 Fribourg - La Roche - Bulle",{"$f":"Übersetzungstabelle!$A$20","v":"Bus Überland/Berg (ohne Tourismus)"},{"$f":"Übersetzungstabelle!$A$19","v":"Bus Agglomerationsverkehr"},"A"]
[251,"TPF",20.234999999999999,"235 La Roche - Pont-la-Ville",{"$f":"Übersetzungstabelle!$A$21","v":"Bus alternative Erschliessung"},"","A"]
[251,"TPF",20.245000000000001,"245 Fribourg - La Roche - Charmey (Gruyère) - Jaun",{"$f":"Übersetzungstabelle!$A$20","v":"Bus Überland/Berg (ohne Tourismus)"},"","A"]
[251,"TPF",20.254000000000001,"254 Bulle - Sâles - Villariaz - Romont FR",{"$f":"Übersetzungstabelle!$A$20","v":"Bus Überland/Berg (ohne Tourismus)"},"","A"]
[251,"TPF",20.257999999999999,"258 Bulle - Maules - Romanens - Oron-la-Ville",{"$f":"Übersetzungstabelle!$A$20","v":"Bus Überland/Berg (ohne Tourismus)"},null,"A"]
[251,"TPF",20.260000000000002,"260 Bulle - Charmey (Gruyère) - Jaun - Jaunpass - Boltigen",{"$f":"Übersetzungstabelle!$A$20","v":"Bus Überland/Berg (ohne Tourismus)"},{"$f":"Übersetzungstabelle!$A$22","v":"Bus Touristische Angebote"},"A"]
[251,"TPF",20.262,"262 Bulle - Broc - Corbières",{"$f":"Übersetzungstabelle!$A$20","v":"Bus Überland/Berg (ohne Tourismus)"},"","A"]
[251,"TPF",20.263000000000002,"263 Epagny - Gruyères - Moléson-sur-Gruyères",{"$f":"Übersetzungstabelle!$A$20","v":"Bus Überland/Berg (ohne Tourismus)"},"","A"]
[251,"TPF",20.263999999999999,"264 Bulle - Estavannens - Grandvillard",{"$f":"Übersetzungstabelle!$A$20","v":"Bus Überland/Berg (ohne Tourismus)"},"","A"]
[251,"TPF",20.335999999999999,"336 Fribourg - Farvagny - Bulle",{"$f":"Übersetzungstabelle!$A$20","v":"Bus Überland/Berg (ohne Tourismus)"},{"$f":"Übersetzungstabelle!$A$19","v":"Bus Agglomerationsverkehr"},"B"]
[251,"TPF",20.337,"337 Fribourg - Posat - Farvagny",{"$f":"Übersetzungstabelle!$A$20","v":"Bus Überland/Berg (ohne Tourismus)"},null,"A"]
[251,"TPF",20.338999999999999,"339 Avry - Rosé - Chénens",{"$f":"Übersetzungstabelle!$A$20","v":"Bus Überland/Berg (ohne Tourismus)"},"","A"]
[251,"TPF",20.34,"340 Rosé - Grolley",{"$f":"Übersetzungstabelle!$A$20","v":"Bus Überland/Berg (ohne Tourismus)"},"","A"]
[251,"TPF",20.454999999999998,"455 Romont FR - La Joux - La Verrerie",{"$f":"Übersetzungstabelle!$A$20","v":"Bus Überland/Berg (ohne Tourismus)"},null,"A"]
[251,"TPF",20.47,"470 Fribourg - Farvagny - Romont FR",{"$f":"Übersetzungstabelle!$A$20","v":"Bus Überland/Berg (ohne Tourismus)"},"","A"]
[251,"TPF",20.471,"471 Romont FR - Le Châtelard-d'en-Haut - Sorens - Bulle",{"$f":"Übersetzungstabelle!$A$20","v":"Bus Überland/Berg (ohne Tourismus)"},"","A"]
[251,"TPF",20.472000000000001,"472 Romont FR - Bouloz - Palézieux",{"$f":"Übersetzungstabelle!$A$20","v":"Bus Überland/Berg (ohne Tourismus)"},"","A"]
[251,"TPF",20.472999999999999,"473 Romont FR - Ursy - Palézieux",{"$f":"Übersetzungstabelle!$A$20","v":"Bus Überland/Berg (ohne Tourismus)"},"","B"]
[251,"TPF",20.474,"474 Romont FR - Vauderens - Moudon",{"$f":"Übersetzungstabelle!$A$20","v":"Bus Überland/Berg (ohne Tourismus)"},null,"A"]
[251,"TPF",20.475999999999999,"476 Romont FR - Prez-vers-Siviriez - Romont FR",{"$f":"Übersetzungstabelle!$A$20","v":"Bus Überland/Berg (ohne Tourismus)"},"","A"]
[251,"TPF",20.478000000000002,"478 Romont FR - Hennens /- Lucens",{"$f":"Übersetzungstabelle!$A$20","v":"Bus Überland/Berg (ohne Tourismus)"},null,"A"]
[251,"TPF",20.481000000000002,"481 Palézieux - Attalens",{"$f":"Übersetzungstabelle!$A$20","v":"Bus Überland/Berg (ohne Tourismus)"},"","A"]
[251,"TPF",20.481999999999999,"482 Estévenens - Sommentier",{"$f":"Übersetzungstabelle!$A$20","v":"Bus Überland/Berg (ohne Tourismus)"},null,"A"]
[251,"TPF",20.492000000000001,"492 Châtel-St-Denis - Les Paccots",{"$f":"Übersetzungstabelle!$A$20","v":"Bus Überland/Berg (ohne Tourismus)"},"","A"]
[251,"TPF",20.52,"520 Murten - Gempenach",{"$f":"Übersetzungstabelle!$A$20","v":"Bus Überland/Berg (ohne Tourismus)"},null,"A"]
[251,"TPF",20.53,"530 Kerzers - Sugiez - Lugnorre",{"$f":"Übersetzungstabelle!$A$20","v":"Bus Überland/Berg (ohne Tourismus)"},"","A"]
[251,"TPF",20.544,"544 Fribourg - Avenches - Domdidier - Gletterens",{"$f":"Übersetzungstabelle!$A$20","v":"Bus Überland/Berg (ohne Tourismus)"},"","A"]
[251,"TPF",20.545000000000002,"545 Fribourg - Misery - Courtepin",{"$f":"Übersetzungstabelle!$A$20","v":"Bus Überland/Berg (ohne Tourismus)"},{"$f":"Übersetzungstabelle!$A$19","v":"Bus Agglomerationsverkehr"},"A"]
[251,"TPF",20.545999999999999,"546 Murten - Courlevon - Courtepin",{"$f":"Übersetzungstabelle!$A$20","v":"Bus Überland/Berg (ohne Tourismus)"},null,"A"]
[251,"TPF",20.547999999999998,"548 Murten - Gümmenen",{"$f":"Übersetzungstabelle!$A$20","v":"Bus Überland/Berg (ohne Tourismus)"},"","A"]
[251,"TPF",20.548999999999999,"549 Courtepin - Gurmels",{"$f":"Übersetzungstabelle!$A$20","v":"Bus Überland/Berg (ohne Tourismus)"},"","A"]
[251,"TPF",20.550999999999998,"551 Estavayer-le-Lac - Forel FR - Rueyres-les-Prés",{"$f":"Übersetzungstabelle!$A$20","v":"Bus Überland/Berg (ohne Tourismus)"},"","A"]
[251,"TPF",20.552,"552 Estavayer-le-Lac - Cugy FR - Combremont-le-Grand",{"$f":"Übersetzungstabelle!$A$20","v":"Bus Überland/Berg (ohne Tourismus)"},"","A"]
[251,"TPF",20.553000000000001,"553 Estavayer-le-Lac - Châbles FR - Cheyres",{"$f":"Übersetzungstabelle!$A$20","v":"Bus Überland/Berg (ohne Tourismus)"},"","A"]
[251,"TPF",20.553999999999998,"554 Estavayer-le-Lac - Bussy FR - Rueyres-le-Prés",{"$f":"Übersetzungstabelle!$A$20","v":"Bus Überland/Berg (ohne Tourismus)"},null,"A"]
[251,"TPF",20.555,"555 Estavayer-le-Lac - Murist - Vuissens",{"$f":"Übersetzungstabelle!$A$20","v":"Bus Überland/Berg (ohne Tourismus)"},null,"A"]
[251,"TPF",20.556000000000001,"556 Villarepos - Domdidier - Gletterens - Rueyres-les-Prés",{"$f":"Übersetzungstabelle!$A$20","v":"Bus Überland/Berg (ohne Tourismus)"},null,"A"]
[251,"TPF","253/256","S60 Palézieux - Châtel-St-Denis - Bulle - Broc",{"$f":"Übersetzungstabelle!$A$15","v":"Schmalspur Überland/Berg (ohne Tourismus)"},"","B"]
[251,"TPF",255,"S20 Neuchâtel - Ins - Murten/Morat - Fribourg/Freiburg",{"$f":"Übersetzungstabelle!$A$11","v":"Normalspur Überland/Regionalverkehr"},"","B"]
[251,"TPF",255,"S21 Ins - Murten/Morat - Fribourg/Freiburg",{"$f":"Übersetzungstabelle!$A$11","v":"Normalspur Überland/Regionalverkehr"},"","B"]
[251,"TPF",253,"S50 Palézieux - Châtel-St-Denis - Bulle - Montbovon",{"$f":"Übersetzungstabelle!$A$15","v":"Schmalspur Überland/Berg (ohne Tourismus)"},"","B"]
[251,"TPF","254/250","RE Bulle - Romont - Fribourg/Freiburg (- Bern)",{"$f":"Übersetzungstabelle!$A$12","v":"Normalspur Schnellzüge"},"","B"]
[251,"TPF",20.140999999999998,"N16 Fribourg - St-Ursen - Alterswil - Heitenried",{"$f":"Übersetzungstabelle!$A$12","v":"Normalspur Schnellzüge"},"","B"]
[251,"TPF",20.141999999999999,"N17 Fribourg - Giffers - Plaffeien",{"$f":"Übersetzungstabelle!$A$12","v":"Normalspur Schnellzüge"},"","B"]
[251,"TPF",20.145,"N15 Fribourg - Düdingen - Murten - Sugiez",{"$f":"Übersetzungstabelle!$A$12","v":"Normalspur Schnellzüge"},"","B"]
[251,"TPF",20.222999999999999,"N23 Bulle - Châtel-St-Denis - Palézieux",{"$f":"Übersetzungstabelle!$A$12","v":"Normalspur Schnellzüge"},"","B"]
[251,"TPF",20.260999999999999,"N22 Bulle - Gruyères - Charmey",{"$f":"Übersetzungstabelle!$A$12","v":"Normalspur Schnellzüge"},"","B"]
[251,"TPF",20.331,"N11 Fribourg - Farvagny - Bulle",{"$f":"Übersetzungstabelle!$A$12","v":"Normalspur Schnellzüge"},"","B"]
[251,"TPF",20.463000000000001,"N24 Bulle - Romont - Ursy - Palézieux",{"$f":"Übersetzungstabelle!$A$12","v":"Normalspur Schnellzüge"},"","B"]
[251,"TPF",20.477,"N12 Fribourg - Neyruz - Romont FR",{"$f":"Übersetzungstabelle!$A$12","v":"Normalspur Schnellzüge"},"","B"]
[251,"TPF",20.541,"N14 Fribourg - Courtepin - Avenches - Gletterens",{"$f":"Übersetzungstabelle!$A$12","v":"Normalspur Schnellzüge"},"","B"]
[251,"TPF",20.559000000000001,"N13 Fribourg - Payerne - Extavayer-le-Lac",{"$f":"Übersetzungstabelle!$A$12","v":"Normalspur Schnellzüge"},"","B"]
[301,"AAGU",60.402000000000001,"402 Altdorf UR - Attinghausen",{"$f":"Übersetzungstabelle!$A$20","v":"Bus Überland/Berg (ohne Tourismus)"},"","A"]
[301,"AAGU",60.402999999999999,"403 Seedorf UR - Altdorf UR - Bürglen UR",{"$f":"Übersetzungstabelle!$A$20","v":"Bus Überland/Berg (ohne Tourismus)"},"","A"]
[301,"AAGU",60.405999999999999,"406 Gurtnellen Wiler - Gurtnellen Dorf",{"$f":"Übersetzungstabelle!$A$20","v":"Bus Überland/Berg (ohne Tourismus)"},"","A"]
[301,"AAGU",60.093000000000004,"93 Altdorf UR - Luzern (Schnellbus)",{"$f":"Übersetzungstabelle!$A$21","v":"Bus alternative Erschliessung"},"","B"]
[301,"AAGU",60.401000000000003,"401 (Gruonbach -) Flüelen - Amsteg (- Göschenen)",{"$f":"Übersetzungstabelle!$A$20","v":"Bus Überland/Berg (ohne Tourismus)"},"","B"]
[301,"AAGU",60.401000000000003,"401 (Gruonbach -) Flüelen - Göschenen",{"$f":"Übersetzungstabelle!$A$20","v":"Bus Überland/Berg (ohne Tourismus)"},"","B"]
[303,"BVB",50.006,"6 Allschwil Dorf - Basel Barfüsserplatz - Riehen Grenze",{"$f":"Übersetzungstabelle!$A$14","v":"Schmalspur Agglomeration"},"","B"]
[303,"BVB",50.031999999999996,"32 (Rotengraben -) Riehen - Bettingen (- Chrischonaklinik)",{"$f":"Übersetzungstabelle!$A$20","v":"Bus Überland/Berg (ohne Tourismus)"},"","B"]
[303,"BVB",50.05,"50 Basel SBB - EuroAirport",{"$f":"Übersetzungstabelle!$A$19","v":"Bus Agglomerationsverkehr"},"","B"]
[306,"SVB",30.021000000000001,"21 Bern - Innere Enge - Felsenau - Bremgarten",{"$f":"Übersetzungstabelle!$A$20","v":"Bus Überland/Berg (ohne Tourismus)"},{"$f":"Übersetzungstabelle!$A$19","v":"Bus Agglomerationsverkehr"},"B"]
[306,"SVB",30.032,"32 Bümpliz Bachmätteli - Oberbottigen - Riedbach Bahnhof",{"$f":"Übersetzungstabelle!$A$20","v":"Bus Überland/Berg (ohne Tourismus)"},"","B"]
[306,"SVB",30.16,"160 Konolfingen - Münsingen - Belp - Bern Flughafen",{"$f":"Übersetzungstabelle!$A$20","v":"Bus Überland/Berg (ohne Tourismus)"},"","B"]
[306,"SVB",295,"6 (Bern Fischermätteli -) Bern Bahnhofplatz - Muri - Worb Dorf",{"$f":"Übersetzungstabelle!$A$14","v":"Schmalspur Agglomeration"},"","B"]
[316,"TPG",11.041,"41 Carouge GE - Veyrier",{"$f":"Übersetzungstabelle!$A$19","v":"Bus Agglomerationsverkehr"},null,"B"]
[316,"TPG",11.042999999999999,"43 Plan-les-Ouates - Carouge GE - Onex - Bernex",{"$f":"Übersetzungstabelle!$A$20","v":"Bus Überland/Berg (ohne Tourismus)"},"","B"]
[316,"TPG",11.061,"61 Genève Cornavin - Moillesulaz (- Annemasse)",{"$f":"Übersetzungstabelle!$A$19","v":"Bus Agglomerationsverkehr"},null,"B"]
[316,"TPG",11.101000000000001,"A Genève - Cologny - Meinier - Gy",{"$f":"Übersetzungstabelle!$A$20","v":"Bus Überland/Berg (ohne Tourismus)"},{"$f":"Übersetzungstabelle!$A$19","v":"Bus Agglomerationsverkehr"},"B"]
[316,"TPG",11.103,"C Chêne-Bougeries - Thônex - Presinge - Jussy",{"$f":"Übersetzungstabelle!$A$19","v":"Bus Agglomerationsverkehr"},"","B"]
[316,"TPG",11.105,"E Genève Rive - Hermance",{"$f":"Übersetzungstabelle!$A$19","v":"Bus Agglomerationsverkehr"},"","B"]
[316,"TPG",11.111000000000001,"K Petit-Lancy - Chancy (- Pougny)",{"$f":"Übersetzungstabelle!$A$20","v":"Bus Überland/Berg (ohne Tourismus)"},"","B"]
[316,"TPG",11.125999999999999,"Z Genthod - Bossy - Versonnex",{"$f":"Übersetzungstabelle!$A$19","v":"Bus Agglomerationsverkehr"},"","B"]
[316,"TPG",11.032999999999999,"33 Genève Rive - Vandoeuvres - Puplinge",{"$f":"Übersetzungstabelle!$A$19","v":"Bus Agglomerationsverkehr"},null,"B"]
[316,"TPG",11.042,"42 Carouge GE - Perly - Confignon - Bernex",{"$f":"Übersetzungstabelle!$A$19","v":"Bus Agglomerationsverkehr"},null,"B"]
[316,"TPG",11.044,"44 Carouge GE - Croix-de-Rozon",{"$f":"Übersetzungstabelle!$A$19","v":"Bus Agglomerationsverkehr"},null,"B"]
[316,"TPG",11.106999999999999,"G Genève - Corsier GE - Veigy",{"$f":"Übersetzungstabelle!$A$19","v":"Bus Agglomerationsverkehr"},null,"B"]
[316,"TPG",11.112,"L Bernex - Athenaz",{"$f":"Übersetzungstabelle!$A$19","v":"Bus Agglomerationsverkehr"},null,"B"]
[327,"AMSA",62.502000000000002,"2 Chiasso - Centri Commerciali - Mendrisio",{"$f":"Übersetzungstabelle!$A$20","v":"Bus Überland/Berg (ohne Tourismus)"},null,"B"]
[327,"AMSA",62.511000000000003,"511 Vacallo - Chiasso - Pedrinate - Seseglio",{"$f":"Übersetzungstabelle!$A$20","v":"Bus Überland/Berg (ohne Tourismus)"},"","A"]
[334,"BOS",80.3,"300 Altstätten SG - Buchs SG",{"$f":"Übersetzungstabelle!$A$20","v":"Bus Überland/Berg (ohne Tourismus)"},"","B"]
[334,"BOS",80.301000000000002,"301 Heerbrugg - Marbach SG - Altstätten SG",{"$f":"Übersetzungstabelle!$A$20","v":"Bus Überland/Berg (ohne Tourismus)"},{"$f":"Übersetzungstabelle!$A$19","v":"Bus Agglomerationsverkehr"},"B"]
[334,"BOS",80.302000000000007,"302 Heerbrugg - Berneck",{"$f":"Übersetzungstabelle!$A$20","v":"Bus Überland/Berg (ohne Tourismus)"},"","B"]
[334,"BOS",80.302999999999997,"303 Heerbrugg - Diepoldsau (- Hohenems (A))",{"$f":"Übersetzungstabelle!$A$20","v":"Bus Überland/Berg (ohne Tourismus)"},"","B"]
[334,"BOS",80.304000000000002,"304 Heerbrugg - St. Margrethen - Rheineck",{"$f":"Übersetzungstabelle!$A$20","v":"Bus Überland/Berg (ohne Tourismus)"},"","B"]
[334,"BOS",80.305000000000007,"305 Rheineck - Rorschach",{"$f":"Übersetzungstabelle!$A$20","v":"Bus Überland/Berg (ohne Tourismus)"},null,"B"]
[334,"BOS",80.331000000000003,"331 Altstätten SG - Eichberg",{"$f":"Übersetzungstabelle!$A$20","v":"Bus Überland/Berg (ohne Tourismus)"},"","A"]
[334,"BOS",80.331999999999994,"332 Altstätten SG - Kriessern - Oberriet SG - Kobelwald",{"$f":"Übersetzungstabelle!$A$20","v":"Bus Überland/Berg (ohne Tourismus)"},"","A"]
[334,"BOS",80.350999999999999,"351 Heerbrugg - Widnau (- Lustenau (A) - Dornbirn (A))",{"$f":"Übersetzungstabelle!$A$21","v":"Bus alternative Erschliessung"},"","B"]
[334,"BOS",80.400000000000006,"400 Buchs SG - Sargans",{"$f":"Übersetzungstabelle!$A$20","v":"Bus Überland/Berg (ohne Tourismus)"},"","B"]
[334,"BOS",80.400999999999996,"401 Räfis-Burgerau - Buchs SG - Grabs",{"$f":"Übersetzungstabelle!$A$20","v":"Bus Überland/Berg (ohne Tourismus)"},null,"B"]
[334,"BOS",80.41,"410 Buchs SG - Gams (ohne Kurse Wildhaus)",{"$f":"Übersetzungstabelle!$A$20","v":"Bus Überland/Berg (ohne Tourismus)"},"","B"]
[334,"BOS",80.411000000000001,"411 (Bendern FL -) Haag (Rheintal) - Gams - Sennwald",{"$f":"Übersetzungstabelle!$A$20","v":"Bus Überland/Berg (ohne Tourismus)"},"","A"]
[334,"BOS",80.412000000000006,"412 Grabs - Grabserberg (- Voralp)",{"$f":"Übersetzungstabelle!$A$20","v":"Bus Überland/Berg (ohne Tourismus)"},"","A"]
[334,"BOS",80.42,"420 Trübbach - Oberschan - Weite [/- Gonzen Palfris",{"$f":"Übersetzungstabelle!$A$20","v":"Bus Überland/Berg (ohne Tourismus)"},"","A"]
[334,"BOS",80.430000000000007,"429/430 Sargans - Wangs - Vilters - Sargans / Sargans - Vilters - Wangs - Sargans",{"$f":"Übersetzungstabelle!$A$20","v":"Bus Überland/Berg (ohne Tourismus)"},"","B"]
[334,"BOS",80.432000000000002,"432 Sargans -] Mels - Weisstannen (- Vorsiez)",{"$f":"Übersetzungstabelle!$A$20","v":"Bus Überland/Berg (ohne Tourismus)"},"","A"]
[334,"BOS",80.441999999999993,"442 Walenstadt - Flums - Walenstadt",{"$f":"Übersetzungstabelle!$A$20","v":"Bus Überland/Berg (ohne Tourismus)"},"","A"]
[334,"BOS",80.442999999999998,"443 Walenstadt - Walenstadtberg",{"$f":"Übersetzungstabelle!$A$20","v":"Bus Überland/Berg (ohne Tourismus)"},"","A"]
[334,"BOS",80.444000000000003,"444 Walenstadt - Unterterzen - Murg",{"$f":"Übersetzungstabelle!$A$20","v":"Bus Überland/Berg (ohne Tourismus)"},null,"B"]
[334,"BOS",80.706000000000003,"706 Wil SG - Bronschhofen - Braunau",{"$f":"Übersetzungstabelle!$A$20","v":"Bus Überland/Berg (ohne Tourismus)"},"","B"]
[334,"BOS",80.721999999999994,"722 Wil SG - Wuppenau - Hosenruck",{"$f":"Übersetzungstabelle!$A$20","v":"Bus Überland/Berg (ohne Tourismus)"},"","B"]
[334,"BOS",80.731999999999999,"732 Wil SG - Kirchberg - Gähwil",{"$f":"Übersetzungstabelle!$A$20","v":"Bus Überland/Berg (ohne Tourismus)"},"","B"]
[334,"BOS",80.733000000000004,"733 Wil SG - Littenheid",{"$f":"Übersetzungstabelle!$A$20","v":"Bus Überland/Berg (ohne Tourismus)"},"","B"]
[334,"BOS",80.733999999999995,"734 Wil SG - Sirnach - Dussnang - Fischingen",{"$f":"Übersetzungstabelle!$A$20","v":"Bus Überland/Berg (ohne Tourismus)"},"","B"]
[334,"BOS",80.734999999999999,"735 Wil SG - Sirnach - Eschlikon - Bichelsee [- Dussnang",{"$f":"Übersetzungstabelle!$A$20","v":"Bus Überland/Berg (ohne Tourismus)"},"","B"]
[334,"BOS",80.736999999999995,"737 Wil SG - Zuzwil SG - Oberbüren - Uzwil (Nachtbus)",{"$f":"Übersetzungstabelle!$A$21","v":"Bus alternative Erschliessung"},null,"B"]
[334,"BOS",80.738,"738 Wil SG - Schwarzenbach SG - Algetshausen - Uzwil - Bichwil (Nachtbus)",{"$f":"Übersetzungstabelle!$A$21","v":"Bus alternative Erschliessung"},null,"B"]
[334,"BOS","80.301-304","301-304 St. Margrethen - Heerbrugg / Heerbrugg - Altstätten SG - Oberriet SG / Berneck - Diepoldsau (Nachtangebot)",{"$f":"Übersetzungstabelle!$A$21","v":"Bus alternative Erschliessung"},"","B"]
[334,"BOS",80.736000000000004,"736 St. Margarethen - Münchwilen - Eschlikon - Balterswil /- Wallenwil",{"$f":"Übersetzungstabelle!$A$20","v":"Bus Überland/Berg (ohne Tourismus)"},null,"B"]
[340,"AAGS",60.500999999999998,"1 (Arth-Goldau - Lauerz -) Schwyz Bahnhof - Schwyz Post - Muotathal",{"$f":"Übersetzungstabelle!$A$20","v":"Bus Überland/Berg (ohne Tourismus)"},"","B"]
[340,"AAGS",60.500999999999998,"1 Arth-Goldau - Lauerz - Schwyz Bahnhof (- Muotathal)",{"$f":"Übersetzungstabelle!$A$20","v":"Bus Überland/Berg (ohne Tourismus)"},"","B"]
[340,"AAGS",60.502000000000002,"2 Schwyz - Brunnen - Gersau - Vitznau - Küssnacht a.R.",{"$f":"Übersetzungstabelle!$A$20","v":"Bus Überland/Berg (ohne Tourismus)"},{"$f":"Übersetzungstabelle!$A$19","v":"Bus Agglomerationsverkehr"},"B"]
[340,"AAGS",60.503999999999998,"4 Brunnen - Morschach",{"$f":"Übersetzungstabelle!$A$20","v":"Bus Überland/Berg (ohne Tourismus)"},{"$f":"Übersetzungstabelle!$A$22","v":"Bus Touristische Angebote"},"B"]
[340,"AAGS",60.506999999999998,"7 Schwyz - Sattel-Aegeri - Rothenthurm - Biberbrugg",{"$f":"Übersetzungstabelle!$A$20","v":"Bus Überland/Berg (ohne Tourismus)"},"","B"]
[340,"AAGS",60.52,"20 Schwyz - Steinen",{"$f":"Übersetzungstabelle!$A$20","v":"Bus Überland/Berg (ohne Tourismus)"},"","B"]
[340,"AAGS",60.523000000000003,"23 Arth-Goldau - Steinerberg - Sattel",{"$f":"Übersetzungstabelle!$A$20","v":"Bus Überland/Berg (ohne Tourismus)"},null,"B"]
[340,"AAGS",60.527999999999999,"28 Vitznau - Küssnacht a.R. - Rotkreuz",{"$f":"Übersetzungstabelle!$A$20","v":"Bus Überland/Berg (ohne Tourismus)"},"","B"]
[340,"AAGS",60.529000000000003,"29 Küssnacht a.R. - Udligenswil - Root D4",{"$f":"Übersetzungstabelle!$A$20","v":"Bus Überland/Berg (ohne Tourismus)"},null,"B"]
[346,"VBZ",70.301000000000002,"301 Oetwil an der Limmat - Geroldswil - Dietikon",{"$f":"Übersetzungstabelle!$A$20","v":"Bus Überland/Berg (ohne Tourismus)"},null,"B"]
[346,"VBZ",70.302000000000007,"302 Dietikon - Weiningen - Schlieren - Oberurdorf",{"$f":"Übersetzungstabelle!$A$20","v":"Bus Überland/Berg (ohne Tourismus)"},null,"B"]
[346,"VBZ",70.302999999999997,"303 Killwangen - Shopping Center Spreitenbach - Dietikon (- Schlieren)",{"$f":"Übersetzungstabelle!$A$20","v":"Bus Überland/Berg (ohne Tourismus)"},null,"B"]
[346,"VBZ",70.304000000000002,"304 Dietikon - Weiningen - Zürich Altstetten ",{"$f":"Übersetzungstabelle!$A$20","v":"Bus Überland/Berg (ohne Tourismus)"},null,"B"]
[346,"VBZ",70.305000000000007,"305 Dietikon - Bergdietikon - Kindhausen AG",{"$f":"Übersetzungstabelle!$A$20","v":"Bus Überland/Berg (ohne Tourismus)"},null,"B"]
[346,"VBZ",70.313999999999993,"314 Dietikon - Urdorf - Birmensdorf ZH",{"$f":"Übersetzungstabelle!$A$20","v":"Bus Überland/Berg (ohne Tourismus)"},null,"A"]
[346,"VBZ",70.700999999999993,"701 Zürich Klusplatz - Ebmatingen - Maur",{"$f":"Übersetzungstabelle!$A$20","v":"Bus Überland/Berg (ohne Tourismus)"},{"$f":"Übersetzungstabelle!$A$19","v":"Bus Agglomerationsverkehr"},"B"]
[346,"VBZ",70.703000000000003,"703 Zürich Klusplatz - Benglen",{"$f":"Übersetzungstabelle!$A$20","v":"Bus Überland/Berg (ohne Tourismus)"},null,"B"]
[346,"VBZ",70.703999999999994,"704 Zürich Klusplatz - Fällanden - Volketswil Hofwisen",{"$f":"Übersetzungstabelle!$A$20","v":"Bus Überland/Berg (ohne Tourismus)"},null,"B"]
[346,"VBZ",70.704999999999998,"705 Benglen - Schwerzenbach",{"$f":"Übersetzungstabelle!$A$20","v":"Bus Überland/Berg (ohne Tourismus)"},null,"B"]
[346,"VBZ",70.742999999999995,"743 Stettbach - Fällanden - Maur",{"$f":"Übersetzungstabelle!$A$20","v":"Bus Überland/Berg (ohne Tourismus)"},null,"B"]
[346,"VBZ",70.744,"744 Stettbach - Fällanden - Ebmatingen - Scheuren",{"$f":"Übersetzungstabelle!$A$20","v":"Bus Überland/Berg (ohne Tourismus)"},null,"A"]
[346,"VBZ",70.745000000000005,"745 Zürich Stettbach - Fällanden Wirgarten",{"$f":"Übersetzungstabelle!$A$20","v":"Bus Überland/Berg (ohne Tourismus)"},{"$f":"Übersetzungstabelle!$A$19","v":"Bus Agglomerationsverkehr"},"B"]
[346,"VBZ",70.751000000000005,"751 Stettbach - Kirche Fluntern",{"$f":"Übersetzungstabelle!$A$20","v":"Bus Überland/Berg (ohne Tourismus)"},null,"B"]
[346,"VBZ",70.918999999999997,"919 Küsnacht ZH - Itschnach - Zumikon",{"$f":"Übersetzungstabelle!$A$20","v":"Bus Überland/Berg (ohne Tourismus)"},null,"B"]
[351,"AFA",31.23,"230 Adelboden - Frutigen (- Kandersteg)",{"$f":"Übersetzungstabelle!$A$20","v":"Bus Überland/Berg (ohne Tourismus)"},{"$f":"Übersetzungstabelle!$A$22","v":"Bus Touristische Angebote"},"B"]
[351,"AFA",31.23,"230 (Adelboden -) Frutigen - Kandersteg",{"$f":"Übersetzungstabelle!$A$20","v":"Bus Überland/Berg (ohne Tourismus)"},"","B"]
[356,"AAGR",60.05,"50 Luzern - Rothenburg - Beromünster - Menziken",{"$f":"Übersetzungstabelle!$A$19","v":"Bus Agglomerationsverkehr"},"","B"]
[356,"AAGR",60.051000000000002,"51 Luzern - Rothenburg - Rain",{"$f":"Übersetzungstabelle!$A$19","v":"Bus Agglomerationsverkehr"},"","B"]
[356,"AAGR",60.052,"52 Luzern - Rothenburg - Rain - Beromünster - Rickenbach LU",{"$f":"Übersetzungstabelle!$A$19","v":"Bus Agglomerationsverkehr"},"","B"]
[357,"ARAG",60.06,"60 Buttisholz - Ruswil - Rothenburg",{"$f":"Übersetzungstabelle!$A$20","v":"Bus Überland/Berg (ohne Tourismus)"},"","A"]
[357,"ARAG",60.061,"61 Luzern - Ruswil - Ettiswil",{"$f":"Übersetzungstabelle!$A$20","v":"Bus Überland/Berg (ohne Tourismus)"},{"$f":"Übersetzungstabelle!$A$19","v":"Bus Agglomerationsverkehr"},"B"]
[357,"ARAG",60.061999999999998,"62 Sursee - Buttisholz - Ruswil",{"$f":"Übersetzungstabelle!$A$20","v":"Bus Überland/Berg (ohne Tourismus)"},"","B"]
[357,"ARAG",60.063000000000002,"63 Sursee - Ettiswil - Willisau",{"$f":"Übersetzungstabelle!$A$20","v":"Bus Überland/Berg (ohne Tourismus)"},"","B"]
[357,"ARAG",60.064,"64 Ruswil - Wolhusen",{"$f":"Übersetzungstabelle!$A$20","v":"Bus Überland/Berg (ohne Tourismus)"},"","B"]
[357,"ARAG",60.066000000000003,"66 Sursee - Willisau (Willisauer Express)",{"$f":"Übersetzungstabelle!$A$20","v":"Bus Überland/Berg (ohne Tourismus)"},"","A"]
[357,"ARAG",60.110999999999997,"111 Ebikon - Inwil - Waldibrücke",{"$f":"Übersetzungstabelle!$A$20","v":"Bus Überland/Berg (ohne Tourismus)"},null,"B"]
[358,"AWA",80.650000000000006,"650 Ziegelbrücke - Weesen - Amden",{"$f":"Übersetzungstabelle!$A$20","v":"Bus Überland/Berg (ohne Tourismus)"},"","A"]
[361,"BRER",80.622,"622 Rapperswil SG - Eschenbach SG - Wattwil",{"$f":"Übersetzungstabelle!$A$20","v":"Bus Überland/Berg (ohne Tourismus)"},{"$f":"Übersetzungstabelle!$A$19","v":"Bus Agglomerationsverkehr"},"B"]
[361,"BRER",80.631,"631 Rüti ZH - Eschenbach SG (- Uznach - Kaltbrunn) (BRER)",{"$f":"Übersetzungstabelle!$A$20","v":"Bus Überland/Berg (ohne Tourismus)"},null,"B"]
[361,"BRER",80.622,"622 Rapperswil SG - Ricken [- Wattwil (Nachtangebot)",{"$f":"Übersetzungstabelle!$A$21","v":"Bus alternative Erschliessung"},null,"B"]
[363,"AOT",80.94,"940 Amriswil - Romanshorn (- Arbon)",{"$f":"Übersetzungstabelle!$A$20","v":"Bus Überland/Berg (ohne Tourismus)"},"","A"]
[363,"AOT",80.941000000000003,"941 Amriswil - Arbon",{"$f":"Übersetzungstabelle!$A$20","v":"Bus Überland/Berg (ohne Tourismus)"},"","B"]
[363,"AOT",80.941999999999993,"942 Amriswil - Muolen",{"$f":"Übersetzungstabelle!$A$20","v":"Bus Überland/Berg (ohne Tourismus)"},"","B"]
[363,"AOT",80.942999999999998,"943 Amriswil - Bischofszell Stadt",{"$f":"Übersetzungstabelle!$A$20","v":"Bus Überland/Berg (ohne Tourismus)"},"","B"]
[363,"AOT",80.94,"940 (Amriswil -) Romanshorn - Arbon",{"$f":"Übersetzungstabelle!$A$20","v":"Bus Überland/Berg (ohne Tourismus)"},"","A"]
[365,"AVJ",10.69,"690 Le Pont - Les Bioux - Le Sentier - Le Brassus",{"$f":"Übersetzungstabelle!$A$20","v":"Bus Überland/Berg (ohne Tourismus)"},"","A"]
[403,"NHB",2355,"Thunersee - Beatenberg",{"$f":"Übersetzungstabelle!$A$26","v":"Standseilbahnen"},"","A"]
[408,"BRSB",2840,"Linthal - Braunwald",{"$f":"Übersetzungstabelle!$A$26","v":"Standseilbahnen"},"","A"]
[470,"SMtS",2020,"St-Imier - Mont-Soleil",{"$f":"Übersetzungstabelle!$A$26","v":"Standseilbahnen"},"","A"]
[473,"SMC",12.420999999999999,"421 Sierre - Chermignon - Crans - Montana (- Aminona)",{"$f":"Übersetzungstabelle!$A$20","v":"Bus Überland/Berg (ohne Tourismus)"},{"$f":"Übersetzungstabelle!$A$22","v":"Bus Touristische Angebote"},"A"]
[473,"SMC",12.422000000000001,"422 Sierre - Mollens - Montana - Crans",{"$f":"Übersetzungstabelle!$A$20","v":"Bus Überland/Berg (ohne Tourismus)"},{"$f":"Übersetzungstabelle!$A$22","v":"Bus Touristische Angebote"},"A"]
[473,"SMC",2225,"Sierre/Siders - Montana Gare",{"$f":"Übersetzungstabelle!$A$26","v":"Standseilbahnen"},"","B"]
[476,"StSS",2570,"Schwyz - Stoos",{"$f":"Übersetzungstabelle!$A$26","v":"Standseilbahnen"},"","A"]
[480,"TSB",2590,"Treib - Seelisberg",{"$f":"Übersetzungstabelle!$A$26","v":"Standseilbahnen"},"","B"]
[488,"ZBB",2562,"Zug Schönegg - Zugerberg",{"$f":"Übersetzungstabelle!$A$26","v":"Standseilbahnen"},"","A"]
[502,"BBA",50.203000000000003,"3 Aarau - Schönenwerd - Gretzenbach",{"$f":"Übersetzungstabelle!$A$20","v":"Bus Überland/Berg (ohne Tourismus)"},null,"B"]
[502,"BBA",50.204000000000001,"4 (Suhr -) Aarau - Biberstein",{"$f":"Übersetzungstabelle!$A$20","v":"Bus Überland/Berg (ohne Tourismus)"},"","B"]
[502,"BBA","N21","N21 Aarau - Erlinsbach - Küttigen - Biberstein",{"$f":"Übersetzungstabelle!$A$21","v":"Bus alternative Erschliessung"},null,"B"]
[502,"BBA","N23","N23 Aarau - Däniken - Olten",{"$f":"Übersetzungstabelle!$A$21","v":"Bus alternative Erschliessung"},null,"B"]
[502,"BBA","N24","N24 Aarau - Buchs - Suhr - Gränichen - Menziken",{"$f":"Übersetzungstabelle!$A$21","v":"Bus alternative Erschliessung"},null,"B"]
[502,"BBA","N25","N25 Aarau - Entfelden - Muhen - Schöftland - Kölliken",{"$f":"Übersetzungstabelle!$A$21","v":"Bus alternative Erschliessung"},null,"B"]
[507,"VB",22.07,"70 Biel/Bienne - Orvin - Les Prés-d'Orvin",{"$f":"Übersetzungstabelle!$A$20","v":"Bus Überland/Berg (ohne Tourismus)"},"","A"]
[507,"VB",22.071000000000002,"71 Biel/Bienne - Romont",{"$f":"Übersetzungstabelle!$A$20","v":"Bus Überland/Berg (ohne Tourismus)"},"","A"]
[507,"VB",22.074999999999999,"75 Biel/Bienne - Schwadernau - Scheuren - Orpund",{"$f":"Übersetzungstabelle!$A$20","v":"Bus Überland/Berg (ohne Tourismus)"},"","A"]
[507,"VB",2022,"Biel/Bienne - Magglingen",{"$f":"Übersetzungstabelle!$A$26","v":"Standseilbahnen"},"","A"]
[507,"VB",2023,"Biel/Bienne - Evilard",{"$f":"Übersetzungstabelle!$A$26","v":"Standseilbahnen"},"","A"]
[508,"AAGL",50.07,"70 Liestal - Bubendorf - Ziefen - Reigoldswil",{"$f":"Übersetzungstabelle!$A$19","v":"Bus Agglomerationsverkehr"},"","B"]
[508,"AAGL",50.07,"71 (Liestal -) Bubendorf - Arboldswil - Reigoldswil",{"$f":"Übersetzungstabelle!$A$20","v":"Bus Überland/Berg (ohne Tourismus)"},"","A"]
[508,"AAGL",50.072000000000003,"72 Liestal - Seltisberg - Lupsingen - Büren SO",{"$f":"Übersetzungstabelle!$A$20","v":"Bus Überland/Berg (ohne Tourismus)"},"","B"]
[508,"AAGL",50.08,"80 Liestal - Pratteln - Basel Aeschenplatz",{"$f":"Übersetzungstabelle!$A$19","v":"Bus Agglomerationsverkehr"},"","B"]
[508,"AAGL",50.08,"81 Liestal - Augst - Basel Aeschenplatz",{"$f":"Übersetzungstabelle!$A$19","v":"Bus Agglomerationsverkehr"},null,"B"]
[508,"AAGL",50.082999999999998,"83 Liestal - Arisdorf - Kaiseraugst - Pratteln (- Pratteln Rankacker)",{"$f":"Übersetzungstabelle!$A$20","v":"Bus Überland/Berg (ohne Tourismus)"},{"$f":"Übersetzungstabelle!$A$19","v":"Bus Agglomerationsverkehr"},"B"]
[512,"BuS",90.600999999999999,"2 (Bernina Lagalbbahn -) Pontresina - St. Moritz - Maloja",{"$f":"Übersetzungstabelle!$A$20","v":"Bus Überland/Berg (ohne Tourismus)"},{"$f":"Übersetzungstabelle!$A$22","v":"Bus Touristische Angebote"},"B"]
[518,"VBH",80.171000000000006,"171 Herisau - Schwellbrunn",{"$f":"Übersetzungstabelle!$A$20","v":"Bus Überland/Berg (ohne Tourismus)"},"","A"]
[519,"TL",10.054,"54 Renens VD - Cheseaux-sur-Lausanne - Cugy VD - Le Mont-sur-Lausanne",{"$f":"Übersetzungstabelle!$A$20","v":"Bus Überland/Berg (ohne Tourismus)"},null,"A"]
[519,"TL",10.06,"60 Lausanne Flon - Montheron - Bottens - Froideville",{"$f":"Übersetzungstabelle!$A$19","v":"Bus Agglomerationsverkehr"},"","B"]
[519,"TL",10.061999999999999,"62 Epalinges Les Croisettes - Mézières - Moudon",{"$f":"Übersetzungstabelle!$A$20","v":"Bus Überland/Berg (ohne Tourismus)"},{"$f":"Übersetzungstabelle!$A$19","v":"Bus Agglomerationsverkehr"},"B"]
[519,"TL",10.065,"65 Lausanne La Sallaz - Forel - Servion",{"$f":"Übersetzungstabelle!$A$20","v":"Bus Überland/Berg (ohne Tourismus)"},{"$f":"Übersetzungstabelle!$A$19","v":"Bus Agglomerationsverkehr"},"B"]
[519,"TL",10.067,"67 Pully - Grandvaux - Cully",{"$f":"Übersetzungstabelle!$A$20","v":"Bus Überland/Berg (ohne Tourismus)"},"","A"]
[519,"TL",10.907,"N7 Lausanne Flon - Morges (Pyjama)",{"$f":"Übersetzungstabelle!$A$21","v":"Bus alternative Erschliessung"},"","B"]
[523,"VBL",60.000999999999998,"1 (Luzern Maihof -) Luzern Bahnhof - Kriens - Obernau",{"$f":"Übersetzungstabelle!$A$19","v":"Bus Agglomerationsverkehr"},null,"B"]
[523,"VBL",60.021999999999998,"22 Luzern - Perlen",{"$f":"Übersetzungstabelle!$A$19","v":"Bus Agglomerationsverkehr"},"","B"]
[532,"BOGG",50.505000000000003,"505 (Dulliken -) Olten - Hägendorf - Oensingen",{"$f":"Übersetzungstabelle!$A$19","v":"Bus Agglomerationsverkehr"},"","B"]
[532,"BOGG",50.506,"506 Olten - Hauenstein - Wisen",{"$f":"Übersetzungstabelle!$A$20","v":"Bus Überland/Berg (ohne Tourismus)"},"","A"]
[532,"BOGG",50.500999999999998,"501 Olten - Rickenbach - Hägendorf - Egerkingen",{"$f":"Übersetzungstabelle!$A$19","v":"Bus Agglomerationsverkehr"},null,"B"]
[532,"BOGG",50.518000000000001,"518 Rohr b. Olten - Stüsslingen - Lostforf",{"$f":"Übersetzungstabelle!$A$20","v":"Bus Überland/Berg (ohne Tourismus)"},null,"A"]
[532,"BOGG",50.502000000000002,"502 (Trimbach -) Olten - Starrkirch - Dulliken",{"$f":"Übersetzungstabelle!$A$20","v":"Bus Überland/Berg (ohne Tourismus)"},null,"B"]
[532,"BOGG",50.506999999999998,"507 Egerkingen - Olten - Trimbach - Lostorf - Niedergösgen",{"$f":"Übersetzungstabelle!$A$20","v":"Bus Überland/Berg (ohne Tourismus)"},null,"B"]
[537,"VBSG",80.091999999999999,"N2 St. Gallen - Abtwil",{"$f":"Übersetzungstabelle!$A$21","v":"Bus alternative Erschliessung"},"","B"]
[537,"VBSG",80.090999999999994,"N1 St. Gallen - Neudorf - Mörschwil - Steinach",{"$f":"Übersetzungstabelle!$A$21","v":"Bus alternative Erschliessung"},"","B"]
[537,"VBSG",80.003,"3 Abtwil - St. Gallen (- Heiligkreuz)",{"$f":"Übersetzungstabelle!$A$19","v":"Bus Agglomerationsverkehr"},"","B"]
[542,"BSU",40.000999999999998,"1 (Oberdorf -) Solothurn - Zuchwil - Recherswil",{"$f":"Übersetzungstabelle!$A$19","v":"Bus Agglomerationsverkehr"},"","B"]
[542,"BSU",40.002000000000002,"2 (Bellach -) Solothurn - Biberist - Gerlafingen - Kriegstetten /- Zielebach",{"$f":"Übersetzungstabelle!$A$20","v":"Bus Überland/Berg (ohne Tourismus)"},null,"B"]
[542,"BSU",40.003,"3 (Bellach -) Solothurn - Biberist - Lohn-Lüterkofen",{"$f":"Übersetzungstabelle!$A$20","v":"Bus Überland/Berg (ohne Tourismus)"},"","B"]
[542,"BSU",40.005000000000003,"5/7 (Solothurn Brühl -) Solothurn - Aeschi SO - Niederönz /- Inkwil - Herzogenbuchsee",{"$f":"Übersetzungstabelle!$A$19","v":"Bus Agglomerationsverkehr"},"","B"]
[542,"BSU",40.015999999999998,"16 Subingen - Kriegstetten - Winistorf - Steinhof",{"$f":"Übersetzungstabelle!$A$20","v":"Bus Überland/Berg (ohne Tourismus)"},"","A"]
[542,"BSU",40.003999999999998,"4 (Zuchwil -) Solothurn - Rüttenen ",{"$f":"Übersetzungstabelle!$A$19","v":"Bus Agglomerationsverkehr"},null,"B"]
[543,"VMCV",10.212999999999999,"213 Vevey - Châtel-St-Denis",{"$f":"Übersetzungstabelle!$A$20","v":"Bus Überland/Berg (ohne Tourismus)"},"","A"]
[543,"VMCV",10.215999999999999,"216 Vevey - Corsier-sur-Vevey - Bossonnens",{"$f":"Übersetzungstabelle!$A$20","v":"Bus Überland/Berg (ohne Tourismus)"},null,"A"]
[544,"SBW",70.61,"611 Oberwinterthur - Gundetswil",{"$f":"Übersetzungstabelle!$A$21","v":"Bus alternative Erschliessung"},null,"A"]
[544,"SBW",70.66,"660 Winterthur - Brütten - Nürendsdorf - Bassersdorf",{"$f":"Übersetzungstabelle!$A$21","v":"Bus alternative Erschliessung"},null,"B"]
[544,"SBW",70.674000000000007,"674 Pfungen - Winterthur (- Seuzach)",{"$f":"Übersetzungstabelle!$A$19","v":"Bus Agglomerationsverkehr"},null,"B"]
[560,"VBG",70.012,"12 Zürich Flughafen - Glattbrugg - Wallisellen - Dübendorf - Stettbach",{"$f":"Übersetzungstabelle!$A$14","v":"Schmalspur Agglomeration"},null,"B"]
[560,"VBG",70.45,"450 Otelfingen - Boppelsen",{"$f":"Übersetzungstabelle!$A$20","v":"Bus Überland/Berg (ohne Tourismus)"},null,"B"]
[560,"VBG",70.456000000000003,"456 Dielsdorf - Regensdorf-Watt",{"$f":"Übersetzungstabelle!$A$20","v":"Bus Überland/Berg (ohne Tourismus)"},null,"B"]
[560,"VBG",70.484999999999999,"485 Zürich Frankenthal - Regensdorf-Watt - Buchs ZH",{"$f":"Übersetzungstabelle!$A$20","v":"Bus Überland/Berg (ohne Tourismus)"},{"$f":"Übersetzungstabelle!$A$19","v":"Bus Agglomerationsverkehr"},"B"]
[560,"VBG",70.491,"491 Hütikon - Regensdorf - Zürich Zehntenhausplatz",{"$f":"Übersetzungstabelle!$A$20","v":"Bus Überland/Berg (ohne Tourismus)"},null,"B"]
[560,"VBG",70.593000000000004,"593 Regensberg - Dielsdorf",{"$f":"Übersetzungstabelle!$A$20","v":"Bus Überland/Berg (ohne Tourismus)"},null,"B"]
[560,"VBG",70.64,"640 Illnau - Weisslingen",{"$f":"Übersetzungstabelle!$A$20","v":"Bus Überland/Berg (ohne Tourismus)"},null,"B"]
[560,"VBG",70.650000000000006,"650 Effretikon - Lindau - Kemptthal",{"$f":"Übersetzungstabelle!$A$20","v":"Bus Überland/Berg (ohne Tourismus)"},null,"B"]
[560,"VBG",70.655000000000001,"655 Effretikon - Kyburg",{"$f":"Übersetzungstabelle!$A$20","v":"Bus Überland/Berg (ohne Tourismus)"},null,"B"]
[560,"VBG",70.658000000000001,"658 Breite b. Nürensdorf - Nürensdorf - Effretikon",{"$f":"Übersetzungstabelle!$A$20","v":"Bus Überland/Berg (ohne Tourismus)"},null,"A"]
[560,"VBG",70.662000000000006,"662 Brütten - Eschikon - Effrektikon",{"$f":"Übersetzungstabelle!$A$20","v":"Bus Überland/Berg (ohne Tourismus)"},null,"A"]
[560,"VBG",70.72,"720 Effretikon - Volketswil - Schwerzenbach",{"$f":"Übersetzungstabelle!$A$20","v":"Bus Überland/Berg (ohne Tourismus)"},null,"B"]
[560,"VBG",70.724999999999994,"725 Uster - Volketswil - Schwerzenbach",{"$f":"Übersetzungstabelle!$A$20","v":"Bus Überland/Berg (ohne Tourismus)"},null,"B"]
[560,"VBG",70.733999999999995,"734 Egetswil - Kloten Zum Wilden Mann - Flughafen",{"$f":"Übersetzungstabelle!$A$20","v":"Bus Überland/Berg (ohne Tourismus)"},null,"B"]
[560,"VBG",70.748000000000005,"748 Dietlikon - Dübendorf",{"$f":"Übersetzungstabelle!$A$20","v":"Bus Überland/Berg (ohne Tourismus)"},null,"B"]
[560,"VBG",70.759,"759 Wangen b.D. - Dübendorf (- Flughafen)",{"$f":"Übersetzungstabelle!$A$20","v":"Bus Überland/Berg (ohne Tourismus)"},{"$f":"Übersetzungstabelle!$A$19","v":"Bus Agglomerationsverkehr"},"B"]
[560,"VBG",70.765000000000001,"765 Dietlikon - Bassersdorf - Flughafen",{"$f":"Übersetzungstabelle!$A$20","v":"Bus Überland/Berg (ohne Tourismus)"},null,"B"]
[560,"VBG",70.796000000000006,"796 Dietlikon - Wangen b.D.",{"$f":"Übersetzungstabelle!$A$20","v":"Bus Überland/Berg (ohne Tourismus)"},null,"B"]
[560,"VBG",70.656000000000006,"656 Breite b. Nürensdorf - Eschikon - Effretikon",{"$f":"Übersetzungstabelle!$A$20","v":"Bus Überland/Berg (ohne Tourismus)"},null,"B"]
[560,"VBG",70.659000000000006,"659 Breite b. Nürensdorf - Eschikon - Effretikon",{"$f":"Übersetzungstabelle!$A$20","v":"Bus Überland/Berg (ohne Tourismus)"},null,"B"]
[560,"VBG",70.769000000000005,"769 Breite b. Nürensdorf - Nürensdorf - Bassersdorf",{"$f":"Übersetzungstabelle!$A$20","v":"Bus Überland/Berg (ohne Tourismus)"},null,"B"]
[563,"AVG",31.123999999999999,"123 Grindelwald - Itramen",{"$f":"Übersetzungstabelle!$A$20","v":"Bus Überland/Berg (ohne Tourismus)"},{"$f":"Übersetzungstabelle!$A$22","v":"Bus Touristische Angebote"},"A"]
[572,"STI",31.001000000000001,"1 (Steffisburg -) Thun - Spiez",{"$f":"Übersetzungstabelle!$A$19","v":"Bus Agglomerationsverkehr"},"","B"]
[572,"STI",31.003,"3 (Steffisburg -) Thun - Allmendingen - Stocken - Blumenstein",{"$f":"Übersetzungstabelle!$A$20","v":"Bus Überland/Berg (ohne Tourismus)"},"","B"]
[572,"STI",31.021000000000001,"21 Thun - Beatenbucht - Interlaken",{"$f":"Übersetzungstabelle!$A$19","v":"Bus Agglomerationsverkehr"},"","B"]
[572,"STI",31.024000000000001,"24 Oberhofen - Schwanden - Sigriswil",{"$f":"Übersetzungstabelle!$A$20","v":"Bus Überland/Berg (ohne Tourismus)"},"","A"]
[572,"STI",31.024999999999999,"25 Thun - Oberhofen - Gunten - Sigriswil",{"$f":"Übersetzungstabelle!$A$20","v":"Bus Überland/Berg (ohne Tourismus)"},"","B"]
[572,"STI",31.033000000000001,"33 Steffisburg - Teuffenthal b. Thun",{"$f":"Übersetzungstabelle!$A$20","v":"Bus Überland/Berg (ohne Tourismus)"},"","A"]
[572,"STI",31.042999999999999,"43 Thun - Unter Emberg - Heimenschwand",{"$f":"Übersetzungstabelle!$A$20","v":"Bus Überland/Berg (ohne Tourismus)"},"","A"]
[572,"STI",31.044,"44 Oberdiessbach - Linden - Heimenschwand",{"$f":"Übersetzungstabelle!$A$20","v":"Bus Überland/Berg (ohne Tourismus)"},"","A"]
[572,"STI",31.053000000000001,"53 Seftigen - Wattenwil - Blumenstein",{"$f":"Übersetzungstabelle!$A$20","v":"Bus Überland/Berg (ohne Tourismus)"},"","B"]
[572,"STI",31.055,"55 Thun - Reutigen - Wimmis",{"$f":"Übersetzungstabelle!$A$20","v":"Bus Überland/Berg (ohne Tourismus)"},"","B"]
[572,"STI",31.030999999999999,"31 Thun - Goldiwil - Heiligenschwendi",{"$f":"Übersetzungstabelle!$A$20","v":"Bus Überland/Berg (ohne Tourismus)"},{"$f":"Übersetzungstabelle!$A$19","v":"Bus Agglomerationsverkehr"},"B"]
[572,"STI",31.030999999999999,"32 Thun - Dörfli - Heiligenschwendi",{"$f":"Übersetzungstabelle!$A$20","v":"Bus Überland/Berg (ohne Tourismus)"},{"$f":"Übersetzungstabelle!$A$19","v":"Bus Agglomerationsverkehr"},"A"]
[572,"STI",31.041,"41 Thun - Schwarzenegg - Innereriz",{"$f":"Übersetzungstabelle!$A$20","v":"Bus Überland/Berg (ohne Tourismus)"},"","A"]
[572,"STI",31.041,"42 Thun - Schwarzenegg - Heimenschwand",{"$f":"Übersetzungstabelle!$A$20","v":"Bus Überland/Berg (ohne Tourismus)"},"","A"]
[572,"STI",31.05,"50 Thun - Uebeschi - Blumenstein",{"$f":"Übersetzungstabelle!$A$20","v":"Bus Überland/Berg (ohne Tourismus)"},"","A"]
[572,"STI",31.050999999999998,"51 Thun - Wattenwil - Blumenstein",{"$f":"Übersetzungstabelle!$A$20","v":"Bus Überland/Berg (ohne Tourismus)"},"","A"]
[573,"BLWE",80.77,"770 Lichtensteig - Wattwil - Ebnat-Kappel",{"$f":"Übersetzungstabelle!$A$20","v":"Bus Überland/Berg (ohne Tourismus)"},"","B"]
[573,"BLWE",80.77,"770 Wattwil - Nesslau (Bahnersatz)",{"$f":"Übersetzungstabelle!$A$21","v":"Bus alternative Erschliessung"},null,"A"]
[576,"REGO",80.132000000000005,"132 Abtwil - Engelburg",{"$f":"Übersetzungstabelle!$A$20","v":"Bus Überland/Berg (ohne Tourismus)"},null,"B"]
[576,"REGO",80.150999999999996,"151 Gossau SG - Arena - St. Gallen",{"$f":"Übersetzungstabelle!$A$19","v":"Bus Agglomerationsverkehr"},"","B"]
[576,"REGO",80.158000000000001,"158 Herisau - Arena - Abtwil SG",{"$f":"Übersetzungstabelle!$A$20","v":"Bus Überland/Berg (ohne Tourismus)"},"","B"]
[576,"REGO",80.159000000000006,"159 Gossau SG - Arnegg - Andwil SG - Gossau SG Mettendorf",{"$f":"Übersetzungstabelle!$A$20","v":"Bus Überland/Berg (ohne Tourismus)"},"","B"]
[576,"REGO",80.728999999999999,"729 Wil SG - Schwarzenbach - Henau - Uzwil",{"$f":"Übersetzungstabelle!$A$20","v":"Bus Überland/Berg (ohne Tourismus)"},null,"B"]
[576,"REGO",80.150999999999996,"151 St. Gallen - Gossau SG - Herisau - St. Gallen (Nachtangebot)",{"$f":"Übersetzungstabelle!$A$21","v":"Bus alternative Erschliessung"},"","B"]
[582,"LRE",2250,"Raron - Eischoll",{"$f":"Übersetzungstabelle!$A$25","v":"Seilbahnen"},"","A"]
[583,"LSG",2270,"Stalden - Staldenried (- Gspon)",{"$f":"Übersetzungstabelle!$A$25","v":"Seilbahnen"},"","A"]
[584,"LKE",2272,"Kalpetran - Embd",{"$f":"Übersetzungstabelle!$A$25","v":"Seilbahnen"},"","A"]
[585,"LRF",2940,"Rhäzüns - Feldis/Veulden",{"$f":"Übersetzungstabelle!$A$25","v":"Seilbahnen"},"","B"]
[586,"LUFAG",2790,"Unterterzen - Tannenbodenalp",{"$f":"Übersetzungstabelle!$A$25","v":"Seilbahnen"},"","B"]
[587,"LSH",2594,"Schattdorf - Haldi",{"$f":"Übersetzungstabelle!$A$25","v":"Seilbahnen"},"","A"]
[589,"LDW",2545,"Dallenwil - Wirzweli",{"$f":"Übersetzungstabelle!$A$25","v":"Seilbahnen"},"","A"]
[590,"SRI",2575,"Ried (Muotathal) - Illgau",{"$f":"Übersetzungstabelle!$A$25","v":"Seilbahnen"},"","A"]
[591,"BMH",2480.1,"Meiringen - Hasliberg Reuti",{"$f":"Übersetzungstabelle!$A$25","v":"Seilbahnen"},"","B"]
[592,"LSMS",2460,"Stechelberg - Mürren",{"$f":"Übersetzungstabelle!$A$25","v":"Seilbahnen"},"","B"]
[593,"CBV",2194,"Chalais - Briey - Vercorin",{"$f":"Übersetzungstabelle!$A$25","v":"Seilbahnen"},"","B"]
[595,"LRU",2253,"Raron - Unterbäch",{"$f":"Übersetzungstabelle!$A$25","v":"Seilbahnen"},"","A"]
[596,"ABAG",2337.1,"Betten Talstation - Bettmeralp",{"$f":"Übersetzungstabelle!$A$25","v":"Seilbahnen"},"","A"]
[596,"ABAG",2337.1999999999998,"Betten Talstation - Betten Dorf - Bettmeralp",{"$f":"Übersetzungstabelle!$A$25","v":"Seilbahnen"},"","A"]
[596,"ABAG",2330,"Mörel - Greich - Riederalp",{"$f":"Übersetzungstabelle!$A$25","v":"Seilbahnen"},"","A"]
[596,"ABAG",2331,"Mörel - Ried-Mörel - Riederalp",{"$f":"Übersetzungstabelle!$A$25","v":"Seilbahnen"},"","A"]
[600,"TSD",12.371,"371 Sion - Les Collons - Thyon 2000",{"$f":"Übersetzungstabelle!$A$20","v":"Bus Überland/Berg (ohne Tourismus)"},{"$f":"Übersetzungstabelle!$A$22","v":"Bus Touristische Angebote"},"A"]
[600,"TSD",12.372,"372 Sion - Hérémence - Mâche (- Dixence)",{"$f":"Übersetzungstabelle!$A$20","v":"Bus Überland/Berg (ohne Tourismus)"},{"$f":"Übersetzungstabelle!$A$22","v":"Bus Touristische Angebote"},"A"]
[601,"CGN",3150,"Lausanne - Evian-les-Bains",{"$f":"Übersetzungstabelle!$A$24","v":"Schiffe"},"","B"]
[601,"CGN",3150,"Lausanne - Thonon-les-Bains",{"$f":"Übersetzungstabelle!$A$24","v":"Schiffe"},"","B"]
[601,"CGN",3150,"Nyon - Yvoire",{"$f":"Übersetzungstabelle!$A$24","v":"Schiffe"},"","B"]
[605,"SGV",3600,"Luzern - Brunnen (- Flüelen)",{"$f":"Übersetzungstabelle!$A$24","v":"Schiffe"},"","B"]
[609,"ZSG",3732,"Küsnacht - Erlenbach - Thalwil (Querfahrten)",{"$f":"Übersetzungstabelle!$A$24","v":"Schiffe"},null,"B"]
[609,"ZSG",3733,"Männedorf - Stäfa - Richterswil - Wädenswil (Querfahrten)",{"$f":"Übersetzungstabelle!$A$24","v":"Schiffe"},null,"B"]
[614,"SNL",62.439,"439 (Lugano -) Melide - Campione d'Italia",{"$f":"Übersetzungstabelle!$A$20","v":"Bus Überland/Berg (ohne Tourismus)"},"","A"]
[614,"SNL",62.49,"490 Lugano - Gandria",{"$f":"Übersetzungstabelle!$A$20","v":"Bus Überland/Berg (ohne Tourismus)"},"","A"]
[630,"SBS",3810,"Romanshorn Autoquai - Friedrichshafen Autoquai",{"$f":"Übersetzungstabelle!$A$24","v":"Schiffe"},"","B"]
[691,"LFüB",2345,"Fürgangen - Bellwald",{"$f":"Übersetzungstabelle!$A$25","v":"Seilbahnen"},"","A"]
[693,"LTUO",2246.1,"Turtmann - Unterems - Oberems",{"$f":"Übersetzungstabelle!$A$25","v":"Seilbahnen"},"","A"]
[694,"TDCA",2130,"Dorénaz - Champex-d'Alesse",{"$f":"Übersetzungstabelle!$A$25","v":"Seilbahnen"},"","A"]
[695,"TRI",2173,"Riddes - Isérables",{"$f":"Übersetzungstabelle!$A$25","v":"Seilbahnen"},"","A"]
[703,"BWS",70.174999999999997,"176 Richterswil - Wollerau - Roos",{"$f":"Übersetzungstabelle!$A$20","v":"Bus Überland/Berg (ohne Tourismus)"},"","B"]
[706,"BGU",40.031999999999996,"32 Grenchen - Bettlach - Selzach - Lommiswil",{"$f":"Übersetzungstabelle!$A$20","v":"Bus Überland/Berg (ohne Tourismus)"},"","A"]
[706,"BGU",40.033000000000001,"33 Grenchen - Arch - Büren a.A.",{"$f":"Übersetzungstabelle!$A$20","v":"Bus Überland/Berg (ohne Tourismus)"},"","A"]
[706,"BGU",40.033999999999999,"34 Grenchen - Lengnau",{"$f":"Übersetzungstabelle!$A$20","v":"Bus Überland/Berg (ohne Tourismus)"},"","B"]
[713,"VBD",90.308000000000007,"8 Davos Platz - Davos Clavadel (- Sertig)",{"$f":"Übersetzungstabelle!$A$20","v":"Bus Überland/Berg (ohne Tourismus)"},"","A"]
[713,"VBD",90.31,"10 Davos Glaris - Davos Monstein",{"$f":"Übersetzungstabelle!$A$20","v":"Bus Überland/Berg (ohne Tourismus)"},{"$f":"Übersetzungstabelle!$A$22","v":"Bus Touristische Angebote"},"A"]
[713,"VBD",90.313000000000002,"13 Davos Dorf - Dischma",{"$f":"Übersetzungstabelle!$A$20","v":"Bus Überland/Berg (ohne Tourismus)"},{"$f":"Übersetzungstabelle!$A$22","v":"Bus Touristische Angebote"},"A"]
[715,"RVBW",50.301000000000002,"1 (Würenlos -) Baden - Gebenstorf",{"$f":"Übersetzungstabelle!$A$19","v":"Bus Agglomerationsverkehr"},"","B"]
[715,"RVBW",50.301000000000002,"1 Würenlos - Baden (- Gebenstorf)",{"$f":"Übersetzungstabelle!$A$19","v":"Bus Agglomerationsverkehr"},"","B"]
[715,"RVBW",50.314999999999998,"N35 Würenlos - Wettingen - Baden - Kappelerhof",{"$f":"Übersetzungstabelle!$A$21","v":"Bus alternative Erschliessung"},null,"B"]
[715,"RVBW",50.316000000000003,"N36 Baden - Ennetbaden - Obersiggenthal - Untersiggenthal - Würenlingen",{"$f":"Übersetzungstabelle!$A$21","v":"Bus alternative Erschliessung"},null,"B"]
[715,"RVBW",50.317,"N37 Baden - Gebenstorf - Birmenstorf - Segelhof - Baden",{"$f":"Übersetzungstabelle!$A$21","v":"Bus alternative Erschliessung"},null,"B"]
[716,"RBL",50.38,"380 Lenzburg - Wildegg (via Hetex)",{"$f":"Übersetzungstabelle!$A$20","v":"Bus Überland/Berg (ohne Tourismus)"},"","B"]
[716,"RBL",50.381,"381 Lenzburg - Wildegg (via Staufbergstrasse)",{"$f":"Übersetzungstabelle!$A$20","v":"Bus Überland/Berg (ohne Tourismus)"},"","B"]
[716,"RBL",50.381999999999998,"382 Lenzburg - Möriken - Brunegg - Mägenwil",{"$f":"Übersetzungstabelle!$A$20","v":"Bus Überland/Berg (ohne Tourismus)"},null,"B"]
[716,"RBL",50.39,"390 Lenzburg - Seengen [- Fahrwangen - Bettwil",{"$f":"Übersetzungstabelle!$A$20","v":"Bus Überland/Berg (ohne Tourismus)"},"","B"]
[716,"RBL",50.392000000000003,"392 Lenzburg - Ammerswil - Dintikon",{"$f":"Übersetzungstabelle!$A$20","v":"Bus Überland/Berg (ohne Tourismus)"},"","B"]
[716,"RBL",50.393999999999998,"394 (Lenzburg -) Hunzenschwil - Rupperswil",{"$f":"Übersetzungstabelle!$A$20","v":"Bus Überland/Berg (ohne Tourismus)"},null,"B"]
[716,"RBL",50.395000000000003,"395 Lenzburg - Seengen - Teufenthal",{"$f":"Übersetzungstabelle!$A$20","v":"Bus Überland/Berg (ohne Tourismus)"},"","A"]
[716,"RBL","N82","N82 Lenzburg - Brunegg - Mägenwil - Othmarsingen",{"$f":"Übersetzungstabelle!$A$21","v":"Bus alternative Erschliessung"},null,"B"]
[716,"RBL","N90","N90 Lenzburg - Schafisheim - Fahrwangen",{"$f":"Übersetzungstabelle!$A$21","v":"Bus alternative Erschliessung"},null,"B"]
[716,"RBL","N94","N94 Lenzburg - Hunzenschwil - Rohr - Aarau",{"$f":"Übersetzungstabelle!$A$21","v":"Bus alternative Erschliessung"},null,"B"]
[724,"ASGS",12.411,"411 Sion - Sierre",{"$f":"Übersetzungstabelle!$A$20","v":"Bus Überland/Berg (ohne Tourismus)"},"","B"]
[724,"ASGS",12.413,"413 Grône - Erdesson",{"$f":"Übersetzungstabelle!$A$20","v":"Bus Überland/Berg (ohne Tourismus)"},"","A"]
[1911,"BLAG",30.271000000000001,"271 Langnau i.E.] - Signau - Röthenbach i.E. [- Chuderhüsi",{"$f":"Übersetzungstabelle!$A$20","v":"Bus Überland/Berg (ohne Tourismus)"},"","B"]
[1911,"BLAG",30.283999999999999,"284 (Ramsei -) Langnau i.E. - Trub - Fankhaus [- Mettlenalp",{"$f":"Übersetzungstabelle!$A$20","v":"Bus Überland/Berg (ohne Tourismus)"},"","B"]
[1911,"BLAG",30.285,"285 Langnau i.E. - Gohl [- Lüderenalp - Wasen i.E.",{"$f":"Übersetzungstabelle!$A$20","v":"Bus Überland/Berg (ohne Tourismus)"},"","A"]
[1911,"BLAG",30.286000000000001,"286 Langnau i.E. - Oberfrittenbach - Aeugstmatt",{"$f":"Übersetzungstabelle!$A$20","v":"Bus Überland/Berg (ohne Tourismus)"},"","A"]
[1911,"BLAG",30.465,"465 (Hasle-Rüegsau - Oberburg -) Burgdorf - Fraubrunnen",{"$f":"Übersetzungstabelle!$A$20","v":"Bus Überland/Berg (ohne Tourismus)"},"","B"]
[1911,"BLAG",30.466000000000001,"466 Burgdorf - Koppigen - Wynigen",{"$f":"Übersetzungstabelle!$A$20","v":"Bus Überland/Berg (ohne Tourismus)"},"","B"]
[1911,"BLAG",30.468,"468 Burgdorf - Heimiswil - Lueg",{"$f":"Übersetzungstabelle!$A$20","v":"Bus Überland/Berg (ohne Tourismus)"},"","A"]
[1911,"BLAG",30.471,"471 Hasle-Rüegsau - Affoltern-Weier",{"$f":"Übersetzungstabelle!$A$20","v":"Bus Überland/Berg (ohne Tourismus)"},"","A"]
[1911,"BLAG",30.481000000000002,"481 Sumiswald-Grünen - Wasen i.E.",{"$f":"Übersetzungstabelle!$A$20","v":"Bus Überland/Berg (ohne Tourismus)"},"","B"]
[1911,"BLAG",30.481999999999999,"482 Sumiswald - Grünenmatt - Heimisbach Thal",{"$f":"Übersetzungstabelle!$A$20","v":"Bus Überland/Berg (ohne Tourismus)"},"","A"]
[1911,"BLAG",30.483000000000001,"483 Sumiswald-Grünen - Affoltern-Weier - Huttwil",{"$f":"Übersetzungstabelle!$A$20","v":"Bus Überland/Berg (ohne Tourismus)"},"","B"]
[1911,"BLAG",30.492999999999999,"493 Huttwil - Wyssachen",{"$f":"Übersetzungstabelle!$A$20","v":"Bus Überland/Berg (ohne Tourismus)"},"","A"]
[1911,"BLAG",30.483000000000001,"483 Sumiswald-Grünen - Affoltern-Weier - Huttwil",{"$f":"Übersetzungstabelle!$A$20","v":"Bus Überland/Berg (ohne Tourismus)"},null,"B"]
[1911,"BLAG",30.492999999999999,"493 Huttwil - Wyssachen",{"$f":"Übersetzungstabelle!$A$20","v":"Bus Überland/Berg (ohne Tourismus)"},null,"A"]

{"sheet":"Übersetzungstabelle","index":1,"n_rows":26,"n_cols":4,"rows_kept":26,"cut":false,"hidden":true,"merged":[]}
[1,"DE","FR","IT"]
[{"$f":"CHOOSE($A$1,B2:B26,C2:C26,D2:D26)","v":"TUB-Nr."},"TUB-Nr.","TUB-Nr.","TUB-Nr."]
[{"$f":"CHOOSE($A$1,B3:B27,C3:C27,D3:D27)","v":"Initialen"},"Initialen","Initiales","Iniziali"]
["Feld","Feld","cadre-horaire","quadro-horaire"]
["Linie","Linie","Ligne","Linea"]
["Kategorie 1","Kategorie 1","Catégorie 1","Categoria 1"]
["Kategorie 2","Kategorie 2","Catégorie 2","Categoria 2"]
["Kategorie Wirtschaftlichkeit","Kategorie Wirtschaftlichkeit","Catégorie Rentabilité","Categoria Redditività"]
[]
["Normalspur Agglomeration (S-Bahnen) ","Normalspur Agglomeration (S-Bahnen) ","Voie normale Agglomération (RER)","Scartamento normale Agglomerato (ferrovie celeri)"]
["Normalspur Überland/Regionalverkehr","Normalspur Überland/Regionalverkehr","Voie normale Régionale","Scartamento normale Traffico regionale"]
["Normalspur Schnellzüge","Normalspur Schnellzüge","Voie normale Trains directs","Scartamento normale Treni diretti"]
[]
["Schmalspur Agglomeration","Schmalspur Agglomeration","Voie étroite Agglomération","Scartamento ridotto Agglomerato"]
["Schmalspur Überland/Berg (ohne Tourismus)","Schmalspur Überland/Berg (ohne Tourismus)","Voie étroite Régional/montagne (sans tourisme)","Scartamento ridotto Traffico regionale/montagna (senza turismo)"]
["Schmalspur Touristische Angebote","Schmalspur Touristische Angebote","Voie étroite Offres touristiques","Scartamento ridotto Offerte turistiche"]
["Schmalspur Schnellzüge","Schmalspur Schnellzüge","Voie étroite Trains directs","Scartamento ridotto Treni diretti"]
[]
["Bus Agglomerationsverkehr","Bus Agglomerationsverkehr","Bus Agglomération","Autobus Agglomerato"]
["Bus Überland/Berg (ohne Tourismus)","Bus Überland/Berg (ohne Tourismus)","Bus Régional/montagne (sans tourisme)","Autobus Traffico regionale/montagna (senza turismo)"]
["Bus alternative Erschliessung","Bus alternative Erschliessung","Bus Autre desserte","Autobus Collegamenti alternativi"]
["Bus Touristische Angebote","Bus Touristische Angebote","Bus Offres touristiques","Autobus Offerte turistiche"]
[]
["Schiffe","Schiffe","Bateaux","Battelli"]
["Seilbahnen","Seilbahnen","Remontées mécaniques","Impianti a fune"]
["Standseilbahnen","Standseilbahnen","Funiculaires","Funicolari"]